{"text_format":"1","workbook":"xlsx","n_sheets":12,"sheets":["Instructions","Checklist","Cover","Event Info","Scores","Pro.Payouts","Am.Jr.Payouts","Finance","$10 Fees","Memberships","Evaluation","SupportData"],"not_rendered":{"charts":0,"images":2,"macros":1,"external_links":3,"defined_names":90,"comments":3,"pivot_tables":0},"unopened":[],"bounds":{"document_bytes":16777216,"sheet_cells":100000,"rows_first":2000,"rows_last":500,"rows_between":2000,"halvings":0,"cell_chars":16384,"cell_head_chars":4096},"cells_cut":0,"cells_raw":0,"read":"whole","date_system":"1900"}

{"sheet":"Instructions","index":0,"n_rows":91,"n_cols":3,"rows_kept":91,"cut":false,"hidden":false,"merged":[[30,2,35,2],[62,2,64,2],[5,2,9,2],[12,2,17,2],[19,2,22,2],[37,2,49,2]]}
[]
[null,null,"Guide to the PDGA Tour Event Report - Canada Version - Excel"]
[null,null,{"$f":"CONCATENATE(\"Version \",Cover!A1)","v":"Version 18.4c"}]
[null,null,"Dear PDGA Tournament Director,"]
[]
[null,null,"Thank you for directing a PDGA Tour Event! The TD report serves as key input to the PDGA's information system. All TDs use this spreadsheet and return their completed event report to the PDGA office by email as soon as possible. This will speed the processing of your event including the posting of official results at www.pdga.com, and the calculation of player statistics including points, pro cash won and player ratings. The Checklist tab has been added to help you check off each important report item when you complete it and sign your report when it's ready to submit to the PDGA."]
[]
[]
[]
[]
[null,null,"The Open Office version of this report can be downloaded from the PDGA site here: www.pdga.com/tdinfo/resources "]
[]
[null,"Instructions:","The 2018 report has many new division codes. The Checklist tab can help guide you so you don't miss entering important items. The different worksheets can be accessed by clicking on the tabs at the bottom of your screen. Many TDs start by jumping to the Scores tab and entering Player Names, Division Codes and PDGA#s. This will activate player counts and Division codes in the Cover and Event Info sheets. Throughout the spreadsheet, the yellow and orange cells indicate places where the TD should be entering information. Do not type in the green cells which include formulas where values will automatically appear once the proper info has been entered in the yellow cells. If your info does not fit in the space provided, please reduce the text font size."]
[]
[]
[]
[]
[]
[]
[null,null,"Please note that certain details are essential for accurate data entry and for determining course and player ratings. The Checklist tab details the important inofrmation that must be completed before submitting your report. A quick reminder that all first place ties must be broken except in one-round flex start events when tied players may not be there at the same time. Only Pro payouts need to be shown on the Scores tab."]
[]
[]
[]
[null,"Summary of important information on each tab"]
[]
[null,"Cover:","Summarizes players, entry fees, prizes, and player fees and memberships collected for the PDGA."]
[]
[null,"Event Info:","2 pages providing general information on the event. Beyond courses played and highlights of the competition,"]
[null,null,"this worksheet is where any disqualifications and other problems should be outlined."]
[]
[null,"Scores:","Information on this page can be uploaded to the PDGA website before, during and after your event for posting pre-registrations, results and producing unofficial ratings. Reminder that all ties for 1st place must be broken, and that the PDGA does not recognize the breaking of ties for places below first place. Click on the Sort buttons as needed to organize players by division. When a player does not complete a round or does not even start a round, read the conditions for when to enter an 888 or 999 code for that DNF (Did Not Finish)."]
[]
[]
[]
[]
[]
[]
[null,"ProPayout","These sheets are provided to help TDs automatically calculate payouts. information is linked from the Cover sheet for each division being hosted. Note: Entry fee boxes must be filled in on the Cover sheet before going to the Pro.Payout & Am.Jr.Payout sheets. Then, just enter the amount of net cash added or subtracted (overhead allocation) for each division and the program will calculate both exact and rounded off payout values. The payout tables allow the TD to select 40%, 45%, or 50% payout for pro divisions (U.S. & Canada) and 45% or 50% for Ams. We encourage TDs to consider using 45% or 50% with added cash for pros. The Manual Adj. & Final Place columns let TDs adjust payouts to account for ties. For Am divisions, the dollar amounts and \"added cash\" for the payouts are based on retail merchandise values.\n\nPlayers who choose the Trophy Only option (when allowed by a TD) are not fully counted in the Field Size for either the Am or Pro payout calculations because they do not receive any payout. The spreadsheet adds one person to the Field Size for every three players who choose Trophy Only in a division. Their reduced entry fees are "]
[null,"AmJrPayout"]
[]
[]
[]
[]
[]
[]
[]
[]
[]
[]
[]
[null,null,"included in the division purse and is essentially the same as 'added cash'."]
[]
[null,"Finance:","Part 1 on Sponsors is requested of all TDs. The Income Statement that follows (Part 2) is provided as a "]
[null,null,"resource to assist your event management. You are not required to complete and submit this section."]
[]
[null,"Memberships:","Please type in the details on all PDGA memberships paid at the event and include with your electronic report."]
[]
[null,"$10 Fees:","Details on non-current players paying this fee. Print copies of this sheet and get the players to complete it !"]
[]
[null,"Forms:","For printing  PDGA membership and event evaluation forms in case the TD needs more than provided."]
[]
[]
[null,"TD Package:","In addition to this report TDs should receive the following items as part of their package: Rule books, stickers, brochures, member forms, \"Soft Cards\" (receipts for membership), Pay Tables, current member list tailored to your event (by email), and a list of approved discs and targets. "]
[]
[]
[]
[null,"* * *","New Memberships and Renewals must be done by player visiting PDGA site. See link on Memberships tab."]
[]
[]
[null,"Changes:","- Players may request to enter selected divisions at reduced entry fees to play for \"Trophy Only\""]
[null,null,"    This option is available if the TD allows it. The suggested entry fee is 1/3 to 1/2 of the regular entry fee."]
[null,null,"- Current membership is required in order to play in Major, SuperTour (A Tier) or National Tour events"]
[null,null,"- For B & C tier events the $10 fee for non-members and non-currents extends to ALL divisions except Juniors"]
[null,null,"- The per player fee extends to ALL divisions, per Tier these fees are A-$4 B-$3 & C-$2"]
[]
[]
[]
[null,"Remember:","- The expectations and requirements of Tour events are described in the Sanctioning Agreement/Tour Standards"]
[null,null,"- Please alert us if your mailing or email address has recently changed"]
[]
[null,"Report","Once completed please send your Tour Event Report as an email attachment to bdhflg@rogers.com "]
[null,"Submission:","TDs can either mail the player fees and membership fees collected to the PDGA Canada office at:"]
[null,null,"PDGA, 5 Dacotah Ave, Toronto ON M5J 2E4"]
[null,null,"or use PayPal or Interac-E-Transfer and send the funds to bdhflg@rogers.com "]
[]
[null,null,"Per the terms of the PDGA Tour Sanctioning Agreement, SuperTour (A Tier) events must submit "]
[null,null,"TD reports by email within 48 hours after the event. B-tiers now have one week and C Tier have two weeks  "]
[null,null,"to submit this information. ALL events must submit any fees due within 30 day after the event."]
[]
[null,"Questions ? ","Contact the PDGA Canada Office at (416) 203-0912 or PDGA Headquarters at (706) 261-6342"]
[null,"tdr2018"]

{"sheet":"Checklist","index":1,"n_rows":46,"n_cols":8,"rows_kept":46,"cut":false,"hidden":false,"merged":[[46,0,46,9],[47,0,47,9],[48,0,48,9],[49,0,49,9],[0,7,1,9],[6,7,6,9],[7,7,7,9],[40,0,40,9],[41,0,41,9],[2,7,5,9],[9,8,9,9],[12,7,27,9],[28,7,29,8],[38,0,38,9],[39,0,39,9]]}
["EXCEL",null,null,null,null,null,null," TD Signature"]
["PAGE TAB",null,"Enter  Y  in each box when you have completed each item"]
["   v v v v",null,"v v v",null,"   Clicking on each line item below jumps to initial tab cell",null,null,"I hereby certify that the        information I have provided in this report is accurate to the best of my ability and knowledge."]
["Cover",null,null,null,"Enter Tournament Name, TD Name, Email, PDGA#, City, Province"]
[null,null,null,null,"Enter Dates and Event Tier"]
[null,null,null,null,"Enter Gross Entry Fees and Other Fees for each Division playing"]
[]
["Event Info",null,null,null,"Enter Course Name as listed in PDGA Course Directory"]
[null,null,null,null,"Enter Specific Course Layouts, Number of Holes, Lengths",null,null,"Tournament Director"]
[null,null,null,null,"Enter Course Layout Codes played by each division, each round",null,null,"Date:"]
[]
["Scores",null,null,null,"Enter Divisions, Player Names and Trophy Only status if applicable"]
[null,null,null,null,"Enter Scores for each round including 888 or 999 where applicable",null,null,"Upon completion of the Event Report please send a copy by email as an attached file to PDGA Canada at: bdhflg@rogers.com\n     Payments may be made online using PayPal or Interac-E-Transfer sent by mail. The PDGA Canada paypal account & Interac address is: bdhflg@rogers.com\n     Send cheques or money orders made payable to \"PDGA\" by mail:\nPDGA, 5 Dacotah Ave, Toronto ON M5J 2E4\n     Per the terms of PDGA Tour Sanctioning Agreement, all TD reports and fees are due no more than one month after an event. \n     Questions? Contact the Canada Manager at:  416-203-0912 or bdhflg@rogers.com or PDGA HQ     at tdreport@pdga.com or \n706-261-6392\nThanks for a job well done!"]
[null,null,null,null,"Calculate Am & Jr Division Merch Payouts if any"]
[null,null,null,null,"Calculate Pro Division Payouts if any"]
[null,null,null,null,"When submitting report, only show Payouts for Pro Players"]
[null,null,null,null,"Enter \"Yes\" for Ams who declined cash winnings in Pro divisions"]
[]
["Notes To ",null,"List Player Names > DNF 999 and 888"]
["Player"]
["Scores"]
[">> Important!",null,"List Ams Who Declined Cash Payouts"]
[]
[]
[null,null,"Enter First Place Ties Broken > DivCode and Player Names"]
[]
[]
["Scores",null,null,null,"Enter 1st, 2nd (and 3rd, etc) place only for first place tiebreaks"]
[null,null,null,null,"    No other finish ranks need to be entered in the Place column",null,null,"Optional"]
[]
["Cover",null,null,null,"Enter Pro and Am Payout, Packs and CTP info",null,null,"Enter Event Finances Here"]
[null,null,null,null,"Enter Non-Member Count",null,null,"Enter NonMember Info Here"]
[]
[]
[]
["Please print copies of the Evaluation Form for players who ask to provide feedback to PDGA"]
[]
["Problems",null,"Please describe in detail any problems or disqualifications."]
[]
[]
[]
[]
[]
[]
["Comments",null,"Please provide us with your comments about how the PDGA Tour is working and any suggestions for its improvement."]
["to the PDGA",null,"Are there any other specific ways in which the PDGA can help you, your club, and your event ?"]

{"sheet":"Cover","index":2,"n_rows":61,"n_cols":26,"rows_kept":61,"cut":false,"hidden":false,"merged":[[2,25,2,27],[3,25,3,27],[23,7,23,12],[22,14,22,19],[10,25,10,27],[12,25,12,27],[13,25,13,27],[9,15,9,19],[4,25,4,27],[1,8,1,19],[14,15,14,19],[3,7,3,12],[3,15,3,16],[5,14,5,17],[3,18,3,19],[8,15,8,19],[31,14,31,19],[6,16,6,18],[5,25,5,27],[7,25,7,27],[8,25,8,27],[9,25,9,27],[6,25,6,27],[11,25,11,27]]}
["18.4c"]
["            Canada Tour Event Report",null,null,null,null,null,null,"Event: "]
[null,"Enter fees 'per player' in the yellow boxes. Green boxes are protected cells and only filled automatically.",null,null,null,null,null,null,null,null,null,null,null,null,null,null,null,null,null,null,null,null,null,null,null,"NOTE"]
[null,"Note new options for Other Fees",null,null,null,null,null,"Trophy Only - Ams pay entry discount",null,null,null,null,null,null,"Date(s): ",null,null,"to",null,null,null,null,null,null,null,"Type only in white"]
[null,"Gross","PDGA","Other","Net","# of","Total Net","Gross","PDGA","Other","Net","# of","Total Net",null,null,null,null,null,null,null,null,null,null,"Gross",null,"or yellow boxes"]
["PROS","Entry","Fee","Fees","Entry","Plyrs","Entry Fees","Entry","Fee","Fees","Entry","Plyrs","Entry Fees",null,{"$f":"IF(COUNTIF(C7:M54,#N/A)>0,\"ENTER TIER LEVEL!\",\"\")","v":""},null,null,null,null,null,null,null,null,"Entry Fees",null,"DO NOT TYPE IN"]
["Open",null,{"$f":"IF(AND(tier1<>\"\",F7>0),VLOOKUP(tier1,tierDB,3,FALSE),0)","v":0},null,{"$f":"B7-C7-D7","v":0},{"$f":"COUNTIF(Division,\"MPO\")-L7","v":0},{"$f":"F7*E7","v":0},null,{"$f":"IF(AND(tier1<>\"\",L7>0),VLOOKUP(tier1,tierDB,3,FALSE),0)","v":0},null,{"$f":"H7-I7-J7","v":0},{"$f":"COUNTIF(Scores!O$10:O$500,\"MPOY\")","v":0},{"$f":"L7*K7","v":0},null,null,"Tier: ","B Pro / C Am",null,null,null,null,null,"Pro",{"$f":"SUM(B7:B22*F7:F22)","v":0},null,"BLUE OR"]
["Master MP40",null,0,null,0,{"$f":"COUNTIF(Division,\"MP40\")-L8","v":0},{"$f":"F8*E8","v":0},null,0,null,0,{"$f":"COUNTIF(Scores!O$10:O$500,\"MPMY\")","v":0},0,null,null,null,null,null,null,null,null,null,"Am",{"$f":"SUM(B25:B44*F25:F44)","v":0},null,"GREEN BOXES!"]
["Master MP50",null,0,null,0,{"$f":"COUNTIF(Division,\"MP50\")-L9","v":0},0,null,0,null,0,{"$f":"COUNTIF(Scores!O$10:O$500,\"MPGY\")","v":0},0,null,"TD Name: ",null,null,null,null,null,null,null,"Jr",{"$f":"SUM(B47:B58*F47:F58)","v":0},null,"These all use"]
["Master MP55",null,0,null,0,{"$f":"COUNTIF(Division,\"MP55\")","v":0},0,null,null,null,null,null,null,null,"Email Addr: ","@",null,null,null,null,null,null,null,{"$f":"SUM(X7:X9)","v":0},null,"automatic entries"]
["Master MP60",null,0,null,0,{"$f":"COUNTIF(Division,\"MP60\")","v":0},0,null,null,null,null,null,null,null,"TD PDGA#: ",null,null,null,"Province: ",null,null,null,null,null,null,"Do not insert or"]
["Master MP65",null,0,null,0,{"$f":"COUNTIF(Division,\"MP65\")","v":0},{"$f":"F12*E12","v":0},null,null,null,null,null,null,null,null,null,null,null,null,null,null,null,null,null,null,"delete rows. All "]
["Master MP70",null,0,null,0,{"$f":"COUNTIF(Division,\"MP70\")","v":0},{"$f":"F13*E13","v":0},null,null,null,null,null,null,null,null,null,null,null,null,null,null,null,null,null,null,"cells postitioned"]
["Master MP75",null,0,null,0,{"$f":"COUNTIF(Division,\"MP75\")-L14","v":0},0,null,0,null,0,{"$f":"COUNTIF(Scores!O$10:O$500,\"FPOY\")","v":0},0,null,null,null,null,null,null,null,null,null,null,null,null,"for data importing"]
["Master MP80",null,0,null,0,{"$f":"COUNTIF(Division,\"MP80\")-L15","v":0},0,null,0,null,0,{"$f":"COUNTIF(Scores!O$10:O$500,\"FPMY\")","v":0},0,null,"City: ",null,null,null,null,null,null,null,null,null,{"$f":"COUNTIF(I25:M38,#N/A)","v":0}]
["Open Women",null,0,null,0,{"$f":"COUNTIF(Division,\"FPO\")","v":0},0]
["Women FP40",null,0,null,0,{"$f":"COUNTIF(Division,\"FP40\")","v":0},0]
["Women FP50",null,0,null,0,{"$f":"COUNTIF(Division,\"FP50\")","v":0},0]
["Women FP55",null,0,null,0,{"$f":"COUNTIF(Division,\"FP55\")","v":0},0]
["Women FP60",null,0,null,0,{"$f":"COUNTIF(Division,\"FP60\")","v":0},0,"  Ams may enter a pro division for an entry"]
["Women FP65",null,0,null,0,{"$f":"COUNTIF(Division,\"FP65\")","v":0},0,"  fee 1/3 to 1/2 of full price if TD allows it",null,null,null,null,null,null,"Summary of Players, Entry Fees, & Payout"]
["Women FP70",null,0,null,0,{"$f":"COUNTIF(Division,\"FP70\")","v":0},0,"  and just compete for trophies only.",null,null,null,null,null,null,"Total Players",null,null,null,null,{"$f":"F23+F45+F59","v":0}]
["PRO Totals ",null,null,null,null,{"$f":"SUM(F7:F22)+SUM(L7:L21)","v":0},{"$f":"SUM(G7:G22)+SUM(M7:M15)","v":0},null,null,null,null,null,null,null,"PROFESSIONALS"]
["AMATEURS",null,null,null,null,null,null,"Trophy Only- Ams/Pros- Entry discount",null,null,null,null,null,null,"Total Pro Cash Purse Paid Out"]
["Advanced",null,{"$f":"IF(AND(tier2<>0,F25>0),VLOOKUP(tier2,tierDB,3,FALSE),IF(AND(tier1<>\"\",F25>0),VLOOKUP(tier1,tierDB,3,FALSE),0))","v":0},null,{"$f":"B25-C25-D25","v":0},{"$f":"COUNTIF(Division,\"MA1\")-L25","v":0},{"$f":"F25*E25","v":0},null,{"$f":"IF(AND(tier2<>0,L25>0),VLOOKUP(tier2,tierDB,3,FALSE),IF(AND(tier1<>\"\",L25>0),VLOOKUP(tier1,tierDB,3,FALSE),0))","v":0},null,{"$f":"H25-I25-J25","v":0},{"$f":"COUNTIF(Scores!O$10:O$500,\"MA1Y\")","v":0},{"$f":"L25*K25","v":0},null,"Total Pro Net Entry Fees",null,null,null,null,{"$f":"G23","v":0},null,null,{"$f":"IF(T25>0,T24/T25,\"\")","v":""}]
["Intermediate",null,0,null,0,{"$f":"COUNTIF(Division,\"MA2\")-L26","v":0},0,null,0,null,0,{"$f":"COUNTIF(Scores!O$10:O$500,\"MA2Y\")","v":0},0,null,"Net Cash Added to Purse",null,null,null,null,{"$f":"T24-T25","v":0}]
["Recreational",null,0,null,0,{"$f":"COUNTIF(Division,\"MA3\")-L27","v":0},0,null,0,null,0,{"$f":"COUNTIF(Scores!O$10:O$500,\"MA3Y\")","v":0},0,null,"Pro Player Packs - $ Value"]
["Novice",null,0,null,{"$f":"B28-C28-D28","v":0},{"$f":"COUNTIF(Division,\"MA4\")","v":0},{"$f":"F28*E28","v":0},null,null,null,null,null,null,null,"Pro Trophies - $ Value"]
["Mstr Am MA40",null,0,null,{"$f":"B29-C29-D29","v":0},{"$f":"COUNTIF(Division,\"MA40\")-L29","v":0},0,null,0,null,0,{"$f":"COUNTIF(Scores!O$10:O$500,\"MM1Y\")","v":0},0,null,"Other Pro Prizes $ (CTPs etc)"]
["Mstr Am MA50",null,0,null,0,{"$f":"COUNTIF(Division,\"MA50\")","v":0},0,null,null,null,null,null,null,null,null,"Pro Event Value",null,null,null,{"$f":"SUM(T24,T27,T28,T29)","v":0},null,null,{"$f":"IF(T25>0,T30/T25,\"\")","v":""}]
["Mstr Am MA55",null,0,null,0,{"$f":"COUNTIF(Division,\"MA55\")","v":0},0]
["Mstr Am MA60",null,0,null,0,{"$f":"COUNTIF(Division,\"MA60\")","v":0},0,null,null,null,null,null,null,null,"AMATEURS & JUNIORS"]
["Mstr Am MA65",null,0,null,0,{"$f":"COUNTIF(Division,\"MA65\")","v":0},0,null,null,null,null,null,null,null,"Total Am/Jr Net Entry Fees",null,null,null,null,{"$f":"G45+G59","v":0}]
["Mstr Am MA70",null,0,null,0,{"$f":"COUNTIF(Division,\"MA70\")","v":0},{"$f":"F34*E34","v":0},null,null,null,null,null,null,null,"Am/Jr Prizes + Trophies - $ Value"]
["Adv Women",null,0,null,0,{"$f":"COUNTIF(Division,\"FA1\")","v":0},{"$f":"F35*E35","v":0},null,null,null,null,null,null,null,"Am/Jr Player Packs - $ Value"]
["Interm Women",null,0,null,0,{"$f":"COUNTIF(Division,\"FA2\")","v":0},{"$f":"F36*E36","v":0},null,null,null,null,null,null,null,"Other Am/Jr Prizes $ (CTPs etc)"]
["Rec Women",null,0,null,0,{"$f":"COUNTIF(Division,\"FA3\")-L37","v":0},0,null,0,null,0,{"$f":"COUNTIF(Scores!O$10:O$500,\"FA1Y\")","v":0},0,null,null,"Am & Jr Event Value",null,null,null,{"$f":"SUM(T34:T36)","v":0}]
["Novice Women",null,0,null,0,{"$f":"COUNTIF(Division,\"FA4\")-L38","v":0},0,null,0,null,0,{"$f":"COUNTIF(Scores!O$10:O$500,\"FA2Y\")","v":0},0]
["W Mr Am FA40",null,0,null,0,{"$f":"COUNTIF(Division,\"FA40\")","v":0},0]
["W Mr Am FA50",null,0,null,0,{"$f":"COUNTIF(Division,\"FA50\")","v":0},0]
["W Mr Am FA55",null,0,null,0,{"$f":"COUNTIF(Division,\"FA55\")","v":0},0]
["W Mr Am FA60",null,0,null,0,{"$f":"COUNTIF(Division,\"FA60\")","v":0},0]
["W Mr Am FA65",null,0,null,0,{"$f":"COUNTIF(Division,\"FA65\")","v":0},0,"  Ams or Pros may enter an Am division for",null,null,null,null,null,null,null,null,null,null,null,null,null,null,{"$f":"IF(T33>0,T37/T33,\"\")","v":""}]
["W Mr Am FA70",null,0,null,{"$f":"B44-C44-D44","v":0},{"$f":"COUNTIF(Division,\"FA70\")","v":0},{"$f":"F44*E44","v":0},"  1/3 to 1/2 of full entry fee if TD allows it"]
["AM Totals ",null,null,null,null,{"$f":"SUM(F25:F44)+SUM(L25:L44)","v":0},{"$f":"SUM(G25:G44)+SUM(M25:M44)","v":0},"  and just compete for trophies only."]
["JUNIORS",null,null,null,null,null,null,null,null,null,null,null,null,null,null,"  Total Tour Event Value",null,null,null,{"$f":"SUM(T30,T37)","v":0}]
["Jr Boys <18",null,{"$f":"IF(AND(tier2<>0,F47>0),VLOOKUP(tier2,tierDB,3,FALSE),IF(AND(tier1<>\"\",F47>0),VLOOKUP(tier1,tierDB,3,FALSE),0))","v":0},null,{"$f":"B47-C47-D47","v":0},{"$f":"COUNTIF(Division,\"MJ18\")","v":0},{"$f":"F47*E47","v":0}]
["Jr Boys <15",null,0,null,0,{"$f":"COUNTIF(Division,\"MJ15\")","v":0},0,null,null,null,null,null,"Collected for the PDGA"]
["Jr Boys <12",null,0,null,0,{"$f":"COUNTIF(Division,\"MJ12\")","v":0},0,null,null,null,null,null,{"$f":"IF(tier1=\"\",\"\",tier1&\" tier\")","v":"Pro B tier"},null,"# Pro Players",{"$f":"F23","v":0},"x",{"$f":"IF(tier1=\"\",0,VLOOKUP(tier1,tierDB,3,FALSE))","v":3},"=",{"$f":"P49*R49","v":0}]
["Jr Boys <10",null,0,null,0,{"$f":"COUNTIF(Division,\"MJ10\")","v":0},0,null,null,null,null,null,{"$f":"IF(OR(tier2=0,tier2=\"\"),\"\",tier2&\" tier\")","v":"Am C tier"},null,"# Am/Jr Players",{"$f":"F45+F59","v":0},"x",{"$f":"IF(AND(tier2<>0,tier2<>\"\"),VLOOKUP(tier2,tierDB,3,FALSE),IF(tier1<>\"\",VLOOKUP(tier1,tierDB,3,FALSE),0))","v":2},"=",{"$f":"P50*R50","v":0}]
["Jr Boys <8",null,0,null,0,{"$f":"COUNTIF(Division,\"MJ08\")","v":0},0,null,null,null,null,null,{"$f":"IF(SupportData!D26=5,\"D-tier three-month members\",\"Non or Non-current Members\")","v":"Non or Non-current Members"},null,null,null,"x",10,"=",{"$f":"P51*R51","v":0}]
["Jr Boys <6",null,0,null,0,{"$f":"COUNTIF(Division,\"MJ06\")","v":0},0]
["Jr Girls <18",null,{"$f":"IF(AND(tier2<>0,F53>0),VLOOKUP(tier2,tierDB,3,FALSE),IF(AND(tier1<>\"\",F53>0),VLOOKUP(tier1,tierDB,3,FALSE),0))","v":0},null,{"$f":"B53-C53-D53","v":0},{"$f":"COUNTIF(Division,\"FJ18\")","v":0},{"$f":"F53*E53","v":0}]
["Jr Girls <15",null,0,null,0,{"$f":"COUNTIF(Division,\"FJ15\")","v":0},0]
["Jr Girls <12",null,0,null,0,{"$f":"COUNTIF(Division,\"FJ12\")","v":0},0]
["Jr Girls <10",null,0,null,0,{"$f":"COUNTIF(Division,\"FJ10\")","v":0},0]
["Jr Girls <8",null,0,null,0,{"$f":"COUNTIF(Division,\"FJ08\")","v":0},0]
["Jr Girls <6",null,0,null,0,{"$f":"COUNTIF(Division,\"FJ06\")","v":0},0,null,null,null,null,null,"$25 fee if results/TD Report not submitted electronically"]
["JR Totals ",null,null,null,null,{"$f":"SUM(F47:F58)","v":0},{"$f":"SUM(G47:G58)","v":0},null,null,null,null,null,null,null,null,"  Total Payable to PDGA:",null,null,null,{"$f":"SUM(T49:T58)","v":0}]
[null,null,null,null,null,null,null,"Please pay this amount in Cdn$ by mailed cheque sent to the PDGA Canada office."]
[null,null,null,null,null,null,null,"Or, use PayPal sent to:",null,null,null,"bdhflg@rogers.com"]

{"sheet":"Event Info","index":3,"n_rows":110,"n_cols":18,"rows_kept":110,"cut":false,"hidden":false,"merged":[[93,1,93,3],[94,1,94,3],[111,1,111,15],[112,1,112,15],[101,1,101,3],[102,1,102,3],[103,1,103,3],[110,1,110,15],[95,1,95,3],[96,1,96,3],[97,1,97,3],[98,1,98,3],[86,1,86,15],[92,4,92,5],[92,6,92,7],[92,14,92,15],[29,0,44,0],[30,1,30,3],[36,1,36,3],[32,1,32,3],[29,1,29,3],[31,1,31,3],[87,1,87,15],[88,1,88,15],[67,0,78,0],[45,1,45,3],[46,1,46,3],[47,1,47,3],[21,17,21,19],[10,17,10,19],[11,17,11,19],[12,17,12,19],[13,17,13,19],[14,17,14,19],[18,17,18,19],[19,17,19,19],[15,17,15,19],[16,17,16,19],[20,17,20,19],[17,17,17,19],[49,1,49,3],[51,1,51,3],[67,1,67,3],[68,1,68,3],[53,1,53,3],[62,1,62,3],[57,1,57,3],[58,1,58,3],[45,0,64,0],[52,1,52,3],[17,11,17,13],[20,11,20,13],[21,11,21,13],[18,11,18,13],[34,1,34,3],[35,1,35,3],[38,1,38,3],[39,1,39,3],[40,1,40,3],[41,1,41,3],[55,1,55,3],[56,1,56,3],[59,1,59,3],[60,1,60,3],[14,11,14,13],[15,11,15,13],[16,11,16,13],[19,11,19,13],[12,11,12,13],[13,11,13,13],[8,11,8,13],[9,11,9,13],[10,11,10,13],[11,11,11,13],[64,1,64,3],[63,1,63,3],[8,5,8,9],[33,1,33,3],[54,1,54,3],[48,1,48,3],[50,1,50,3],[61,1,61,3],[37,1,37,3],[44,1,44,3],[43,1,43,3],[42,1,42,3],[69,1,69,3],[77,1,77,3],[78,1,78,3],[70,1,70,3],[73,1,73,3],[74,1,74,3],[75,1,75,3],[71,1,71,3],[72,1,72,3],[76,1,76,3]]}
[" PDGA Canada Tour Event Report: General Information"]
[]
["1.","Course Layouts",null,"Link to PDGA Course Directory >",null,"www.pdga.com/course-directory"]
[]
[null,"It is important you complete the following information accurately so your players get correct ratings."]
[null,"If you have any questions, please contact the PDGA office: ",null,null,null,"tourmgr@pdga.com"]
[null,"Please remove any apostrophes in course names or words even if it's that way in the directory!"]
[]
["Layout",null,null,null,null,"Number of Holes",null,null,null,null,null,"Length",null,null,null,"Meas."]
["Code","Park or Course Name",null," Specific Layout / Configuration Name",null,"Perm",null,"Temp",null,"TOT",null,"(feet)",null,null,null,"or Est?"]
["A",null,null,null,null,null,null,null,null,{"$f":"IF(OR(F11>0,H11>0),F11+H11,\"\")","v":""},null,null,null,null,null,null,{"$f":"IF(AND(OR(B11<>\"\",D11<>\"\"),OR(J11=\"\",L11=\"\",P11=\"\")),\"< Please enter all info requested\",\"\")","v":""},"NOTE"]
["B",null,null,null,null,null,null,null,null,"",null,null,null,null,null,null,{"$f":"IF(AND(B12<>\"\",OR(J12=\"\",L12=\"\",P12=\"\")),\"< Please enter all info requested\",\"\")","v":""},"Type only in white"]
["C",null,null,null,null,null,null,null,null,"",null,null,null,null,null,null,{"$f":"IF(AND(B13<>\"\",OR(J13=\"\",L13=\"\",P13=\"\")),\"< Please enter all info requested\",\"\")","v":""},"or yellow boxes"]
["D",null,null,null,null,null,null,null,null,"",null,null,null,null,null,null,{"$f":"IF(AND(B14<>\"\",OR(J14=\"\",L14=\"\",P14=\"\")),\"< Please enter all info requested\",\"\")","v":""},"DO NOT TYPE IN"]
["E",null,null,null,null,null,null,null,null,"",null,null,null,null,null,null,{"$f":"IF(AND(B15<>\"\",OR(J15=\"\",L15=\"\",P15=\"\")),\"< Please enter all info requested\",\"\")","v":""},"BLUE OR"]
["F",null,null,null,null,null,null,null,null,"",null,null,null,null,null,null,{"$f":"IF(AND(B16<>\"\",OR(J16=\"\",L16=\"\",P16=\"\")),\"< Please enter all info requested\",\"\")","v":""},"GREEN BOXES!"]
["G",null,null,null,null,null,null,null,null,{"$f":"IF(OR(F17>0,H17>0),F17+H17,\"\")","v":""},null,null,null,null,null,null,null,"These all use"]
["H",null,null,null,null,null,null,null,null,"",null,null,null,null,null,null,null,"automatic entries"]
["I",null,null,null,null,null,null,null,null,"",null,null,null,null,null,null,null,"Do not insert or"]
["J",null,null,null,null,null,null,null,null,"",null,null,null,null,null,null,null,"delete rows. All "]
["K",null,null,null,null,null,null,null,null,"",null,null,null,null,null,null,null,"cells postitioned"]
["L",null,null,null,null,null,null,null,null,"",null,null,null,null,null,null,null,"for data importing"]
[]
["2.","Layouts Played by Division by Round - Do not include rounds with fewer than 13 holes!"]
[]
[null,"Enter the proper course layout code letter from above for each round played by each division listed."]
[null,"NOTE:  Division name is gray until at least one player has been entered for it on the COVER sheet."]
[null,null,null,null,null,null,null,null,null,"Course Layout Code",null,null,null,null,null,"Div"]
[null,"Divisions with players entered in your event",null,null,null,"R 1",null,"R 2",null,"R 3",null,"R 4",null,"Final",null,"Code"]
["PRO","MPO   - Pro Open",null,null,null,null,null,null,null,null,null,null,null,null,null,{"$f":"IF(OR(Cover!F7>0,Cover!L7>0),LEFT(B30,3),\"\")","v":""},{"$f":"IF(AND(P30<>\"\",COUNTA(F30:N30)<COUNT(Scores!G$10:K$10)),\" < Course layout may be missing\",\"\")","v":""}]
[null,"MP40 - Master Pro 40+",null,null,null,null,null,null,null,null,null,null,null,null,null,{"$f":"IF(OR(Cover!F8>0,Cover!L8>0),LEFT(B31,4),\"\")","v":""},{"$f":"IF(AND(P31<>\"\",COUNTA(F31:N31)<COUNT(Scores!G$10:K$10)),\" < Course layout may be missing\",\"\")","v":""}]
[null,"MP50 - Master Pro 50+",null,null,null,null,null,null,null,null,null,null,null,null,null,{"$f":"IF(OR(Cover!F9>0,Cover!L9>0),LEFT(B32,4),\"\")","v":""},{"$f":"IF(AND(P32<>\"\",COUNTA(F32:N32)<COUNT(Scores!G$10:K$10)),\" < Course layout may be missing\",\"\")","v":""}]
[null,"MP55 - Master Pro 55+",null,null,null,null,null,null,null,null,null,null,null,null,null,{"$f":"IF(OR(Cover!F10>0,Cover!L10>0),LEFT(B33,4),\"\")","v":""},{"$f":"IF(AND(P33<>\"\",COUNTA(F33:N33)<COUNT(Scores!G$10:K$10)),\" < Course layout may be missing\",\"\")","v":""}]
[null,"MP60 - Master Pro 60+",null,null,null,null,null,null,null,null,null,null,null,null,null,{"$f":"IF(OR(Cover!F11>0,Cover!L11>0),LEFT(B34,4),\"\")","v":""}]
[null,"MP65 - Master Pro 65+",null,null,null,null,null,null,null,null,null,null,null,null,null,{"$f":"IF(OR(Cover!F12>0,Cover!L12>0),LEFT(B35,4),\"\")","v":""},{"$f":"IF(AND(P35<>\"\",COUNTA(F35:N35)<COUNT(Scores!G$10:K$10)),\" < Course layout may be missing\",\"\")","v":""}]
[null,"MP70 - Master Pro 70+",null,null,null,null,null,null,null,null,null,null,null,null,null,{"$f":"IF(OR(Cover!F13>0,Cover!L13>0),LEFT(B36,4),\"\")","v":""},{"$f":"IF(AND(P36<>\"\",COUNTA(F36:N36)<COUNT(Scores!G$10:K$10)),\" < Course layout may be missing\",\"\")","v":""}]
[null,"MP75 - Master Pro 75+",null,null,null,null,null,null,null,null,null,null,null,null,null,{"$f":"IF(OR(Cover!F14>0,Cover!L14>0),LEFT(B37,4),\"\")","v":""},{"$f":"IF(AND(P37<>\"\",COUNTA(F37:N37)<COUNT(Scores!G$10:K$10)),\" < Course layout may be missing\",\"\")","v":""}]
[null,"MP80 - Master Pro 80+",null,null,null,null,null,null,null,null,null,null,null,null,null,{"$f":"IF(OR(Cover!F15>0,Cover!L15>0),LEFT(B38,4),\"\")","v":""},{"$f":"IF(AND(P38<>\"\",COUNTA(F38:N38)<COUNT(Scores!G$10:K$10)),\" < Course layout may be missing\",\"\")","v":""}]
[null,"FPO   - Open Pro Women",null,null,null,null,null,null,null,null,null,null,null,null,null,{"$f":"IF(OR(Cover!F16>0,Cover!L16>0),LEFT(B39,3),\"\")","v":""}]
[null,"FP40 -  Women Master Pro 40+",null,null,null,null,null,null,null,null,null,null,null,null,null,{"$f":"IF(OR(Cover!F17>0,Cover!L17>0),LEFT(B40,4),\"\")","v":""}]
[null,"FP50 -  Women Master Pro 50+",null,null,null,null,null,null,null,null,null,null,null,null,null,{"$f":"IF(OR(Cover!F18>0,Cover!L18>0),LEFT(B41,4),\"\")","v":""}]
[null,"FP55 -  Women Master Pro 55+",null,null,null,null,null,null,null,null,null,null,null,null,null,{"$f":"IF(OR(Cover!F19>0,Cover!L19>0),LEFT(B42,4),\"\")","v":""}]
[null,"FP60 -  Women Master Pro 60+",null,null,null,null,null,null,null,null,null,null,null,null,null,{"$f":"IF(OR(Cover!F20>0,Cover!L20>0),LEFT(B43,4),\"\")","v":""},{"$f":"IF(AND(P43<>\"\",COUNTA(F43:N43)<COUNT(Scores!G$10:K$10)),\" < Course layout may be missing\",\"\")","v":""}]
[null,"FP65 -  Women Master Pro 65+",null,null,null,null,null,null,null,null,null,null,null,null,null,{"$f":"IF(OR(Cover!F21>0,Cover!L21>0),LEFT(B44,4),\"\")","v":""},{"$f":"IF(AND(P44<>\"\",COUNTA(F44:N44)<COUNT(Scores!G$10:K$10)),\" < Course layout may be missing\",\"\")","v":""}]
[null,"FP70 -  Women Master Pro 70+",null,null,null,null,null,null,null,null,null,null,null,null,null,{"$f":"IF(OR(Cover!F22>0,Cover!L22>0),LEFT(B45,4),\"\")","v":""},{"$f":"IF(AND(P45<>\"\",COUNTA(F45:N45)<COUNT(Scores!G$10:K$10)),\" < Course layout may be missing\",\"\")","v":""}]
["AM","MA1   -  Advanced",null,null,null,null,null,null,null,null,null,null,null,null,null,{"$f":"IF(OR(Cover!F25>0,Cover!L25>0),LEFT(B46,3),\"\")","v":""},{"$f":"IF(AND(P46<>\"\",COUNTA(F46:N46)<COUNT(Scores!G$10:K$10)),\" < Course layout may be missing\",\"\")","v":""}]
[null,"MA2   -  Intermediate",null,null,null,null,null,null,null,null,null,null,null,null,null,{"$f":"IF(OR(Cover!F26>0,Cover!L26>0),LEFT(B47,3),\"\")","v":""},{"$f":"IF(AND(P47<>\"\",COUNTA(F47:N47)<COUNT(Scores!G$10:K$10)),\" < Course layout may be missing\",\"\")","v":""}]
[null,"MA3   -  Recreational",null,null,null,null,null,null,null,null,null,null,null,null,null,{"$f":"IF(OR(Cover!F27>0,Cover!L27>0),LEFT(B48,3),\"\")","v":""},{"$f":"IF(AND(P48<>\"\",COUNTA(F48:N48)<COUNT(Scores!G$10:K$10)),\" < Course layout may be missing\",\"\")","v":""}]
[null,"MA4   -  Novice",null,null,null,null,null,null,null,null,null,null,null,null,null,{"$f":"IF(OR(Cover!F28>0,Cover!L28>0),LEFT(B49,3),\"\")","v":""},{"$f":"IF(AND(P49<>\"\",COUNTA(F49:N49)<COUNT(Scores!G$10:K$10)),\" < Course layout may be missing\",\"\")","v":""}]
[null,"MA40 - Master Amateur 40+",null,null,null,null,null,null,null,null,null,null,null,null,null,{"$f":"IF(OR(Cover!F29>0,Cover!L29>0),LEFT(B50,4),\"\")","v":""},{"$f":"IF(AND(P50<>\"\",COUNTA(F50:N50)<COUNT(Scores!G$10:K$10)),\" < Course layout may be missing\",\"\")","v":""}]
[null,"MA50 - Master Amateur 50+",null,null,null,null,null,null,null,null,null,null,null,null,null,{"$f":"IF(OR(Cover!F30>0,Cover!L30>0),LEFT(B51,4),\"\")","v":""},{"$f":"IF(AND(P51<>\"\",COUNTA(F51:N51)<COUNT(Scores!G$10:K$10)),\" < Course layout may be missing\",\"\")","v":""}]
[null,"MA55 - Master Amateur 55+",null,null,null,null,null,null,null,null,null,null,null,null,null,{"$f":"IF(OR(Cover!F31>0,Cover!L31>0),LEFT(B52,4),\"\")","v":""},{"$f":"IF(AND(P52<>\"\",COUNTA(F52:N52)<COUNT(Scores!G$10:K$10)),\" < Course layout may be missing\",\"\")","v":""}]
[null,"MA60 - Master Amateur 60+",null,null,null,null,null,null,null,null,null,null,null,null,null,{"$f":"IF(OR(Cover!F32>0,Cover!L32>0),LEFT(B53,4),\"\")","v":""},{"$f":"IF(AND(P53<>\"\",COUNTA(F53:N53)<COUNT(Scores!G$10:K$10)),\" < Course layout may be missing\",\"\")","v":""}]
[null,"MA65 - Master Amateur 65+",null,null,null,null,null,null,null,null,null,null,null,null,null,{"$f":"IF(OR(Cover!F33>0,Cover!L33>0),LEFT(B54,4),\"\")","v":""},{"$f":"IF(AND(P54<>\"\",COUNTA(F54:N54)<COUNT(Scores!G$10:K$10)),\" < Course layout may be missing\",\"\")","v":""}]
[null,"MA70 - Master Amateur 70+",null,null,null,null,null,null,null,null,null,null,null,null,null,{"$f":"IF(OR(Cover!F34>0,Cover!L34>0),LEFT(B55,4),\"\")","v":""},{"$f":"IF(AND(P55<>\"\",COUNTA(F55:N55)<COUNT(Scores!G$10:K$10)),\" < Course layout may be missing\",\"\")","v":""}]
[null,"FA1   -  Advanced Women",null,null,null,null,null,null,null,null,null,null,null,null,null,{"$f":"IF(OR(Cover!F35>0,Cover!L35>0),LEFT(B56,3),\"\")","v":""}]
[null,"FA2   -  Intermediate Women",null,null,null,null,null,null,null,null,null,null,null,null,null,{"$f":"IF(OR(Cover!F36>0,Cover!L36>0),LEFT(B57,3),\"\")","v":""}]
[null,"FA3   -  Recreational Women",null,null,null,null,null,null,null,null,null,null,null,null,null,{"$f":"IF(OR(Cover!F37>0,Cover!L37>0),LEFT(B58,3),\"\")","v":""}]
[null,"FA4   -  Novice Women",null,null,null,null,null,null,null,null,null,null,null,null,null,{"$f":"IF(OR(Cover!F38>0,Cover!L38>0),LEFT(B59,3),\"\")","v":""}]
[null,"FA40 - Women Master Amateur 40+",null,null,null,null,null,null,null,null,null,null,null,null,null,{"$f":"IF(OR(Cover!F39>0,Cover!L39>0),LEFT(B60,4),\"\")","v":""},{"$f":"IF(AND(P60<>\"\",COUNTA(F60:N60)<COUNT(Scores!G$10:K$10)),\" < Course layout may be missing\",\"\")","v":""}]
[null,"FA50 - Women Master Amateur 50+",null,null,null,null,null,null,null,null,null,null,null,null,null,{"$f":"IF(OR(Cover!F40>0,Cover!L40>0),LEFT(B61,4),\"\")","v":""},{"$f":"IF(AND(P61<>\"\",COUNTA(F61:N61)<COUNT(Scores!G$10:K$10)),\" < Course layout may be missing\",\"\")","v":""}]
[null,"FA55 - Women Master Amateur 55+",null,null,null,null,null,null,null,null,null,null,null,null,null,{"$f":"IF(OR(Cover!F41>0,Cover!L41>0),LEFT(B62,4),\"\")","v":""},{"$f":"IF(AND(P62<>\"\",COUNTA(F62:N62)<COUNT(Scores!G$10:K$10)),\" < Course layout may be missing\",\"\")","v":""}]
[null,"FA60 - Women Master Amateur 60+",null,null,null,null,null,null,null,null,null,null,null,null,null,{"$f":"IF(OR(Cover!F42>0,Cover!L42>0),LEFT(B63,4),\"\")","v":""},{"$f":"IF(AND(P63<>\"\",COUNTA(F63:N63)<COUNT(Scores!G$10:K$10)),\" < Course layout may be missing\",\"\")","v":""}]
[null,"FA65 - Women Master Amateur 65+",null,null,null,null,null,null,null,null,null,null,null,null,null,{"$f":"IF(OR(Cover!F43>0,Cover!L43>0),LEFT(B64,4),\"\")","v":""},{"$f":"IF(AND(P64<>\"\",COUNTA(F64:N64)<COUNT(Scores!G$10:K$10)),\" < Course layout may be missing\",\"\")","v":""}]
[null,"FA70 - Women Master Amateur 70+",null,null,null,null,null,null,null,null,null,null,null,null,null,{"$f":"IF(OR(Cover!F44>0,Cover!L44>0),LEFT(B65,4),\"\")","v":""},{"$f":"IF(AND(P65<>\"\",COUNTA(F65:N65)<COUNT(Scores!G$10:K$10)),\" < Course layout may be missing\",\"\")","v":""}]
[null,null,null,null,null,null,null,null,null,"Course Layout Code",null,null,null,null,null,"Div"]
[null,"Divisions with players entered in your event",null,null,null,"R 1",null,"R 2",null,"R 3",null,"R 4",null,"R 5",null,"Code"]
["JR","MJ18 - Junior Boys < 18",null,null,null,null,null,null,null,null,null,null,null,null,null,{"$f":"IF(Cover!F47>0,LEFT(B68,4),\"\")","v":""},{"$f":"IF(AND(P68<>\"\",COUNTA(F68:N68)<COUNT(Scores!G$10:K$10)),\" < Course layout may be missing\",\"\")","v":""}]
[null,"MJ15 - Junior Boys < 15",null,null,null,null,null,null,null,null,null,null,null,null,null,{"$f":"IF(Cover!F48>0,LEFT(B69,4),\"\")","v":""},{"$f":"IF(AND(P69<>\"\",COUNTA(F69:N69)<COUNT(Scores!G$10:K$10)),\" < Course layout may be missing\",\"\")","v":""}]
[null,"MJ12 - Junior Boys < 12",null,null,null,null,null,null,null,null,null,null,null,null,null,{"$f":"IF(Cover!F49>0,LEFT(B70,4),\"\")","v":""},{"$f":"IF(AND(P70<>\"\",COUNTA(F70:N70)<COUNT(Scores!G$10:K$10)),\" < Course layout may be missing\",\"\")","v":""}]
[null,"MJ10 - Junior Boys < 10",null,null,null,null,null,null,null,null,null,null,null,null,null,{"$f":"IF(Cover!F50>0,LEFT(B71,4),\"\")","v":""},{"$f":"IF(AND(P71<>\"\",COUNTA(F71:N71)<COUNT(Scores!G$10:K$10)),\" < Course layout may be missing\",\"\")","v":""}]
[null,"MJ08 - Junior Boys < 8",null,null,null,null,null,null,null,null,null,null,null,null,null,{"$f":"IF(Cover!F51>0,LEFT(B72,4),\"\")","v":""},{"$f":"IF(AND(P72<>\"\",COUNTA(F72:N72)<COUNT(Scores!G$10:K$10)),\" < Course layout may be missing\",\"\")","v":""}]
[null,"MJ06 - Junior Boys < 6",null,null,null,null,null,null,null,null,null,null,null,null,null,{"$f":"IF(Cover!F52>0,LEFT(B73,4),\"\")","v":""},{"$f":"IF(AND(P73<>\"\",COUNTA(F73:N73)<COUNT(Scores!G$10:K$10)),\" < Course layout may be missing\",\"\")","v":""}]
[null,"FJ18 - Junior Girls < 18",null,null,null,null,null,null,null,null,null,null,null,null,null,{"$f":"IF(Cover!F53>0,LEFT(B74,4),\"\")","v":""}]
[null,"FJ15 - Junior Girls < 15",null,null,null,null,null,null,null,null,null,null,null,null,null,{"$f":"IF(Cover!F54>0,LEFT(B75,4),\"\")","v":""}]
[null,"FJ12 - Junior Girls < 12",null,null,null,null,null,null,null,null,null,null,null,null,null,{"$f":"IF(Cover!F55>0,LEFT(B76,4),\"\")","v":""}]
[null,"FJ10 - Junior Girls < 10",null,null,null,null,null,null,null,null,null,null,null,null,null,{"$f":"IF(Cover!F56>0,LEFT(B77,4),\"\")","v":""}]
[null,"FJ08 - Junior Girls < 8",null,null,null,null,null,null,null,null,null,null,null,null,null,{"$f":"IF(Cover!F57>0,LEFT(B78,4),\"\")","v":""},{"$f":"IF(AND(P78<>\"\",COUNTA(F78:N78)<COUNT(Scores!G$10:K$10)),\" < Course layout may be missing\",\"\")","v":""}]
[null,"FJ06 - Junior Girls < 6",null,null,null,null,null,null,null,null,null,null,null,null,null,{"$f":"IF(Cover!F58>0,LEFT(B79,4),\"\")","v":""},{"$f":"IF(AND(P79<>\"\",COUNTA(F79:N79)<COUNT(Scores!G$10:K$10)),\" < Course layout may be missing\",\"\")","v":""}]
[]
[null,"Note: Make sure to visit the new Checklist page to complete and sign report."]
[]
["OPTIONAL INFORMATION"]
[]
[null,"Conditions"]
[null,"Describe any extraordinary weather or other unusual conditions that may have affected scoring, and indicate which rounds were affected."]
[]
[]
[]
[]
[null,"Holes in One"]
[null,"For each tournament ace, please provide the player's name, course layout code (from section 1 above), hole number and distance:"]
[null,"Player Name",null,null,"Layout Code",null,"Hole #  ",null,null,"Length"]
[]
[]
[]
[]
[]
[]
[]
[null,"Extra Cash Won for Skins, CTPs, etc"]
[]
[]
[]
[]
[null,"Press Release"]
[null,"Many TDs submit summaries of their events to local media, and the disc golf press. This might include a synopsis of the competition"]
[null,"and its highlights (great rounds, final nine, unusual aces, big comebacks, etc), recognition of sponsors, charity and celebrity involvement,"]
[null,"number of spectators, TV and radio on-site coverage, etc. Please feel free to use more space than is provided below, and send copies"]
[null,"of items such as newspaper articles, programs, scorecards, and photos to the PDGA office. Thanks very much!"]

{"sheet":"Scores","index":4,"n_rows":500,"n_cols":30,"rows_kept":500,"cut":false,"hidden":false,"merged":[[6,28,6,30],[42,17,42,19],[0,3,0,8],[2,17,4,27],[38,20,38,22],[5,17,5,27],[37,20,37,22],[0,11,0,13],[42,20,42,22],[6,25,6,27],[43,20,43,22],[0,17,0,23],[40,17,40,19],[40,20,40,22],[41,17,41,19],[41,20,41,22],[37,17,38,19],[39,17,39,19],[39,20,39,22]]}
["Tour Event Name:",null,null,{"$f":"IF(Cover!I2=\"\",\"\",Cover!I2)","v":""},null,null,null,null,null,null,"Dates:",{"$f":"IF(Cover!P4=\"\",\"\",Cover!P4)","v":""},null,null,null,null,null,"NOTE ON DNF (Did Not Finish) CODES"]
[]
["Please enter the player Division Codes, Names and PDGA#s on this page before",null,null,null,null,null,null,null,null,null,null,null,null,null,null,null,null,"Enter 888 when a player has not notified the TD they will not be playing the next scheduled round. Enter 888 when a player has been confirmed to have manipulated their score or dropped out to preserve their rating. For all other cases where a player was not able to finish the round, enter 999."]
["completing the COVER page and using the PAYOUT worksheets. Do not include",null,null,null,null,null,null,null,null,null,null,null,null," Use Special Sort button above when"]
["players who registered but did not show up or make a throw in the tournament.",null,null,null,null,null,null,null,null,null,null,null,null,"your Event has Semi or Final round.",null,"Total US$"]
["Click button to upload scores",null,null,null,null,null,null,"Use Basic Sort button after Rd1 thru  >",null,null,null,null,null,"You MUST enter Final rankings in Place",null,{"$f":"SUM(P10:P510)","v":0},null,"  Division Codes: Use the following 3 or 4 character codes in the DivCode field."]
[null,null,null,null,null,null,null,"Rd4. Use Special Sort if Final round.    ",null,null,null,null,null,"column for players in Semi/Final.",null,null,null,"PROFESSIONAL DIVISIONS",null,null,null,"AMATEUR DIVISIONS",null,null,null,"RATINGS DIVISIONS",null,null,"JUNIOR DIVISIONS"]
[null,null,null,null,null,null,null,null,null,null,null,null,"Canadian","Am Cash",null,"Conv to",null,"MPO","Open",null,null,"MA1","Advanced",null,null,"Code","Color","Rating","MJ18","Junior Boys < 18"]
["DivCode","T.O.","Place","First Name","Last Name","PDGA","Rd1","Rd2","Rd3","Rd4","Final","Total","Cash/Value","Decline?","Divto","Cash/Value",null,"MP40","Master Pro 40+",null,null,"MA2","Intermediate",null,null,"RPA","Gold","970+","MJ15","Junior Boys < 15"]
[null,null,null,null,null,null,null,null,null,null,null,{"$f":"IF(SUM(G10:K10)=0,\"\",IF(SUM(G10:K10)>=888,\"DNF\",SUM(G10:K10)))","v":""},null,null,{"$f":"CONCATENATE(A10,B10)","v":""},{"$f":"IF(M10<>\"\",M10*S$46,\"\")","v":""},null,"MP50","Master Pro 50+",null,null,"MA3","Recreational",null,null,"RAH","Blue","<970","MJ12","Junior Boys < 12"]
[null,null,null,null,null,null,null,null,null,null,null,"",null,null,{"$f":"CONCATENATE(A11,B11)","v":""},{"$f":"IF(M11<>\"\",M11*S$46,\"\")","v":""},null,"MP55","Master Pro 55+",null,null,"MA4","Novice",null,null,"RAD","White","<935","MJ10","Junior Boys < 10"]
[null,null,null,null,null,null,null,null,null,null,null,"",null,null,"","",null,"MP60","Master Pro 60+",null,null,"FA1","Advanced Women",null,null,"RAE","Red","<900","MJ08","Junior Boys < 8"]
[null,null,null,null,null,null,null,null,null,null,null,"",null,null,"","",null,"MP65","Master Pro 65+",null,null,"FA2","Intermediate Women",null,null,"RAF","Green","<850","MJ06","Junior Boys < 6"]
[null,null,null,null,null,null,null,null,null,null,null,"",null,null,"","",null,"MP70","Master Pro 70+",null,null,"FA3","Recreational Women",null,null,"RAG","Purple","<800","FJ18","Junior Girls < 18"]
[null,null,null,null,null,null,null,null,null,null,null,"",null,null,"","",null,"MP75","Master Pro 75+",null,null,"FA4","Novice Women",null,null,null,null,null,"FJ15","Junior Girls < 15"]
[null,null,null,null,null,null,null,null,null,null,null,"",null,null,"","",null,"MP80","Master Pro 80+",null,null,"MA40","Master Amateur 40+",null,null,"FA40","Women Master Am 40+",null,"FJ12","Junior Girls < 12"]
[null,null,null,null,null,null,null,null,null,null,null,"",null,null,"","",null,"FPO","Open Women",null,null,"MA50","Master Amateur 50+",null,null,"FA50","Women Master Am 50+",null,"FJ10","Junior Girls < 10"]
[null,null,null,null,null,null,null,null,null,null,null,"",null,null,"","",null,"FP40","Women Master Pro 40+",null,null,"MA55","Master Amateur 55+",null,null,"FA55","Women Master Am 55+",null,"FJ08","Junior Girls < 8"]
[null,null,null,null,null,null,null,null,null,null,null,"",null,null,"","",null,"FP50","Women Master Pro 50+",null,null,"MA60","Master Amateur 60+",null,null,"FA60","Women Master Am 60+",null,"FJ06","Junior Girls < 6"]
[null,null,null,null,null,null,null,null,null,null,null,"",null,null,"","",null,"FP55","Women Master Pro 55+",null,null,"MA65","Master Amateur 65+",null,null,"FA65","Women Master Am 65+"]
[null,null,null,null,null,null,null,null,null,null,null,"",null,null,"","",null,"FP60","Women Master Pro 60+",null,null,"MA70","Master Amateur 70+",null,null,"FA70","Women Master Am 70+"]
[null,null,null,null,null,null,null,null,null,null,null,"",null,null,"","",null,"FP65","Women Master Pro 65+"]
[null,null,null,null,null,null,null,null,null,null,null,"",null,null,"","",null,"FP70","Women Master Pro 70+"]
[null,null,null,null,null,null,null,null,null,null,null,"",null,null,"",""]
[null,null,null,null,null,null,null,null,null,null,null,"",null,null,"","",null,"Instructions"]
[null,null,null,null,null,null,null,null,null,null,null,"",null,null,"","",null," - Enter players names in Proper Case = John Smith (Do NOT type in players as john smith or JOHN SMITH"]
[null,null,null,null,null,null,null,null,null,null,null,"",null,null,"","",null,"       or John SMITH, because the PDGA database cannot process official results in these formats)"]
[null,null,null,null,null,null,null,null,null,null,null,"",null,null,"","",null," - TOTAL column L adds up round scores automatically"]
[null,null,null,null,null,null,null,null,null,null,null,"",null,null,"","",null," - If your event included Semi and/or Final Rounds, enter those Scores in columns J & K."]
[null,null,null,null,null,null,null,null,null,null,null,"",null,null,"","",null," - Do not leave a blank line between one division and the next division."]
[null,null,null,null,null,null,null,null,null,null,null,"",null,null,"","",null," - Be sure to include the amounts of pro cash won in the Cash/Value column if event had Pro cash payout"]
[null,null,null,null,null,null,null,null,null,null,null,"",null,null,"","",null," - DO NOT include prize values in Cash/Value column for Ams who played Pro and declined cash, but DO add that"]
[null,null,null,null,null,null,null,null,null,null,null,"",null,null,"","",null,"       value in cell T23 on the Cover page so your event gets credit for total value paid out in Pro divisions."]
[null,null,null,null,null,null,null,null,null,null,null,"",null,null,"","",null," - Use a Sort button to sort players by division and score so places of finish reflect their place within their division"]
[null,null,null,null,null,null,null,null,null,null,null,"",null,null,"","",null,"       only and not their place within the overall event."]
[null,null,null,null,null,null,null,null,null,null,null,"",null,null,"","",null," - In column N, enter Yes for each amateur who declined accepting cash payout."]
[null,null,null,null,null,null,null,null,null,null,null,"",null,null,"",""]
[null,null,null,null,null,null,null,null,null,null,null,"",null,null,"","",null,"NOTES",null,null,"Type only in white"]
[null,null,null,null,null,null,null,null,null,null,null,"",null,null,"","",null,null,null,null,"or yellow boxes"]
[null,null,null,null,null,null,null,null,null,null,null,"",null,null,"","",null,"Do not insert or",null,null,"DO NOT TYPE IN"]
[null,null,null,null,null,null,null,null,null,null,null,"",null,null,"","",null,"delete rows. All ",null,null,"BLUE OR"]
[null,null,null,null,null,null,null,null,null,null,null,"",null,null,"","",null,"cells positioned",null,null,"GREEN BOXES!"]
[null,null,null,null,null,null,null,null,null,null,null,"",null,null,"","",null,"for data importing",null,null,"These all use"]
[null,null,null,null,null,null,null,null,null,null,null,"",null,null,"","",null,null,null,null,"automatic entries"]
[null,null,null,null,null,null,null,null,null,null,null,"",null,null,"","",null,null,"CD$ > US$"]
[null,null,null,null,null,null,null,null,null,null,null,"",null,null,"","",null,null,0.75]
[null,null,null,null,null,null,null,null,null,null,null,"",null,null,"",""]
[null,null,null,null,null,null,null,null,null,null,null,"",null,null,"",""]
[null,null,null,null,null,null,null,null,null,null,null,"",null,null,"",""]
[null,null,null,null,null,null,null,null,null,null,null,"",null,null,"",""]
[null,null,null,null,null,null,null,null,null,null,null,"",null,null,"",""]
[null,null,null,null,null,null,null,null,null,null,null,"",null,null,"",""]
[null,null,null,null,null,null,null,null,null,null,null,"",null,null,"",""]
[null,null,null,null,null,null,null,null,null,null,null,"",null,null,"",""]
[null,null,null,null,null,null,null,null,null,null,null,"",null,null,"",""]
[null,null,null,null,null,null,null,null,null,null,null,"",null,null,"",""]
[null,null,null,null,null,null,null,null,null,null,null,"",null,null,"",""]
[null,null,null,null,null,null,null,null,null,null,null,"",null,null,"",""]
[null,null,null,null,null,null,null,null,null,null,null,"",null,null,"",""]
[null,null,null,null,null,null,null,null,null,null,null,"",null,null,"",""]
[null,null,null,null,null,null,null,null,null,null,null,"",null,null,"",""]
[null,null,null,null,null,null,null,null,null,null,null,"",null,null,"",""]
[null,null,null,null,null,null,null,null,null,null,null,"",null,null,"",""]
[null,null,null,null,null,null,null,null,null,null,null,"",null,null,"",""]
[null,null,null,null,null,null,null,null,null,null,null,"",null,null,"",""]
[null,null,null,null,null,null,null,null,null,null,null,"",null,null,"",""]
[null,null,null,null,null,null,null,null,null,null,null,"",null,null,"",""]
[null,null,null,null,null,null,null,null,null,null,null,"",null,null,"",""]
[null,null,null,null,null,null,null,null,null,null,null,"",null,null,"",""]
[null,null,null,null,null,null,null,null,null,null,null,"",null,null,"",""]
[null,null,null,null,null,null,null,null,null,null,null,"",null,null,"",""]
[null,null,null,null,null,null,null,null,null,null,null,"",null,null,"",""]
[null,null,null,null,null,null,null,null,null,null,null,"",null,null,"",""]
[null,null,null,null,null,null,null,null,null,null,null,{"$f":"IF(SUM(G74:K74)=0,\"\",IF(SUM(G74:K74)>=888,\"DNF\",SUM(G74:K74)))","v":""},null,null,"",""]
[null,null,null,null,null,null,null,null,null,null,null,"",null,null,{"$f":"CONCATENATE(A75,B75)","v":""},{"$f":"IF(M75<>\"\",M75*S$46,\"\")","v":""}]
[null,null,null,null,null,null,null,null,null,null,null,"",null,null,"",""]
[null,null,null,null,null,null,null,null,null,null,null,"",null,null,"",""]
[null,null,null,null,null,null,null,null,null,null,null,"",null,null,"",""]
[null,null,null,null,null,null,null,null,null,null,null,"",null,null,"",""]
[null,null,null,null,null,null,null,null,null,null,null,"",null,null,"",""]
[null,null,null,null,null,null,null,null,null,null,null,"",null,null,"",""]
[null,null,null,null,null,null,null,null,null,null,null,"",null,null,"",""]
[null,null,null,null,null,null,null,null,null,null,null,"",null,null,"",""]
[null,null,null,null,null,null,null,null,null,null,null,"",null,null,"",""]
[null,null,null,null,null,null,null,null,null,null,null,"",null,null,"",""]
[null,null,null,null,null,null,null,null,null,null,null,"",null,null,"",""]
[null,null,null,null,null,null,null,null,null,null,null,"",null,null,"",""]
[null,null,null,null,null,null,null,null,null,null,null,"",null,null,"",""]
[null,null,null,null,null,null,null,null,null,null,null,"",null,null,"",""]
[null,null,null,null,null,null,null,null,null,null,null,"",null,null,"",""]
[null,null,null,null,null,null,null,null,null,null,null,"",null,null,"",""]
[null,null,null,null,null,null,null,null,null,null,null,"",null,null,"",""]
[null,null,null,null,null,null,null,null,null,null,null,"",null,null,"",""]
[null,null,null,null,null,null,null,null,null,null,null,"",null,null,"",""]
[null,null,null,null,null,null,null,null,null,null,null,"",null,null,"",""]
[null,null,null,null,null,null,null,null,null,null,null,"",null,null,"",""]
[null,null,null,null,null,null,null,null,null,null,null,"",null,null,"",""]
[null,null,null,null,null,null,null,null,null,null,null,"",null,null,"",""]
[null,null,null,null,null,null,null,null,null,null,null,"",null,null,"",""]
[null,null,null,null,null,null,null,null,null,null,null,"",null,null,"",""]
[null,null,null,null,null,null,null,null,null,null,null,"",null,null,"",""]
[null,null,null,null,null,null,null,null,null,null,null,"",null,null,"",""]
[null,null,null,null,null,null,null,null,null,null,null,"",null,null,"",""]
[null,null,null,null,null,null,null,null,null,null,null,"",null,null,"",""]
[null,null,null,null,null,null,null,null,null,null,null,"",null,null,"",""]
[null,null,null,null,null,null,null,null,null,null,null,"",null,null,"",""]
[null,null,null,null,null,null,null,null,null,null,null,"",null,null,"",""]
[null,null,null,null,null,null,null,null,null,null,null,"",null,null,"",""]
[null,null,null,null,null,null,null,null,null,null,null,"",null,null,"",""]
[null,null,null,null,null,null,null,null,null,null,null,"",null,null,"",""]
[null,null,null,null,null,null,null,null,null,null,null,"",null,null,"",""]
[null,null,null,null,null,null,null,null,null,null,null,"",null,null,"",""]
[null,null,null,null,null,null,null,null,null,null,null,"",null,null,"",""]
[null,null,null,null,null,null,null,null,null,null,null,"",null,null,"",""]
[null,null,null,null,null,null,null,null,null,null,null,"",null,null,"",""]
[null,null,null,null,null,null,null,null,null,null,null,"",null,null,"",""]
[null,null,null,null,null,null,null,null,null,null,null,"",null,null,"",""]
[null,null,null,null,null,null,null,null,null,null,null,"",null,null,"",""]
[null,null,null,null,null,null,null,null,null,null,null,"",null,null,"",""]
[null,null,null,null,null,null,null,null,null,null,null,"",null,null,"",""]
[null,null,null,null,null,null,null,null,null,null,null,"",null,null,"",""]
[null,null,null,null,null,null,null,null,null,null,null,"",null,null,"",""]
[null,null,null,null,null,null,null,null,null,null,null,"",null,null,"",""]
[null,null,null,null,null,null,null,null,null,null,null,"",null,null,"",""]
[null,null,null,null,null,null,null,null,null,null,null,"",null,null,"",""]
[null,null,null,null,null,null,null,null,null,null,null,"",null,null,"",""]
[null,null,null,null,null,null,null,null,null,null,null,"",null,null,"",""]
[null,null,null,null,null,null,null,null,null,null,null,"",null,null,"",""]
[null,null,null,null,null,null,null,null,null,null,null,"",null,null,"",""]
[null,null,null,null,null,null,null,null,null,null,null,"",null,null,"",""]
[null,null,null,null,null,null,null,null,null,null,null,"",null,null,"",""]
[null,null,null,null,null,null,null,null,null,null,null,"",null,null,"",""]
[null,null,null,null,null,null,null,null,null,null,null,"",null,null,"",""]
[null,null,null,null,null,null,null,null,null,null,null,"",null,null,"",""]
[null,null,null,null,null,null,null,null,null,null,null,"",null,null,"",""]
[null,null,null,null,null,null,null,null,null,null,null,"",null,null,"",""]
[null,null,null,null,null,null,null,null,null,null,null,"",null,null,"",""]
[null,null,null,null,null,null,null,null,null,null,null,{"$f":"IF(SUM(G138:K138)=0,\"\",IF(SUM(G138:K138)>=888,\"DNF\",SUM(G138:K138)))","v":""},null,null,"",""]
[null,null,null,null,null,null,null,null,null,null,null,"",null,null,{"$f":"CONCATENATE(A139,B139)","v":""},{"$f":"IF(M139<>\"\",M139*S$46,\"\")","v":""}]
[null,null,null,null,null,null,null,null,null,null,null,"",null,null,"",""]
[null,null,null,null,null,null,null,null,null,null,null,"",null,null,"",""]
[null,null,null,null,null,null,null,null,null,null,null,"",null,null,"",""]
[null,null,null,null,null,null,null,null,null,null,null,"",null,null,"",""]
[null,null,null,null,null,null,null,null,null,null,null,"",null,null,"",""]
[null,null,null,null,null,null,null,null,null,null,null,"",null,null,"",""]
[null,null,null,null,null,null,null,null,null,null,null,"",null,null,"",""]
[null,null,null,null,null,null,null,null,null,null,null,"",null,null,"",""]
[null,null,null,null,null,null,null,null,null,null,null,"",null,null,"",""]
[null,null,null,null,null,null,null,null,null,null,null,"",null,null,"",""]
[null,null,null,null,null,null,null,null,null,null,null,"",null,null,"",""]
[null,null,null,null,null,null,null,null,null,null,null,"",null,null,"",""]
[null,null,null,null,null,null,null,null,null,null,null,"",null,null,"",""]
[null,null,null,null,null,null,null,null,null,null,null,"",null,null,"",""]
[null,null,null,null,null,null,null,null,null,null,null,"",null,null,"",""]
[null,null,null,null,null,null,null,null,null,null,null,"",null,null,"",""]
[null,null,null,null,null,null,null,null,null,null,null,"",null,null,"",""]
[null,null,null,null,null,null,null,null,null,null,null,"",null,null,"",""]
[null,null,null,null,null,null,null,null,null,null,null,"",null,null,"",""]
[null,null,null,null,null,null,null,null,null,null,null,"",null,null,"",""]
[null,null,null,null,null,null,null,null,null,null,null,"",null,null,"",""]
[null,null,null,null,null,null,null,null,null,null,null,"",null,null,"",""]
[null,null,null,null,null,null,null,null,null,null,null,"",null,null,"",""]
[null,null,null,null,null,null,null,null,null,null,null,"",null,null,"",""]
[null,null,null,null,null,null,null,null,null,null,null,"",null,null,"",""]
[null,null,null,null,null,null,null,null,null,null,null,"",null,null,"",""]
[null,null,null,null,null,null,null,null,null,null,null,"",null,null,"",""]
[null,null,null,null,null,null,null,null,null,null,null,"",null,null,"",""]
[null,null,null,null,null,null,null,null,null,null,null,"",null,null,"",""]
[null,null,null,null,null,null,null,null,null,null,null,"",null,null,"",""]
[null,null,null,null,null,null,null,null,null,null,null,"",null,null,"",""]
[null,null,null,null,null,null,null,null,null,null,null,"",null,null,"",""]
[null,null,null,null,null,null,null,null,null,null,null,"",null,null,"",""]
[null,null,null,null,null,null,null,null,null,null,null,"",null,null,"",""]
[null,null,null,null,null,null,null,null,null,null,null,"",null,null,"",""]
[null,null,null,null,null,null,null,null,null,null,null,"",null,null,"",""]
[null,null,null,null,null,null,null,null,null,null,null,"",null,null,"",""]
[null,null,null,null,null,null,null,null,null,null,null,"",null,null,"",""]
[null,null,null,null,null,null,null,null,null,null,null,"",null,null,"",""]
[null,null,null,null,null,null,null,null,null,null,null,"",null,null,"",""]
[null,null,null,null,null,null,null,null,null,null,null,"",null,null,"",""]
[null,null,null,null,null,null,null,null,null,null,null,"",null,null,"",""]
[null,null,null,null,null,null,null,null,null,null,null,"",null,null,"",""]
[null,null,null,null,null,null,null,null,null,null,null,"",null,null,"",""]
[null,null,null,null,null,null,null,null,null,null,null,"",null,null,"",""]
[null,null,null,null,null,null,null,null,null,null,null,"",null,null,"",""]
[null,null,null,null,null,null,null,null,null,null,null,"",null,null,"",""]
[null,null,null,null,null,null,null,null,null,null,null,"",null,null,"",""]
[null,null,null,null,null,null,null,null,null,null,null,"",null,null,"",""]
[null,null,null,null,null,null,null,null,null,null,null,"",null,null,"",""]
[null,null,null,null,null,null,null,null,null,null,null,"",null,null,"",""]
[null,null,null,null,null,null,null,null,null,null,null,"",null,null,"",""]
[null,null,null,null,null,null,null,null,null,null,null,"",null,null,"",""]
[null,null,null,null,null,null,null,null,null,null,null,"",null,null,"",""]
[null,null,null,null,null,null,null,null,null,null,null,"",null,null,"",""]
[null,null,null,null,null,null,null,null,null,null,null,"",null,null,"",""]
[null,null,null,null,null,null,null,null,null,null,null,"",null,null,"",""]
[null,null,null,null,null,null,null,null,null,null,null,"",null,null,"",""]
[null,null,null,null,null,null,null,null,null,null,null,"",null,null,"",""]
[null,null,null,null,null,null,null,null,null,null,null,"",null,null,"",""]
[null,null,null,null,null,null,null,null,null,null,null,"",null,null,"",""]
[null,null,null,null,null,null,null,null,null,null,null,"",null,null,"",""]
[null,null,null,null,null,null,null,null,null,null,null,{"$f":"IF(SUM(G202:K202)=0,\"\",IF(SUM(G202:K202)>=888,\"DNF\",SUM(G202:K202)))","v":""},null,null,"",""]
[null,null,null,null,null,null,null,null,null,null,null,"",null,null,{"$f":"CONCATENATE(A203,B203)","v":""},{"$f":"IF(M203<>\"\",M203*S$46,\"\")","v":""}]
[null,null,null,null,null,null,null,null,null,null,null,"",null,null,"",""]
[null,null,null,null,null,null,null,null,null,null,null,"",null,null,"",""]
[null,null,null,null,null,null,null,null,null,null,null,"",null,null,"",""]
[null,null,null,null,null,null,null,null,null,null,null,"",null,null,"",""]
[null,null,null,null,null,null,null,null,null,null,null,"",null,null,"",""]
[null,null,null,null,null,null,null,null,null,null,null,"",null,null,"",""]
[null,null,null,null,null,null,null,null,null,null,null,"",null,null,"",""]
[null,null,null,null,null,null,null,null,null,null,null,"",null,null,"",""]
[null,null,null,null,null,null,null,null,null,null,null,"",null,null,"",""]
[null,null,null,null,null,null,null,null,null,null,null,"",null,null,"",""]
[null,null,null,null,null,null,null,null,null,null,null,"",null,null,"",""]
[null,null,null,null,null,null,null,null,null,null,null,"",null,null,"",""]
[null,null,null,null,null,null,null,null,null,null,null,"",null,null,"",""]
[null,null,null,null,null,null,null,null,null,null,null,"",null,null,"",""]
[null,null,null,null,null,null,null,null,null,null,null,"",null,null,"",""]
[null,null,null,null,null,null,null,null,null,null,null,"",null,null,"",""]
[null,null,null,null,null,null,null,null,null,null,null,"",null,null,"",""]
[null,null,null,null,null,null,null,null,null,null,null,"",null,null,"",""]
[null,null,null,null,null,null,null,null,null,null,null,"",null,null,"",""]
[null,null,null,null,null,null,null,null,null,null,null,"",null,null,"",""]
[null,null,null,null,null,null,null,null,null,null,null,"",null,null,"",""]
[null,null,null,null,null,null,null,null,null,null,null,"",null,null,"",""]
[null,null,null,null,null,null,null,null,null,null,null,"",null,null,"",""]
[null,null,null,null,null,null,null,null,null,null,null,"",null,null,"",""]
[null,null,null,null,null,null,null,null,null,null,null,"",null,null,"",""]
[null,null,null,null,null,null,null,null,null,null,null,"",null,null,"",""]
[null,null,null,null,null,null,null,null,null,null,null,"",null,null,"",""]
[null,null,null,null,null,null,null,null,null,null,null,"",null,null,"",""]
[null,null,null,null,null,null,null,null,null,null,null,"",null,null,"",""]
[null,null,null,null,null,null,null,null,null,null,null,"",null,null,"",""]
[null,null,null,null,null,null,null,null,null,null,null,"",null,null,"",""]
[null,null,null,null,null,null,null,null,null,null,null,"",null,null,"",""]
[null,null,null,null,null,null,null,null,null,null,null,"",null,null,"",""]
[null,null,null,null,null,null,null,null,null,null,null,"",null,null,"",""]
[null,null,null,null,null,null,null,null,null,null,null,"",null,null,"",""]
[null,null,null,null,null,null,null,null,null,null,null,"",null,null,"",""]
[null,null,null,null,null,null,null,null,null,null,null,"",null,null,"",""]
[null,null,null,null,null,null,null,null,null,null,null,"",null,null,"",""]
[null,null,null,null,null,null,null,null,null,null,null,"",null,null,"",""]
[null,null,null,null,null,null,null,null,null,null,null,"",null,null,"",""]
[null,null,null,null,null,null,null,null,null,null,null,"",null,null,"",""]
[null,null,null,null,null,null,null,null,null,null,null,"",null,null,"",""]
[null,null,null,null,null,null,null,null,null,null,null,"",null,null,"",""]
[null,null,null,null,null,null,null,null,null,null,null,"",null,null,"",""]
[null,null,null,null,null,null,null,null,null,null,null,"",null,null,"",""]
[null,null,null,null,null,null,null,null,null,null,null,"",null,null,"",""]
[null,null,null,null,null,null,null,null,null,null,null,"",null,null,"",""]
[null,null,null,null,null,null,null,null,null,null,null,"",null,null,"",""]
[null,null,null,null,null,null,null,null,null,null,null,"",null,null,"",""]
[null,null,null,null,null,null,null,null,null,null,null,"",null,null,"",""]
[null,null,null,null,null,null,null,null,null,null,null,"",null,null,"",""]
[null,null,null,null,null,null,null,null,null,null,null,"",null,null,"",""]
[null,null,null,null,null,null,null,null,null,null,null,"",null,null,"",""]
[null,null,null,null,null,null,null,null,null,null,null,"",null,null,"",""]
[null,null,null,null,null,null,null,null,null,null,null,"",null,null,"",""]
[null,null,null,null,null,null,null,null,null,null,null,"",null,null,"",""]
[null,null,null,null,null,null,null,null,null,null,null,"",null,null,"",""]
[null,null,null,null,null,null,null,null,null,null,null,"",null,null,"",""]
[null,null,null,null,null,null,null,null,null,null,null,"",null,null,"",""]
[null,null,null,null,null,null,null,null,null,null,null,"",null,null,"",""]
[null,null,null,null,null,null,null,null,null,null,null,"",null,null,"",""]
[null,null,null,null,null,null,null,null,null,null,null,"",null,null,"",""]
[null,null,null,null,null,null,null,null,null,null,null,{"$f":"IF(SUM(G266:K266)=0,\"\",IF(SUM(G266:K266)>=888,\"DNF\",SUM(G266:K266)))","v":""},null,null,"",""]
[null,null,null,null,null,null,null,null,null,null,null,"",null,null,{"$f":"CONCATENATE(A267,B267)","v":""},{"$f":"IF(M267<>\"\",M267*S$46,\"\")","v":""}]
[null,null,null,null,null,null,null,null,null,null,null,"",null,null,"",""]
[null,null,null,null,null,null,null,null,null,null,null,"",null,null,"",""]
[null,null,null,null,null,null,null,null,null,null,null,"",null,null,"",""]
[null,null,null,null,null,null,null,null,null,null,null,"",null,null,"",""]
[null,null,null,null,null,null,null,null,null,null,null,"",null,null,"",""]
[null,null,null,null,null,null,null,null,null,null,null,"",null,null,"",""]
[null,null,null,null,null,null,null,null,null,null,null,"",null,null,"",""]
[null,null,null,null,null,null,null,null,null,null,null,"",null,null,"",""]
[null,null,null,null,null,null,null,null,null,null,null,"",null,null,"",""]
[null,null,null,null,null,null,null,null,null,null,null,"",null,null,"",""]
[null,null,null,null,null,null,null,null,null,null,null,"",null,null,"",""]
[null,null,null,null,null,null,null,null,null,null,null,"",null,null,"",""]
[null,null,null,null,null,null,null,null,null,null,null,"",null,null,"",""]
[null,null,null,null,null,null,null,null,null,null,null,"",null,null,"",""]
[null,null,null,null,null,null,null,null,null,null,null,"",null,null,"",""]
[null,null,null,null,null,null,null,null,null,null,null,"",null,null,"",""]
[null,null,null,null,null,null,null,null,null,null,null,"",null,null,"",""]
[null,null,null,null,null,null,null,null,null,null,null,"",null,null,"",""]
[null,null,null,null,null,null,null,null,null,null,null,"",null,null,"",""]
[null,null,null,null,null,null,null,null,null,null,null,"",null,null,"",""]
[null,null,null,null,null,null,null,null,null,null,null,"",null,null,"",""]
[null,null,null,null,null,null,null,null,null,null,null,"",null,null,"",""]
[null,null,null,null,null,null,null,null,null,null,null,"",null,null,"",""]
[null,null,null,null,null,null,null,null,null,null,null,"",null,null,"",""]
[null,null,null,null,null,null,null,null,null,null,null,"",null,null,"",""]
[null,null,null,null,null,null,null,null,null,null,null,"",null,null,"",""]
[null,null,null,null,null,null,null,null,null,null,null,"",null,null,"",""]
[null,null,null,null,null,null,null,null,null,null,null,"",null,null,"",""]
[null,null,null,null,null,null,null,null,null,null,null,"",null,null,"",""]
[null,null,null,null,null,null,null,null,null,null,null,"",null,null,"",""]
[null,null,null,null,null,null,null,null,null,null,null,"",null,null,"",""]
[null,null,null,null,null,null,null,null,null,null,null,"",null,null,"",""]
[null,null,null,null,null,null,null,null,null,null,null,"",null,null,"",""]
[null,null,null,null,null,null,null,null,null,null,null,"",null,null,"",""]
[null,null,null,null,null,null,null,null,null,null,null,"",null,null,"",""]
[null,null,null,null,null,null,null,null,null,null,null,"",null,null,"",""]
[null,null,null,null,null,null,null,null,null,null,null,"",null,null,"",""]
[null,null,null,null,null,null,null,null,null,null,null,"",null,null,"",""]
[null,null,null,null,null,null,null,null,null,null,null,"",null,null,"",""]
[null,null,null,null,null,null,null,null,null,null,null,"",null,null,"",""]
[null,null,null,null,null,null,null,null,null,null,null,"",null,null,"",""]
[null,null,null,null,null,null,null,null,null,null,null,"",null,null,"",""]
[null,null,null,null,null,null,null,null,null,null,null,"",null,null,"",""]
[null,null,null,null,null,null,null,null,null,null,null,"",null,null,"",""]
[null,null,null,null,null,null,null,null,null,null,null,"",null,null,"",""]
[null,null,null,null,null,null,null,null,null,null,null,"",null,null,"",""]
[null,null,null,null,null,null,null,null,null,null,null,"",null,null,"",""]
[null,null,null,null,null,null,null,null,null,null,null,"",null,null,"",""]
[null,null,null,null,null,null,null,null,null,null,null,"",null,null,"",""]
[null,null,null,null,null,null,null,null,null,null,null,"",null,null,"",""]
[null,null,null,null,null,null,null,null,null,null,null,"",null,null,"",""]
[null,null,null,null,null,null,null,null,null,null,null,"",null,null,"",""]
[null,null,null,null,null,null,null,null,null,null,null,"",null,null,"",""]
[null,null,null,null,null,null,null,null,null,null,null,"",null,null,"",""]
[null,null,null,null,null,null,null,null,null,null,null,"",null,null,"",""]
[null,null,null,null,null,null,null,null,null,null,null,"",null,null,"",""]
[null,null,null,null,null,null,null,null,null,null,null,"",null,null,"",""]
[null,null,null,null,null,null,null,null,null,null,null,"",null,null,"",""]
[null,null,null,null,null,null,null,null,null,null,null,"",null,null,"",""]
[null,null,null,null,null,null,null,null,null,null,null,"",null,null,"",""]
[null,null,null,null,null,null,null,null,null,null,null,"",null,null,"",""]
[null,null,null,null,null,null,null,null,null,null,null,"",null,null,"",""]
[null,null,null,null,null,null,null,null,null,null,null,{"$f":"IF(SUM(G330:K330)=0,\"\",IF(SUM(G330:K330)>=888,\"DNF\",SUM(G330:K330)))","v":""},null,null,"",""]
[null,null,null,null,null,null,null,null,null,null,null,"",null,null,{"$f":"CONCATENATE(A331,B331)","v":""},{"$f":"IF(M331<>\"\",M331*S$46,\"\")","v":""}]
[null,null,null,null,null,null,null,null,null,null,null,"",null,null,"",""]
[null,null,null,null,null,null,null,null,null,null,null,"",null,null,"",""]
[null,null,null,null,null,null,null,null,null,null,null,"",null,null,"",""]
[null,null,null,null,null,null,null,null,null,null,null,"",null,null,"",""]
[null,null,null,null,null,null,null,null,null,null,null,"",null,null,"",""]
[null,null,null,null,null,null,null,null,null,null,null,"",null,null,"",""]
[null,null,null,null,null,null,null,null,null,null,null,"",null,null,"",""]
[null,null,null,null,null,null,null,null,null,null,null,"",null,null,"",""]
[null,null,null,null,null,null,null,null,null,null,null,"",null,null,"",""]
[null,null,null,null,null,null,null,null,null,null,null,"",null,null,"",""]
[null,null,null,null,null,null,null,null,null,null,null,"",null,null,"",""]
[null,null,null,null,null,null,null,null,null,null,null,"",null,null,"",""]
[null,null,null,null,null,null,null,null,null,null,null,"",null,null,"",""]
[null,null,null,null,null,null,null,null,null,null,null,"",null,null,"",""]
[null,null,null,null,null,null,null,null,null,null,null,"",null,null,"",""]
[null,null,null,null,null,null,null,null,null,null,null,"",null,null,"",""]
[null,null,null,null,null,null,null,null,null,null,null,"",null,null,"",""]
[null,null,null,null,null,null,null,null,null,null,null,"",null,null,"",""]
[null,null,null,null,null,null,null,null,null,null,null,"",null,null,"",""]
[null,null,null,null,null,null,null,null,null,null,null,"",null,null,"",""]
[null,null,null,null,null,null,null,null,null,null,null,"",null,null,"",""]
[null,null,null,null,null,null,null,null,null,null,null,"",null,null,"",""]
[null,null,null,null,null,null,null,null,null,null,null,"",null,null,"",""]
[null,null,null,null,null,null,null,null,null,null,null,"",null,null,"",""]
[null,null,null,null,null,null,null,null,null,null,null,"",null,null,"",""]
[null,null,null,null,null,null,null,null,null,null,null,"",null,null,"",""]
[null,null,null,null,null,null,null,null,null,null,null,"",null,null,"",""]
[null,null,null,null,null,null,null,null,null,null,null,"",null,null,"",""]
[null,null,null,null,null,null,null,null,null,null,null,"",null,null,"",""]
[null,null,null,null,null,null,null,null,null,null,null,"",null,null,"",""]
[null,null,null,null,null,null,null,null,null,null,null,"",null,null,"",""]
[null,null,null,null,null,null,null,null,null,null,null,"",null,null,"",""]
[null,null,null,null,null,null,null,null,null,null,null,"",null,null,"",""]
[null,null,null,null,null,null,null,null,null,null,null,"",null,null,"",""]
[null,null,null,null,null,null,null,null,null,null,null,"",null,null,"",""]
[null,null,null,null,null,null,null,null,null,null,null,"",null,null,"",""]
[null,null,null,null,null,null,null,null,null,null,null,"",null,null,"",""]
[null,null,null,null,null,null,null,null,null,null,null,"",null,null,"",""]
[null,null,null,null,null,null,null,null,null,null,null,"",null,null,"",""]
[null,null,null,null,null,null,null,null,null,null,null,"",null,null,"",""]
[null,null,null,null,null,null,null,null,null,null,null,"",null,null,"",""]
[null,null,null,null,null,null,null,null,null,null,null,"",null,null,"",""]
[null,null,null,null,null,null,null,null,null,null,null,"",null,null,"",""]
[null,null,null,null,null,null,null,null,null,null,null,"",null,null,"",""]
[null,null,null,null,null,null,null,null,null,null,null,"",null,null,"",""]
[null,null,null,null,null,null,null,null,null,null,null,"",null,null,"",""]
[null,null,null,null,null,null,null,null,null,null,null,"",null,null,"",""]
[null,null,null,null,null,null,null,null,null,null,null,"",null,null,"",""]
[null,null,null,null,null,null,null,null,null,null,null,"",null,null,"",""]
[null,null,null,null,null,null,null,null,null,null,null,"",null,null,"",""]
[null,null,null,null,null,null,null,null,null,null,null,"",null,null,"",""]
[null,null,null,null,null,null,null,null,null,null,null,"",null,null,"",""]
[null,null,null,null,null,null,null,null,null,null,null,"",null,null,"",""]
[null,null,null,null,null,null,null,null,null,null,null,"",null,null,"",""]
[null,null,null,null,null,null,null,null,null,null,null,"",null,null,"",""]
[null,null,null,null,null,null,null,null,null,null,null,"",null,null,"",""]
[null,null,null,null,null,null,null,null,null,null,null,"",null,null,"",""]
[null,null,null,null,null,null,null,null,null,null,null,"",null,null,"",""]
[null,null,null,null,null,null,null,null,null,null,null,"",null,null,"",""]
[null,null,null,null,null,null,null,null,null,null,null,"",null,null,"",""]
[null,null,null,null,null,null,null,null,null,null,null,"",null,null,"",""]
[null,null,null,null,null,null,null,null,null,null,null,"",null,null,"",""]
[null,null,null,null,null,null,null,null,null,null,null,{"$f":"IF(SUM(G394:K394)=0,\"\",IF(SUM(G394:K394)>=888,\"DNF\",SUM(G394:K394)))","v":""},null,null,"",""]
[null,null,null,null,null,null,null,null,null,null,null,"",null,null,{"$f":"CONCATENATE(A395,B395)","v":""},{"$f":"IF(M395<>\"\",M395*S$46,\"\")","v":""}]
[null,null,null,null,null,null,null,null,null,null,null,"",null,null,"",""]
[null,null,null,null,null,null,null,null,null,null,null,"",null,null,"",""]
[null,null,null,null,null,null,null,null,null,null,null,"",null,null,"",""]
[null,null,null,null,null,null,null,null,null,null,null,"",null,null,"",""]
[null,null,null,null,null,null,null,null,null,null,null,"",null,null,"",""]
[null,null,null,null,null,null,null,null,null,null,null,"",null,null,"",""]
[null,null,null,null,null,null,null,null,null,null,null,"",null,null,"",""]
[null,null,null,null,null,null,null,null,null,null,null,"",null,null,"",""]
[null,null,null,null,null,null,null,null,null,null,null,"",null,null,"",""]
[null,null,null,null,null,null,null,null,null,null,null,"",null,null,"",""]
[null,null,null,null,null,null,null,null,null,null,null,"",null,null,"",""]
[null,null,null,null,null,null,null,null,null,null,null,"",null,null,"",""]
[null,null,null,null,null,null,null,null,null,null,null,"",null,null,"",""]
[null,null,null,null,null,null,null,null,null,null,null,"",null,null,"",""]
[null,null,null,null,null,null,null,null,null,null,null,"",null,null,"",""]
[null,null,null,null,null,null,null,null,null,null,null,"",null,null,"",""]
[null,null,null,null,null,null,null,null,null,null,null,"",null,null,"",""]
[null,null,null,null,null,null,null,null,null,null,null,"",null,null,"",""]
[null,null,null,null,null,null,null,null,null,null,null,"",null,null,"",""]
[null,null,null,null,null,null,null,null,null,null,null,"",null,null,"",""]
[null,null,null,null,null,null,null,null,null,null,null,"",null,null,"",""]
[null,null,null,null,null,null,null,null,null,null,null,"",null,null,"",""]
[null,null,null,null,null,null,null,null,null,null,null,"",null,null,"",""]
[null,null,null,null,null,null,null,null,null,null,null,"",null,null,"",""]
[null,null,null,null,null,null,null,null,null,null,null,"",null,null,"",""]
[null,null,null,null,null,null,null,null,null,null,null,"",null,null,"",""]
[null,null,null,null,null,null,null,null,null,null,null,"",null,null,"",""]
[null,null,null,null,null,null,null,null,null,null,null,"",null,null,"",""]
[null,null,null,null,null,null,null,null,null,null,null,"",null,null,"",""]
[null,null,null,null,null,null,null,null,null,null,null,"",null,null,"",""]
[null,null,null,null,null,null,null,null,null,null,null,"",null,null,"",""]
[null,null,null,null,null,null,null,null,null,null,null,"",null,null,"",""]
[null,null,null,null,null,null,null,null,null,null,null,"",null,null,"",""]
[null,null,null,null,null,null,null,null,null,null,null,"",null,null,"",""]
[null,null,null,null,null,null,null,null,null,null,null,"",null,null,"",""]
[null,null,null,null,null,null,null,null,null,null,null,"",null,null,"",""]
[null,null,null,null,null,null,null,null,null,null,null,"",null,null,"",""]
[null,null,null,null,null,null,null,null,null,null,null,"",null,null,"",""]
[null,null,null,null,null,null,null,null,null,null,null,"",null,null,"",""]
[null,null,null,null,null,null,null,null,null,null,null,"",null,null,"",""]
[null,null,null,null,null,null,null,null,null,null,null,"",null,null,"",""]
[null,null,null,null,null,null,null,null,null,null,null,"",null,null,"",""]
[null,null,null,null,null,null,null,null,null,null,null,"",null,null,"",""]
[null,null,null,null,null,null,null,null,null,null,null,"",null,null,"",""]
[null,null,null,null,null,null,null,null,null,null,null,"",null,null,"",""]
[null,null,null,null,null,null,null,null,null,null,null,"",null,null,"",""]
[null,null,null,null,null,null,null,null,null,null,null,"",null,null,"",""]
[null,null,null,null,null,null,null,null,null,null,null,"",null,null,"",""]
[null,null,null,null,null,null,null,null,null,null,null,"",null,null,"",""]
[null,null,null,null,null,null,null,null,null,null,null,"",null,null,"",""]
[null,null,null,null,null,null,null,null,null,null,null,"",null,null,"",""]
[null,null,null,null,null,null,null,null,null,null,null,"",null,null,"",""]
[null,null,null,null,null,null,null,null,null,null,null,"",null,null,"",""]
[null,null,null,null,null,null,null,null,null,null,null,"",null,null,"",""]
[null,null,null,null,null,null,null,null,null,null,null,"",null,null,"",""]
[null,null,null,null,null,null,null,null,null,null,null,"",null,null,"",""]
[null,null,null,null,null,null,null,null,null,null,null,"",null,null,"",""]
[null,null,null,null,null,null,null,null,null,null,null,"",null,null,"",""]
[null,null,null,null,null,null,null,null,null,null,null,"",null,null,"",""]
[null,null,null,null,null,null,null,null,null,null,null,"",null,null,"",""]
[null,null,null,null,null,null,null,null,null,null,null,"",null,null,"",""]
[null,null,null,null,null,null,null,null,null,null,null,"",null,null,"",""]
[null,null,null,null,null,null,null,null,null,null,null,{"$f":"IF(SUM(G458:K458)=0,\"\",IF(SUM(G458:K458)>=888,\"DNF\",SUM(G458:K458)))","v":""},null,null,"",""]
[null,null,null,null,null,null,null,null,null,null,null,"",null,null,{"$f":"CONCATENATE(A459,B459)","v":""},{"$f":"IF(M459<>\"\",M459*S$46,\"\")","v":""}]
[null,null,null,null,null,null,null,null,null,null,null,"",null,null,"",""]
[null,null,null,null,null,null,null,null,null,null,null,"",null,null,"",""]
[null,null,null,null,null,null,null,null,null,null,null,"",null,null,"",""]
[null,null,null,null,null,null,null,null,null,null,null,"",null,null,"",""]
[null,null,null,null,null,null,null,null,null,null,null,"",null,null,"",""]
[null,null,null,null,null,null,null,null,null,null,null,"",null,null,"",""]
[null,null,null,null,null,null,null,null,null,null,null,"",null,null,"",""]
[null,null,null,null,null,null,null,null,null,null,null,"",null,null,"",""]
[null,null,null,null,null,null,null,null,null,null,null,"",null,null,"",""]
[null,null,null,null,null,null,null,null,null,null,null,"",null,null,"",""]
[null,null,null,null,null,null,null,null,null,null,null,"",null,null,"",""]
[null,null,null,null,null,null,null,null,null,null,null,"",null,null,"",""]
[null,null,null,null,null,null,null,null,null,null,null,"",null,null,"",""]
[null,null,null,null,null,null,null,null,null,null,null,"",null,null,"",""]
[null,null,null,null,null,null,null,null,null,null,null,"",null,null,"",""]
[null,null,null,null,null,null,null,null,null,null,null,"",null,null,"",""]
[null,null,null,null,null,null,null,null,null,null,null,"",null,null,"",""]
[null,null,null,null,null,null,null,null,null,null,null,"",null,null,"",""]
[null,null,null,null,null,null,null,null,null,null,null,"",null,null,"",""]
[null,null,null,null,null,null,null,null,null,null,null,"",null,null,"",""]
[null,null,null,null,null,null,null,null,null,null,null,"",null,null,"",""]
[null,null,null,null,null,null,null,null,null,null,null,"",null,null,"",""]
[null,null,null,null,null,null,null,null,null,null,null,"",null,null,"",""]
[null,null,null,null,null,null,null,null,null,null,null,"",null,null,"",""]
[null,null,null,null,null,null,null,null,null,null,null,"",null,null,"",""]
[null,null,null,null,null,null,null,null,null,null,null,"",null,null,"",""]
[null,null,null,null,null,null,null,null,null,null,null,"",null,null,"",""]
[null,null,null,null,null,null,null,null,null,null,null,"",null,null,"",""]
[null,null,null,null,null,null,null,null,null,null,null,"",null,null,"",""]
[null,null,null,null,null,null,null,null,null,null,null,"",null,null,"",""]
[null,null,null,null,null,null,null,null,null,null,null,"",null,null,"",""]
[null,null,null,null,null,null,null,null,null,null,null,"",null,null,"",""]
[null,null,null,null,null,null,null,null,null,null,null,"",null,null,"",""]
[null,null,null,null,null,null,null,null,null,null,null,"",null,null,"",""]
[null,null,null,null,null,null,null,null,null,null,null,"",null,null,"",""]
[null,null,null,null,null,null,null,null,null,null,null,"",null,null,"",""]
[null,null,null,null,null,null,null,null,null,null,null,"",null,null,"",""]
[null,null,null,null,null,null,null,null,null,null,null,"",null,null,"",""]
[null,null,null,null,null,null,null,null,null,null,null,"",null,null,"",""]
[null,null,null,null,null,null,null,null,null,null,null,"",null,null,"",""]
[null,null,null,null,null,null,null,null,null,null,null,"",null,null,"",""]

{"sheet":"Pro.Payouts","index":5,"n_rows":103,"n_cols":60,"rows_kept":103,"cut":false,"hidden":false,"merged":[[84,0,84,5],[84,7,84,12],[84,14,84,19],[51,14,51,19],[20,14,20,19],[73,14,73,19],[73,0,73,5],[73,7,73,12],[72,7,72,12],[72,14,72,19],[72,0,72,5],[66,14,66,19],[0,0,0,5],[0,7,0,12],[0,14,0,19],[30,0,30,5],[30,7,30,12],[20,7,20,12],[30,14,30,19],[20,0,20,5]]}
["WOMEN PRO DIVISION",null,null,null,null,null,null,"WOMEN MASTER PRO 40+",null,null,null,null,null,null,"WOMEN MASTER PRO 50+",null,null,null,null,null,null,"Field","# paid"]
[null,null,null,null,"Enter Added Cash (or deduction) here* > ",null,null,null,null,null,null,"Enter Added Cash (or deduction) here* > ",null,null,null,null,null,null,"Enter Added Cash (or deduction) here* > ",0,null,null,40,45,50]
["# Paid",null,"Field Size",null,"Total Fees: ",{"$f":"Cover!G16","v":0},null,"# Paid",null,"Field Size",null,"Total Fees: ",{"$f":"Cover!G17","v":0},null,"# Paid",null,"Field Size",null,"Total Fees: ",{"$f":"Cover!G18","v":0},null,1,1,1,1,null,"Number of Places Paid"]
[{"$f":"VLOOKUP(C4,paypct,B5,FALSE)","v":{"$error":"#N/A"}},null,{"$f":"IF(Cover!F16=0,91,Cover!F16)","v":91},null,"Net Purse: ",{"$f":"F3+F2","v":0},null,{"$f":"VLOOKUP(J4,paypct,I5,FALSE)","v":{"$error":"#N/A"}},null,{"$f":"IF(Cover!F17=0,91,Cover!F17)","v":91},null,"Net Purse: ",{"$f":"M3+M2","v":0},null,{"$f":"VLOOKUP(Q4,paypct,P5,FALSE)","v":{"$error":"#N/A"}},null,{"$f":"IF(Cover!F18=0,91,Cover!F18)","v":91},null,"Net Purse: ",{"$f":"T3+T2","v":0},null,2,1,1,1,null,1,2,3,4,5,6,7,8,9,10,11,12,13,14,15,16,17,18,19,20,21,22,23,24,25,26,27,28,29,30,31,32,33]
[null,{"$f":"IF(E5=45%,3,IF(E5=50%,4,2))","v":2},null,"Choose Payout Percentage>",0.4,null,null,null,{"$f":"IF(L5=45%,3,IF(L5=50%,4,2))","v":2},null,"Choose Payout Percentage>",0.4,null,null,null,{"$f":"IF(S5=45%,3,IF(S5=50%,4,2))","v":2},null,"Choose Payout Percentage>",0.4,null,null,3,1,1,2,1,1,0.625,0.47499999999999998,0.41,0.36,0.33,0.3,0.28000000000000003,0.26800000000000002,0.26,0.25,0.23799999999999999,0.23200000000000001,0.22500000000000001,0.22,0.21,0.2,0.19,0.18,0.16500000000000001,0.152,0.14499999999999999,0.14199999999999999,0.14000000000000001,0.13700000000000001,0.13200000000000001,0.13,0.127,0.125,0.122,0.11799999999999999,0.115,0.112,1]
[null,"Prelim","Proposed","Round","Manual","Final",null,null,"Prelim","Proposed","Round","Manual","Final",null,null,"Prelim","Proposed","Round","Manual","Final",null,4,2,2,2,2,"·········",0.375,0.3,0.26,0.245,0.23,0.21,0.19,0.185,0.18,0.16500000000000001,0.16,0.155,0.15,0.14499999999999999,0.14000000000000001,0.13500000000000001,0.13,0.125,0.11799999999999999,0.115,0.112,0.11,0.107,0.105,0.1,9.8000000000000004E-2,9.5000000000000001E-2,9.2999999999999999E-2,0.09,8.6999999999999994E-2,8.5000000000000006E-2,8.2000000000000003E-2,2]
["Place","Factor","Payout $$","to $5","Adj. ","Place",null,"Place","Factor","Payout $$","to $5","Adj. ","Place",null,"Place","Factor","Payout $$","to $5","Adj. ","Place",null,5,2,2,3,3,"3rd","·········",0.22500000000000001,0.19,0.17,0.155,0.15,0.14499999999999999,0.14000000000000001,0.13,0.127,0.12,0.115,0.11,0.105,0.1,9.7000000000000003E-2,9.5000000000000001E-2,9.1999999999999998E-2,8.8999999999999996E-2,8.6999999999999994E-2,8.5000000000000006E-2,8.4000000000000005E-2,8.2000000000000003E-2,7.8E-2,7.5999999999999998E-2,7.4999999999999997E-2,7.2999999999999995E-2,7.0999999999999994E-2,6.8000000000000005E-2,6.5000000000000002E-2,6.3E-2,5.8000000000000003E-2,3]
[{"$f":"IF(ROW()-7>$A$4,\"\",ROW()-7)","v":{"$error":"#N/A"}},{"$f":"IF(A8=\"\",\"\",VLOOKUP(A8,_pay1,$A$4+1))","v":{"$error":"#N/A"}},{"$f":"IF(B8=\"\",\"\",$F$4*B8)","v":{"$error":"#N/A"}},{"$f":"IF(C8=\"\",\"\",INT((C8+2.5)/5)*5)","v":{"$error":"#N/A"}},null,null,null,{"$f":"IF(ROW()-7>$H$4,\"\",ROW()-7)","v":{"$error":"#N/A"}},{"$f":"IF(H8=\"\",\"\",VLOOKUP(H8,_pay1,$H$4+1))","v":{"$error":"#N/A"}},{"$f":"IF(I8=\"\",\"\",$M$4*I8)","v":{"$error":"#N/A"}},{"$f":"IF(J8=\"\",\"\",INT((J8+2.5)/5)*5)","v":{"$error":"#N/A"}},null,null,null,{"$f":"IF(ROW()-7>$O$4,\"\",ROW()-7)","v":{"$error":"#N/A"}},{"$f":"IF(O8=\"\",\"\",VLOOKUP(O8,_pay1,$O$4+1))","v":{"$error":"#N/A"}},{"$f":"IF(P8=\"\",\"\",$T$4*P8)","v":{"$error":"#N/A"}},{"$f":"IF(Q8=\"\",\"\",INT((Q8+2.5)/5)*5)","v":{"$error":"#N/A"}},null,null,null,6,2,3,3,4,null,"4th","·········",0.14000000000000001,0.125,0.12,0.11,0.115,0.11,0.1,9.8000000000000004E-2,9.5000000000000001E-2,0.09,8.5000000000000006E-2,8.4000000000000005E-2,8.3000000000000004E-2,8.1000000000000003E-2,0.08,7.8E-2,7.5999999999999998E-2,7.4999999999999997E-2,7.1999999999999995E-2,7.0999999999999994E-2,6.6000000000000003E-2,6.5000000000000002E-2,6.4000000000000001E-2,6.3E-2,6.0999999999999999E-2,5.8999999999999997E-2,5.6000000000000001E-2,5.5E-2,5.2999999999999999E-2,5.1999999999999998E-2,4]
[{"$f":"IF(ROW()-7>$A$4,\"\",ROW()-7)","v":{"$error":"#N/A"}},{"$f":"IF(A9=\"\",\"\",VLOOKUP(A9,_pay1,$A$4+1))","v":{"$error":"#N/A"}},{"$error":"#N/A"},{"$f":"IF(C9=\"\",\"\",INT((C9+2.5)/5)*5)","v":{"$error":"#N/A"}},null,null,null,{"$error":"#N/A"},{"$f":"IF(H9=\"\",\"\",VLOOKUP(H9,_pay1,$H$4+1))","v":{"$error":"#N/A"}},{"$error":"#N/A"},{"$f":"IF(J9=\"\",\"\",INT((J9+2.5)/5)*5)","v":{"$error":"#N/A"}},null,null,null,{"$error":"#N/A"},{"$f":"IF(O9=\"\",\"\",VLOOKUP(O9,_pay1,$O$4+1))","v":{"$error":"#N/A"}},{"$error":"#N/A"},{"$f":"IF(Q9=\"\",\"\",INT((Q9+2.5)/5)*5)","v":{"$error":"#N/A"}},null,null,null,7,3,3,4,5,"P",null,"5th","·········",0.1,9.5000000000000001E-2,9.5000000000000001E-2,0.09,8.5000000000000006E-2,8.1000000000000003E-2,0.08,7.6999999999999999E-2,7.4999999999999997E-2,7.0999999999999994E-2,6.9000000000000006E-2,6.8000000000000005E-2,6.7000000000000004E-2,6.5000000000000002E-2,6.5000000000000002E-2,6.4000000000000001E-2,6.3E-2,6.0999999999999999E-2,0.06,5.7000000000000002E-2,5.6000000000000001E-2,5.5E-2,5.3999999999999999E-2,5.1999999999999998E-2,0.05,4.9000000000000002E-2,4.8000000000000001E-2,4.8000000000000001E-2,4.8000000000000001E-2,5]
[{"$error":"#N/A"},{"$error":"#N/A"},{"$error":"#N/A"},{"$error":"#N/A"},null,null,null,{"$error":"#N/A"},{"$error":"#N/A"},{"$error":"#N/A"},{"$error":"#N/A"},null,null,null,{"$error":"#N/A"},{"$error":"#N/A"},{"$error":"#N/A"},{"$error":"#N/A"},null,null,null,8,3,4,4,6,null,"L",null,"6th","·········",7.0000000000000007E-2,7.4999999999999997E-2,7.0000000000000007E-2,6.7000000000000004E-2,6.7000000000000004E-2,6.5000000000000002E-2,6.4000000000000001E-2,6.0999999999999999E-2,0.06,5.8000000000000003E-2,5.7000000000000002E-2,5.6000000000000001E-2,5.5E-2,5.5E-2,5.3999999999999999E-2,5.3999999999999999E-2,5.2999999999999999E-2,5.1999999999999998E-2,5.0999999999999997E-2,4.9000000000000002E-2,4.8000000000000001E-2,4.7E-2,4.5999999999999999E-2,4.4999999999999998E-2,4.4999999999999998E-2,4.4999999999999998E-2,4.4999999999999998E-2,4.4999999999999998E-2,6]
[{"$error":"#N/A"},{"$error":"#N/A"},{"$error":"#N/A"},{"$error":"#N/A"},null,null,null,{"$error":"#N/A"},{"$error":"#N/A"},{"$error":"#N/A"},{"$error":"#N/A"},null,null,null,{"$error":"#N/A"},{"$error":"#N/A"},{"$error":"#N/A"},{"$error":"#N/A"},null,null,null,9,4,4,5,7,null,null,"A",null,"7th","·········",0.06,0.06,5.5E-2,5.5E-2,5.3999999999999999E-2,5.3999999999999999E-2,5.1999999999999998E-2,5.1999999999999998E-2,0.05,0.05,0.05,0.05,0.05,4.9000000000000002E-2,4.9000000000000002E-2,4.8000000000000001E-2,4.5999999999999999E-2,4.4999999999999998E-2,4.4999999999999998E-2,4.3999999999999997E-2,4.3999999999999997E-2,4.2999999999999997E-2,4.2000000000000003E-2,4.2000000000000003E-2,4.2000000000000003E-2,4.2000000000000003E-2,4.2000000000000003E-2,7]
[{"$error":"#N/A"},{"$error":"#N/A"},{"$error":"#N/A"},{"$error":"#N/A"},null,null,null,{"$error":"#N/A"},{"$error":"#N/A"},{"$error":"#N/A"},{"$error":"#N/A"},null,null,null,{"$error":"#N/A"},{"$error":"#N/A"},{"$error":"#N/A"},{"$error":"#N/A"},null,null,null,10,4,5,5,8,null,null,null,"C",null,"8th","·········",0.05,4.7E-2,4.7E-2,4.7E-2,4.7E-2,4.5999999999999999E-2,4.5999999999999999E-2,4.4999999999999998E-2,4.4999999999999998E-2,4.4999999999999998E-2,4.4999999999999998E-2,4.4999999999999998E-2,4.4999999999999998E-2,4.4999999999999998E-2,4.4999999999999998E-2,4.2000000000000003E-2,4.2000000000000003E-2,4.1000000000000002E-2,4.1000000000000002E-2,0.04,0.04,0.04,0.04,0.04,3.9E-2,3.9E-2,8]
[{"$error":"#N/A"},{"$error":"#N/A"},{"$error":"#N/A"},{"$error":"#N/A"},null,null,null,{"$error":"#N/A"},{"$error":"#N/A"},{"$error":"#N/A"},{"$error":"#N/A"},null,null,null,{"$error":"#N/A"},{"$error":"#N/A"},{"$error":"#N/A"},{"$error":"#N/A"},null,null,null,11,4,5,6,9,null,null,null,null,"E",null,"9th","·········",4.2999999999999997E-2,4.2000000000000003E-2,4.2000000000000003E-2,4.2000000000000003E-2,4.2000000000000003E-2,4.2000000000000003E-2,4.1000000000000002E-2,4.1000000000000002E-2,4.1000000000000002E-2,4.1000000000000002E-2,4.1000000000000002E-2,4.1000000000000002E-2,4.1000000000000002E-2,4.1000000000000002E-2,3.9E-2,3.9E-2,3.7999999999999999E-2,3.7999999999999999E-2,3.6999999999999998E-2,3.6999999999999998E-2,3.6999999999999998E-2,3.6999999999999998E-2,3.6999999999999998E-2,3.5999999999999997E-2,3.5999999999999997E-2,9]
[{"$error":"#N/A"},{"$error":"#N/A"},{"$error":"#N/A"},{"$error":"#N/A"},null,null,null,{"$error":"#N/A"},{"$error":"#N/A"},{"$error":"#N/A"},{"$error":"#N/A"},null,null,null,{"$error":"#N/A"},{"$error":"#N/A"},{"$error":"#N/A"},{"$error":"#N/A"},null,null,null,12,5,6,6,10,null,null,null,null,null,null,null,"10th","·········",3.7999999999999999E-2,3.7999999999999999E-2,3.7999999999999999E-2,3.7999999999999999E-2,3.7999999999999999E-2,3.6999999999999998E-2,3.6999999999999998E-2,3.6999999999999998E-2,3.6999999999999998E-2,3.6999999999999998E-2,3.6999999999999998E-2,3.6999999999999998E-2,3.6999999999999998E-2,3.5999999999999997E-2,3.5999999999999997E-2,3.5000000000000003E-2,3.5000000000000003E-2,3.4000000000000002E-2,3.4000000000000002E-2,3.4000000000000002E-2,3.4000000000000002E-2,3.4000000000000002E-2,3.4000000000000002E-2,3.4000000000000002E-2,10]
[{"$error":"#N/A"},{"$error":"#N/A"},{"$error":"#N/A"},{"$error":"#N/A"},null,null,null,{"$error":"#N/A"},{"$error":"#N/A"},{"$error":"#N/A"},{"$error":"#N/A"},null,null,null,{"$error":"#N/A"},{"$error":"#N/A"},{"$error":"#N/A"},{"$error":"#N/A"},null,null,null,13,5,6,7,11,null,null,null,null,null,null,"O",null,"11th","·········",3.4000000000000002E-2,3.4000000000000002E-2,3.4000000000000002E-2,3.4000000000000002E-2,3.4000000000000002E-2,3.4000000000000002E-2,3.4000000000000002E-2,3.4000000000000002E-2,3.4000000000000002E-2,3.4000000000000002E-2,3.4000000000000002E-2,3.4000000000000002E-2,3.3000000000000002E-2,3.3000000000000002E-2,3.3000000000000002E-2,3.3000000000000002E-2,3.2000000000000001E-2,3.2000000000000001E-2,3.2000000000000001E-2,3.2000000000000001E-2,3.2000000000000001E-2,3.2000000000000001E-2,3.2000000000000001E-2,11]
[{"$error":"#N/A"},{"$error":"#N/A"},{"$error":"#N/A"},{"$error":"#N/A"},null,null,null,{"$error":"#N/A"},{"$error":"#N/A"},{"$error":"#N/A"},{"$error":"#N/A"},null,null,null,{"$error":"#N/A"},{"$error":"#N/A"},{"$error":"#N/A"},{"$error":"#N/A"},null,null,null,14,6,6,7,12,null,null,null,null,null,null,null,"F",null,"12th","·········",3.1E-2,3.1E-2,3.1E-2,3.1E-2,3.1E-2,3.1E-2,3.1E-2,3.1E-2,3.1E-2,3.1E-2,3.1E-2,3.1E-2,3.1E-2,3.1E-2,3.1E-2,0.03,0.03,0.03,0.03,0.03,0.03,0.03,12]
[{"$error":"#N/A"},{"$error":"#N/A"},{"$error":"#N/A"},{"$error":"#N/A"},null,null,null,{"$error":"#N/A"},{"$error":"#N/A"},{"$error":"#N/A"},{"$error":"#N/A"},null,null,null,{"$error":"#N/A"},{"$error":"#N/A"},{"$error":"#N/A"},{"$error":"#N/A"},null,null,null,15,6,7,8,13,null,null,null,null,null,null,null,null,null,null,"13th","·········",2.9000000000000001E-2,2.9000000000000001E-2,2.9000000000000001E-2,2.9000000000000001E-2,2.9000000000000001E-2,2.9000000000000001E-2,2.9000000000000001E-2,2.9000000000000001E-2,2.9000000000000001E-2,2.9000000000000001E-2,2.9000000000000001E-2,2.9000000000000001E-2,2.9000000000000001E-2,2.9000000000000001E-2,2.8000000000000001E-2,2.8000000000000001E-2,2.8000000000000001E-2,2.8000000000000001E-2,2.8000000000000001E-2,2.8000000000000001E-2,2.8000000000000001E-2,13]
[{"$error":"#N/A"},{"$error":"#N/A"},{"$error":"#N/A"},{"$error":"#N/A"},null,null,null,{"$error":"#N/A"},{"$error":"#N/A"},{"$error":"#N/A"},{"$error":"#N/A"},null,null,null,{"$error":"#N/A"},{"$error":"#N/A"},{"$error":"#N/A"},{"$error":"#N/A"},null,null,null,16,6,7,8,14,null,null,null,null,null,null,null,null,null,"F",null,"14th","·········",2.7E-2,2.7E-2,2.7E-2,2.7E-2,2.7E-2,2.7E-2,2.7E-2,2.7E-2,2.7E-2,2.7E-2,2.7E-2,2.7E-2,2.7E-2,2.7E-2,2.7E-2,2.7E-2,2.7E-2,2.7E-2,2.7E-2,2.7E-2,14]
[null,{"$f":"SUM(B8:B18)","v":{"$error":"#N/A"}},{"$f":"SUM(C8:C18)","v":{"$error":"#N/A"}},{"$f":"SUM(D8:D18)","v":{"$error":"#N/A"}},{"$f":"SUM(E8:E18)","v":0},null,null,null,{"$f":"SUM(I8:I18)","v":{"$error":"#N/A"}},{"$f":"SUM(J8:J18)","v":{"$error":"#N/A"}},{"$f":"SUM(K8:K18)","v":{"$error":"#N/A"}},{"$f":"SUM(L8:L18)","v":0},null,null,null,{"$f":"SUM(P8:P18)","v":{"$error":"#N/A"}},{"$f":"SUM(Q8:Q18)","v":{"$error":"#N/A"}},{"$f":"SUM(R8:R18)","v":{"$error":"#N/A"}},{"$f":"SUM(S8:S18)","v":0},null,null,17,7,8,9,15,null,null,null,null,null,null,null,null,null,null,"I",null,"15th","·········",2.5000000000000001E-2,2.5000000000000001E-2,2.5000000000000001E-2,2.5000000000000001E-2,2.5000000000000001E-2,2.5999999999999999E-2,2.5999999999999999E-2,2.5999999999999999E-2,2.5999999999999999E-2,2.5999999999999999E-2,2.5999999999999999E-2,2.5999999999999999E-2,2.5999999999999999E-2,2.5999999999999999E-2,2.5999999999999999E-2,2.5999999999999999E-2,2.5999999999999999E-2,2.5999999999999999E-2,2.5999999999999999E-2,15]
[null,null,null,{"$f":"IF(C4=91,\"       To use this table, enter player divisions on Scores page\",IF(C4>27,\"Field limit exceeded. Use printed Payout tables.\",\"\"))","v":"       To use this table, enter player divisions on Scores page"},null,null,null,null,null,null,{"$f":"IF(J4=91,\"       To use this table, enter player divisions on Scores page\",IF(J4>27,\"Field limit exceeded. Use printed Payout tables.\",\"\"))","v":"       To use this table, enter player divisions on Scores page"},null,null,null,null,null,null,{"$f":"IF(Q4=91,\"       To use this table, enter player divisions on Scores page\",IF(Q4>27,\"Field limit exceeded. Use printed Payout tables.\",\"\"))","v":"       To use this table, enter player divisions on Scores page"},null,null,null,18,7,8,9,16,null,null,null,null,null,null,null,null,null,null,null,"N",null,"16th","·········",2.3E-2,2.3E-2,2.3E-2,2.3E-2,2.5000000000000001E-2,2.5000000000000001E-2,2.5000000000000001E-2,2.5000000000000001E-2,2.5000000000000001E-2,2.5000000000000001E-2,2.5000000000000001E-2,2.5000000000000001E-2,2.5000000000000001E-2,2.5000000000000001E-2,2.5000000000000001E-2,2.5000000000000001E-2,2.5000000000000001E-2,2.5000000000000001E-2,16]
["WOMEN MASTER PRO 55+",null,null,null,null,null,null,"WOMEN MASTER PRO 60+",null,null,null,null,null,null,"WOMEN MASTER PRO 65+",null,null,null,null,null,null,19,8,9,10,17,null,null,null,null,null,null,null,null,null,null,null,null,"I",null,"17th","·········",2.1999999999999999E-2,2.1999999999999999E-2,2.1999999999999999E-2,2.4E-2,2.4E-2,2.4E-2,2.4E-2,2.4E-2,2.4E-2,2.4E-2,2.4E-2,2.4E-2,2.4E-2,2.4E-2,2.4E-2,2.4E-2,2.4E-2,17]
[null,null,null,null,"Enter Added Cash (or deduction) here* > ",0,null,null,null,null,null,"Enter Added Cash (or deduction) here* > ",0,null,null,null,null,null,"Enter Added Cash (or deduction) here* > ",0,null,20,8,9,10,18,null,null,null,null,null,null,null,null,null,null,null,null,null,"S",null,"18th","·········",2.1000000000000001E-2,2.1000000000000001E-2,2.3E-2,2.3E-2,2.3E-2,2.3E-2,2.3E-2,2.3E-2,2.3E-2,2.3E-2,2.3E-2,2.3E-2,2.3E-2,2.3E-2,2.3E-2,2.3E-2,18]
["# Paid",null,"Field Size",null,"Total Fees: ",{"$f":"Cover!G19","v":0},null,"# Paid",null,"Field Size",null,"Total Fees: ",{"$f":"Cover!G20","v":0},null,"# Paid",null,"Field Size",null,"Total Fees: ",{"$f":"Cover!G21","v":0},null,21,8,10,11,19,null,null,null,null,null,null,null,null,null,null,null,null,null,null,"H",null,"19th","·········",0.02,2.1999999999999999E-2,2.1999999999999999E-2,2.1999999999999999E-2,2.1999999999999999E-2,2.1999999999999999E-2,2.1999999999999999E-2,2.1999999999999999E-2,2.1999999999999999E-2,2.1999999999999999E-2,2.1999999999999999E-2,2.1999999999999999E-2,2.1999999999999999E-2,2.1999999999999999E-2,2.1999999999999999E-2,19]
[{"$f":"VLOOKUP(C24,paypct,B25,FALSE)","v":{"$error":"#N/A"}},null,{"$f":"IF(Cover!F19=0,91,Cover!F19)","v":91},null,"Net Purse: ",{"$f":"F23+F22","v":0},null,{"$f":"VLOOKUP(J24,paypct,I25,FALSE)","v":{"$error":"#N/A"}},null,{"$f":"IF(Cover!F20=0,91,Cover!F20)","v":91},null,"Net Purse: ",{"$f":"M23+M22","v":0},null,{"$f":"VLOOKUP(Q24,paypct,P25,FALSE)","v":{"$error":"#N/A"}},null,{"$f":"IF(Cover!F21=0,91,Cover!F21)","v":91},null,"Net Purse: ",{"$f":"T23+T22","v":0},null,22,9,10,11,20,null,null,null,null,null,null,null,null,null,null,null,null,null,null,null,null,null,"20th","·········",2.1000000000000001E-2,2.1000000000000001E-2,2.1000000000000001E-2,2.1000000000000001E-2,2.1000000000000001E-2,2.1000000000000001E-2,2.1000000000000001E-2,2.1000000000000001E-2,2.1000000000000001E-2,2.1000000000000001E-2,2.1000000000000001E-2,2.1000000000000001E-2,2.1000000000000001E-2,2.1000000000000001E-2,20]
[null,{"$f":"IF(E25=45%,3,IF(E25=50%,4,2))","v":2},null,"Choose Payout Percentage>",0.4,null,null,null,{"$f":"IF(L25=45%,3,IF(L25=50%,4,2))","v":2},null,"Choose Payout Percentage>",0.4,null,null,null,{"$f":"IF(S25=45%,3,IF(S25=50%,4,2))","v":2},null,"Choose Payout Percentage>",0.4,null,null,23,9,10,12,21,null,null,null,null,null,null,null,null,null,null,null,null,null,null,null,null,null,null,"21st","·········",0.02,0.02,0.02,0.02,0.02,0.02,0.02,0.02,0.02,0.02,0.02,0.02,0.02,21]
[null,"Prelim","Proposed","Round","Manual","Final",null,null,"Prelim","Proposed","Round","Manual","Final",null,null,"Prelim","Proposed","Round","Manual","Final",null,24,10,11,12,22,null,null,null,null,null,null,null,null,null,null,null,null,null,null,null,null,null,null,null,"22nd","·········",1.9E-2,1.9E-2,1.9E-2,1.9E-2,1.9E-2,1.9E-2,1.9E-2,1.9E-2,1.9E-2,1.9E-2,1.9E-2,1.9E-2,22]
["Place","Factor","Payout $$","to $5","Adj. ","Place",null,"Place","Factor","Payout $$","to $5","Adj. ","Place",null,"Place","Factor","Payout $$","to $5","Adj. ","Place",null,25,10,11,13,23,null,null,null,null,null,null,null,null,null,null,null,null,null,null,null,null,null,null,null,null,"23rd","·········",1.7999999999999999E-2,1.7999999999999999E-2,1.7999999999999999E-2,1.7999999999999999E-2,1.7999999999999999E-2,1.7999999999999999E-2,1.7999999999999999E-2,1.7999999999999999E-2,1.7999999999999999E-2,1.7000000000000001E-2,1.7000000000000001E-2,23]
[{"$f":"IF(ROW()-27>$A$24,\"\",ROW()-27)","v":{"$error":"#N/A"}},{"$f":"IF(A28=\"\",\"\",VLOOKUP(A28,_pay1,$A$24+1))","v":{"$error":"#N/A"}},{"$f":"IF(B28=\"\",\"\",$F$24*B28)","v":{"$error":"#N/A"}},{"$f":"IF(C28=\"\",\"\",INT((C28+2.5)/5)*5)","v":{"$error":"#N/A"}},null,null,null,{"$f":"IF(ROW()-27>$H$24,\"\",ROW()-27)","v":{"$error":"#N/A"}},{"$f":"IF(H28=\"\",\"\",VLOOKUP(H28,_pay1,$H$24+1))","v":{"$error":"#N/A"}},{"$f":"IF(I28=\"\",\"\",$M$24*I28)","v":{"$error":"#N/A"}},{"$f":"IF(J28=\"\",\"\",INT((J28+2.5)/5)*5)","v":{"$error":"#N/A"}},null,null,null,{"$f":"IF(ROW()-27>$O$24,\"\",ROW()-27)","v":{"$error":"#N/A"}},{"$f":"IF(O28=\"\",\"\",VLOOKUP(O28,_pay1,$O$24+1))","v":{"$error":"#N/A"}},{"$f":"IF(P28=\"\",\"\",$T$24*P28)","v":{"$error":"#N/A"}},{"$f":"IF(Q28=\"\",\"\",INT((Q28+2.5)/5)*5)","v":{"$error":"#N/A"}},null,null,null,26,10,12,13,24,null,null,null,null,null,null,null,null,null,null,null,null,null,null,null,null,null,null,null,null,null,"24th","·········",1.7000000000000001E-2,1.7000000000000001E-2,1.7000000000000001E-2,1.7000000000000001E-2,1.7000000000000001E-2,1.7000000000000001E-2,1.7000000000000001E-2,1.7000000000000001E-2,1.7000000000000001E-2,1.7000000000000001E-2,24]
[{"$f":"IF(ROW()-27>$A$24,\"\",ROW()-27)","v":{"$error":"#N/A"}},{"$f":"IF(A29=\"\",\"\",VLOOKUP(A29,_pay1,$A$27+1))","v":{"$error":"#N/A"}},{"$f":"IF(B29=\"\",\"\",$F$24*B29)","v":{"$error":"#N/A"}},{"$f":"IF(C29=\"\",\"\",INT((C29+2.5)/5)*5)","v":{"$error":"#N/A"}},null,null,null,{"$f":"IF(ROW()-27>$H$24,\"\",ROW()-27)","v":{"$error":"#N/A"}},{"$f":"IF(H29=\"\",\"\",VLOOKUP(H29,_pay1,$H$24+1))","v":{"$error":"#N/A"}},{"$f":"IF(I29=\"\",\"\",$M$24*I29)","v":{"$error":"#N/A"}},{"$f":"IF(J29=\"\",\"\",INT((J29+2.5)/5)*5)","v":{"$error":"#N/A"}},null,null,null,{"$f":"IF(ROW()-27>$O$24,\"\",ROW()-27)","v":{"$error":"#N/A"}},{"$f":"IF(O29=\"\",\"\",VLOOKUP(O29,_pay1,$O$24+1))","v":{"$error":"#N/A"}},{"$f":"IF(P29=\"\",\"\",$T$24*P29)","v":{"$error":"#N/A"}},{"$f":"IF(Q29=\"\",\"\",INT((Q29+2.5)/5)*5)","v":{"$error":"#N/A"}},null,null,null,27,11,12,14,25,null,null,null,null,null,null,null,null,null,null,null,null,null,null,null,null,null,null,null,null,null,null,"25th","·········",1.6E-2,1.6E-2,1.6E-2,1.6E-2,1.6E-2,1.6E-2,1.6E-2,1.6E-2,1.6E-2,25]
[null,{"$f":"SUM(B28:B29)","v":{"$error":"#N/A"}},{"$f":"SUM(C28:C29)","v":{"$error":"#N/A"}},{"$f":"SUM(D28:D29)","v":{"$error":"#N/A"}},{"$f":"SUM(E28:E29)","v":0},null,null,null,null,{"$f":"SUM(J28:J29)","v":{"$error":"#N/A"}},{"$f":"SUM(K28:K29)","v":{"$error":"#N/A"}},{"$f":"SUM(L28:L29)","v":0},null,null,null,{"$f":"SUM(P28:P29)","v":{"$error":"#N/A"}},{"$f":"SUM(Q28:Q29)","v":{"$error":"#N/A"}},{"$f":"SUM(R28:R29)","v":{"$error":"#N/A"}},{"$f":"SUM(S28:S29)","v":0},null,null,28,11,13,14,26,null,null,null,null,null,null,null,null,null,null,null,null,null,null,null,null,null,null,null,null,null,null,null,"26th","·········",1.6E-2,1.4999999999999999E-2,1.4999999999999999E-2,1.4999999999999999E-2,1.4999999999999999E-2,1.4999999999999999E-2,1.4999999999999999E-2,1.4999999999999999E-2,26]
["OPEN PRO DIVISION",null,null,null,null,null,null,"MASTER PRO 40+ DIVISION",null,null,null,null,null,null,"MASTER PRO 50+ DIVISION",null,null,null,null,null,null,29,12,13,15,27,null,null,null,null,null,null,null,null,null,null,null,null,null,null,null,null,null,null,null,null,null,null,null,null,"27th","·········",1.4999999999999999E-2,1.4999999999999999E-2,1.4E-2,1.4E-2,1.4E-2,1.4E-2,1.4E-2,27]
[null,null,null,null,"Enter Added Cash (or deduction) here* > ",0,null,null,null,null,null,"Enter Added Cash (or deduction) here* > ",0,null,null,null,null,null,"Enter Added Cash (or deduction) here* > ",0,null,30,12,14,15,28,null,null,null,null,null,null,null,null,null,null,null,null,null,null,null,null,null,null,null,null,null,null,null,null,null,"28th","·········",1.4E-2,1.4E-2,1.4E-2,1.2999999999999999E-2,1.2999999999999999E-2,1.2999999999999999E-2,28]
["# Paid",null,"Field Size",null,"Total Fees: ",{"$f":"Cover!G7+Cover!M7","v":0},null,"# Paid",null,"Field Size",null,"Total Fees: ",{"$f":"Cover!G8+Cover!M8","v":0},null,"# Paid",null,"Field Size","s","Total Fees: ",{"$f":"Cover!G9+Cover!M9","v":0},null,31,12,14,16,29,null,null,null,null,null,null,null,null,null,null,null,null,null,null,null,null,null,null,null,null,null,null,null,null,null,null,"29th","·········",1.2999999999999999E-2,1.2999999999999999E-2,1.2999999999999999E-2,1.2999999999999999E-2,1.2999999999999999E-2,29]
[{"$f":"VLOOKUP(C34,paypct,B35,FALSE)","v":{"$error":"#N/A"}},null,{"$f":"IF(Cover!F7=0,91,Cover!F7+ROUNDDOWN(Cover!L7/3,0))","v":91},null,"Net Purse: ",{"$f":"F33+F32","v":0},null,{"$f":"VLOOKUP(J34,paypct,I35,FALSE)","v":{"$error":"#N/A"}},null,{"$f":"IF(Cover!F8=0,91,Cover!F8+ROUNDDOWN(Cover!L8/3,0))","v":91},null,"Net Purse: ",{"$f":"M33+M32","v":0},null,{"$f":"VLOOKUP(Q34,paypct,P35,FALSE)","v":{"$error":"#N/A"}},null,{"$f":"IF(Cover!F9=0,91,Cover!F9+ROUNDDOWN(Cover!L9/3,0))","v":91},null,"Net Purse: ",{"$f":"T33+T32","v":0},null,32,13,15,16,30,null,null,null,null,null,null,null,null,null,null,null,null,null,null,null,null,null,null,null,null,null,null,null,null,null,null,null,"30th","·········",1.2999999999999999E-2,1.2999999999999999E-2,1.2999999999999999E-2,1.2999999999999999E-2,30]
[null,{"$f":"IF(E35=45%,3,IF(E35=50%,4,2))","v":2},null,"Choose Payout Percentage>",0.4,null,null,null,{"$f":"IF(L35=45%,3,IF(L35=50%,4,2))","v":2},null,"Choose Payout Percentage>",0.4,null,null,null,{"$f":"IF(S35=45%,3,IF(S35=50%,4,2))","v":2},null,"Choose Payout Percentage>",0.4,null,null,33,13,15,17,31,null,null,null,null,null,null,null,null,null,null,null,null,null,null,null,null,null,null,null,null,null,null,null,null,null,null,null,null,"31st","·········",1.2999999999999999E-2,1.2999999999999999E-2,1.2999999999999999E-2,31]
[null,"Prelim","Proposed","Round","Manual","Final",null,null,"Prelim","Proposed","Round","Manual","Final",null,null,"Prelim","Proposed","Round","Manual","Final",null,34,14,15,17,32,null,null,null,null,null,null,null,null,null,null,null,null,null,null,null,null,null,null,null,null,null,null,null,null,null,null,null,null,null,"32nd","·········",1.2E-2,1.2E-2,32]
["Place","Factor","Payout $$","to $5","Adj. ","Place",null,"Place","Factor","Payout $$","to $5","Adj. ","Place",null,"Place","Factor","Payout $$","to $5","Adj. ","Place",null,35,14,16,18,33,null,null,null,null,null,null,null,null,null,null,null,null,null,null,null,null,null,null,null,null,null,null,null,null,null,null,null,null,null,null,"33rd","·········",1.2E-2,33]
[{"$f":"IF(ROW()-37>$A$34,\"\",ROW()-37)","v":{"$error":"#N/A"}},{"$f":"IF(A38=\"\",\"\",VLOOKUP(A38,_pay1,$A$34+1))","v":{"$error":"#N/A"}},{"$f":"IF(B38=\"\",\"\",$F$34*B38)","v":{"$error":"#N/A"}},{"$f":"IF(C38=\"\",\"\",INT((C38+2.5)/5)*5)","v":{"$error":"#N/A"}},null,null,null,{"$f":"IF(ROW()-37>$H$34,\"\",ROW()-37)","v":{"$error":"#N/A"}},{"$f":"IF(H38=\"\",\"\",VLOOKUP(H38,_pay1,$H$34+1))","v":{"$error":"#N/A"}},{"$f":"IF(I38=\"\",\"\",$M$34*I38)","v":{"$error":"#N/A"}},{"$f":"IF(J38=\"\",\"\",INT((J38+2.5)/5)*5)","v":{"$error":"#N/A"}},null,null,null,{"$f":"IF(ROW()-37>$O$34,\"\",ROW()-37)","v":{"$error":"#N/A"}},{"$f":"IF(O38=\"\",\"\",VLOOKUP(O38,_pay1,$O$34+1))","v":{"$error":"#N/A"}},{"$f":"IF(P38=\"\",\"\",$T$34*P38)","v":{"$error":"#N/A"}},{"$f":"IF(Q38=\"\",\"\",INT((Q38+2.5)/5)*5)","v":{"$error":"#N/A"}},null,null,null,36,14,16,18]
[{"$f":"IF(ROW()-37>$A$34,\"\",ROW()-37)","v":{"$error":"#N/A"}},{"$error":"#N/A"},{"$f":"IF(B39=\"\",\"\",$F$34*B39)","v":{"$error":"#N/A"}},{"$f":"IF(C39=\"\",\"\",INT((C39+2.5)/5)*5)","v":{"$error":"#N/A"}},null,null,null,{"$f":"IF(ROW()-37>$H$34,\"\",ROW()-37)","v":{"$error":"#N/A"}},{"$error":"#N/A"},{"$f":"IF(I39=\"\",\"\",$M$34*I39)","v":{"$error":"#N/A"}},{"$f":"IF(J39=\"\",\"\",INT((J39+2.5)/5)*5)","v":{"$error":"#N/A"}},null,null,null,{"$f":"IF(ROW()-37>$O$34,\"\",ROW()-37)","v":{"$error":"#N/A"}},{"$error":"#N/A"},{"$f":"IF(P39=\"\",\"\",$T$34*P39)","v":{"$error":"#N/A"}},{"$f":"IF(Q39=\"\",\"\",INT((Q39+2.5)/5)*5)","v":{"$error":"#N/A"}},null,null,null,37,15,17,19]
[{"$error":"#N/A"},{"$error":"#N/A"},{"$error":"#N/A"},{"$error":"#N/A"},null,null,null,{"$error":"#N/A"},{"$error":"#N/A"},{"$error":"#N/A"},{"$error":"#N/A"},null,null,null,{"$error":"#N/A"},{"$error":"#N/A"},{"$error":"#N/A"},{"$error":"#N/A"},null,null,null,38,15,17,19]
[{"$error":"#N/A"},{"$error":"#N/A"},{"$error":"#N/A"},{"$error":"#N/A"},null,null,null,{"$error":"#N/A"},{"$error":"#N/A"},{"$error":"#N/A"},{"$error":"#N/A"},null,null,null,{"$error":"#N/A"},{"$error":"#N/A"},{"$error":"#N/A"},{"$error":"#N/A"},null,null,null,39,16,18,20]
[{"$error":"#N/A"},{"$error":"#N/A"},{"$error":"#N/A"},{"$error":"#N/A"},null,null,null,{"$error":"#N/A"},{"$error":"#N/A"},{"$error":"#N/A"},{"$error":"#N/A"},null,null,null,{"$error":"#N/A"},{"$error":"#N/A"},{"$error":"#N/A"},{"$error":"#N/A"},null,null,null,40,16,18,20]
[{"$error":"#N/A"},{"$error":"#N/A"},{"$error":"#N/A"},{"$error":"#N/A"},null,null,null,{"$error":"#N/A"},{"$error":"#N/A"},{"$error":"#N/A"},{"$error":"#N/A"},null,null,null,{"$error":"#N/A"},{"$error":"#N/A"},{"$error":"#N/A"},{"$error":"#N/A"},null,null,null,41,16,19,21]
[{"$error":"#N/A"},{"$error":"#N/A"},{"$error":"#N/A"},{"$error":"#N/A"},null,null,null,{"$error":"#N/A"},{"$error":"#N/A"},{"$error":"#N/A"},{"$error":"#N/A"},null,null,null,{"$error":"#N/A"},{"$error":"#N/A"},{"$error":"#N/A"},{"$error":"#N/A"},null,null,null,42,17,19,21]
[{"$error":"#N/A"},{"$error":"#N/A"},{"$error":"#N/A"},{"$error":"#N/A"},null,null,null,{"$error":"#N/A"},{"$error":"#N/A"},{"$error":"#N/A"},{"$error":"#N/A"},null,null,null,{"$error":"#N/A"},{"$error":"#N/A"},{"$error":"#N/A"},{"$error":"#N/A"},null,null,null,43,17,19,22]
[{"$error":"#N/A"},{"$error":"#N/A"},{"$error":"#N/A"},{"$error":"#N/A"},null,null,null,{"$error":"#N/A"},{"$error":"#N/A"},{"$error":"#N/A"},{"$error":"#N/A"},null,null,null,{"$error":"#N/A"},{"$error":"#N/A"},{"$error":"#N/A"},{"$error":"#N/A"},null,null,null,44,18,20,22]
[{"$error":"#N/A"},{"$error":"#N/A"},{"$error":"#N/A"},{"$error":"#N/A"},null,null,null,{"$error":"#N/A"},{"$error":"#N/A"},{"$error":"#N/A"},{"$error":"#N/A"},null,null,null,{"$error":"#N/A"},{"$error":"#N/A"},{"$error":"#N/A"},{"$error":"#N/A"},null,null,null,45,18,20,23]
[{"$error":"#N/A"},{"$error":"#N/A"},{"$error":"#N/A"},{"$error":"#N/A"},null,null,null,{"$error":"#N/A"},{"$error":"#N/A"},{"$error":"#N/A"},{"$error":"#N/A"},null,null,null,{"$error":"#N/A"},{"$error":"#N/A"},{"$error":"#N/A"},{"$error":"#N/A"},null,null,null,46,18,21,23]
[{"$error":"#N/A"},{"$error":"#N/A"},{"$error":"#N/A"},{"$error":"#N/A"},null,null,null,{"$error":"#N/A"},{"$error":"#N/A"},{"$error":"#N/A"},{"$error":"#N/A"},null,null,null,{"$error":"#N/A"},{"$error":"#N/A"},{"$error":"#N/A"},{"$error":"#N/A"},null,null,null,47,19,21,24]
[{"$error":"#N/A"},{"$error":"#N/A"},{"$error":"#N/A"},{"$error":"#N/A"},null,null,null,{"$error":"#N/A"},{"$error":"#N/A"},{"$error":"#N/A"},{"$error":"#N/A"},null,null,null,null,{"$f":"SUM(P38:P49)","v":{"$error":"#N/A"}},{"$f":"SUM(Q38:Q49)","v":{"$error":"#N/A"}},{"$f":"SUM(R38:R49)","v":{"$error":"#N/A"}},{"$f":"SUM(S38:S49)","v":0},null,null,48,19,22,24]
[{"$error":"#N/A"},{"$error":"#N/A"},{"$error":"#N/A"},{"$error":"#N/A"},null,null,null,{"$error":"#N/A"},{"$error":"#N/A"},{"$error":"#N/A"},{"$error":"#N/A"},null,null,null,null,null,null,{"$f":"IF(Q34=91,\"       To use this table, enter player divisions on Scores page\",IF(Q34>31,\"Field limit exceeded. Use printed Payout tables.\",\"\"))","v":"       To use this table, enter player divisions on Scores page"},null,null,null,49,20,22,25]
[{"$error":"#N/A"},{"$error":"#N/A"},{"$error":"#N/A"},{"$error":"#N/A"},null,null,null,{"$error":"#N/A"},{"$error":"#N/A"},{"$error":"#N/A"},{"$error":"#N/A"},null,null,null,"MASTER PRO 60+ DIVISION",null,null,null,null,null,null,50,20,23,25]
[{"$error":"#N/A"},{"$error":"#N/A"},{"$error":"#N/A"},{"$error":"#N/A"},null,null,null,{"$error":"#N/A"},{"$error":"#N/A"},{"$error":"#N/A"},{"$error":"#N/A"},null,null,null,null,null,null,null,{"$f":"IF(Q55>16,\"Field too big! Use manual tables.\",\"Enter Added Cash (or deduction) here* > \")","v":"Field too big! Use manual tables."},0,null,51,20,23,26]
[{"$error":"#N/A"},{"$error":"#N/A"},{"$error":"#N/A"},{"$error":"#N/A"},null,null,null,{"$error":"#N/A"},{"$error":"#N/A"},{"$error":"#N/A"},{"$error":"#N/A"},null,null,null,"# Paid",null,"Field Size",null,"Total Fees: ",{"$f":"Cover!G11","v":0},null,52,21,23,26]
[{"$error":"#N/A"},{"$error":"#N/A"},{"$error":"#N/A"},{"$error":"#N/A"},null,null,null,{"$error":"#N/A"},{"$error":"#N/A"},{"$error":"#N/A"},{"$error":"#N/A"},null,null,null,{"$f":"VLOOKUP(Q55,paypct,P56,FALSE)","v":{"$error":"#N/A"}},null,{"$f":"IF(Cover!F11=0,91,Cover!F11+ROUNDDOWN(Cover!L11/3,0))","v":91},null,"Net Purse: ",{"$f":"T54+T53","v":0},null,53,21,24,27]
[{"$error":"#N/A"},{"$error":"#N/A"},{"$error":"#N/A"},{"$error":"#N/A"},null,null,null,{"$error":"#N/A"},{"$error":"#N/A"},{"$error":"#N/A"},{"$error":"#N/A"},null,null,null,null,{"$f":"IF(S56=45%,3,IF(S56=50%,4,2))","v":2},null,"Choose Payout Percentage>",0.4,null,null,54,22,24,27]
[{"$error":"#N/A"},{"$error":"#N/A"},{"$error":"#N/A"},{"$error":"#N/A"},null,null,null,{"$error":"#N/A"},{"$error":"#N/A"},{"$error":"#N/A"},{"$error":"#N/A"},null,null,null,null,"Prelim","Proposed","Round","Manual","Final",null,55,22,25,28]
[{"$error":"#N/A"},{"$error":"#N/A"},{"$error":"#N/A"},{"$error":"#N/A"},null,null,null,{"$error":"#N/A"},{"$error":"#N/A"},{"$error":"#N/A"},{"$error":"#N/A"},null,null,null,"Place","Factor","Payout $$","to $5","Adj. ","Place",null,56,22,25,28]
[{"$error":"#N/A"},{"$error":"#N/A"},{"$error":"#N/A"},{"$error":"#N/A"},null,null,null,{"$error":"#N/A"},{"$error":"#N/A"},{"$error":"#N/A"},{"$error":"#N/A"},null,null,null,{"$f":"IF(ROW()-58>$O$55,\"\",ROW()-58)","v":{"$error":"#N/A"}},{"$f":"IF(O59=\"\",\"\",VLOOKUP(O59,_pay1,$O$55+1))","v":{"$error":"#N/A"}},{"$f":"IF(P59=\"\",\"\",$T$55*P59)","v":{"$error":"#N/A"}},{"$f":"IF(Q59=\"\",\"\",INT((Q59+2.5)/5)*5)","v":{"$error":"#N/A"}},null,null,null,57,23,26,29]
[{"$error":"#N/A"},{"$error":"#N/A"},{"$error":"#N/A"},{"$error":"#N/A"},null,null,null,{"$error":"#N/A"},{"$error":"#N/A"},{"$error":"#N/A"},{"$error":"#N/A"},null,null,null,{"$error":"#N/A"},{"$error":"#N/A"},{"$error":"#N/A"},{"$error":"#N/A"},null,null,null,58,23,26,29]
[{"$error":"#N/A"},{"$error":"#N/A"},{"$error":"#N/A"},{"$error":"#N/A"},null,null,null,{"$error":"#N/A"},{"$error":"#N/A"},{"$error":"#N/A"},{"$error":"#N/A"},null,null,null,{"$error":"#N/A"},{"$error":"#N/A"},{"$error":"#N/A"},{"$error":"#N/A"},null,null,null,59,24,27,30]
[{"$error":"#N/A"},{"$error":"#N/A"},{"$error":"#N/A"},{"$error":"#N/A"},null,null,null,{"$error":"#N/A"},{"$error":"#N/A"},{"$error":"#N/A"},{"$error":"#N/A"},null,null,null,{"$error":"#N/A"},{"$error":"#N/A"},{"$error":"#N/A"},{"$error":"#N/A"},null,null,null,60,24,27,30]
[{"$error":"#N/A"},{"$error":"#N/A"},{"$error":"#N/A"},{"$error":"#N/A"},null,null,null,{"$error":"#N/A"},{"$error":"#N/A"},{"$error":"#N/A"},{"$error":"#N/A"},null,null,null,{"$error":"#N/A"},{"$error":"#N/A"},{"$error":"#N/A"},{"$error":"#N/A"},null,null,null,61,24,28,31]
[{"$error":"#N/A"},{"$error":"#N/A"},{"$error":"#N/A"},{"$error":"#N/A"},null,null,null,{"$error":"#N/A"},{"$error":"#N/A"},{"$error":"#N/A"},{"$error":"#N/A"},null,null,null,{"$error":"#N/A"},{"$error":"#N/A"},{"$error":"#N/A"},{"$error":"#N/A"},null,null,null,62,25,28,31]
[{"$error":"#N/A"},{"$error":"#N/A"},{"$error":"#N/A"},{"$error":"#N/A"},null,null,null,{"$error":"#N/A"},{"$error":"#N/A"},{"$error":"#N/A"},{"$error":"#N/A"},null,null,null,{"$error":"#N/A"},{"$error":"#N/A"},{"$error":"#N/A"},{"$error":"#N/A"},null,null,null,63,25,28,32]
[{"$error":"#N/A"},{"$error":"#N/A"},{"$error":"#N/A"},{"$error":"#N/A"},null,null,null,{"$error":"#N/A"},{"$error":"#N/A"},{"$error":"#N/A"},{"$error":"#N/A"},null,null,null,null,{"$f":"SUM(P59:P65)","v":{"$error":"#N/A"}},{"$f":"SUM(Q59:Q65)","v":{"$error":"#N/A"}},{"$f":"SUM(R59:R65)","v":{"$error":"#N/A"}},{"$f":"SUM(S59:S65)","v":0},null,null,64,26,29,32]
[{"$error":"#N/A"},{"$error":"#N/A"},{"$error":"#N/A"},{"$error":"#N/A"},null,null,null,{"$error":"#N/A"},{"$error":"#N/A"},{"$error":"#N/A"},{"$error":"#N/A"},null,null,null,"Click Here > Large Field Payout Calculator",null,null,null,null,null,null,65,26,29,33]
[{"$error":"#N/A"},{"$error":"#N/A"},{"$error":"#N/A"},{"$error":"#N/A"},null,null,null,{"$error":"#N/A"},{"$error":"#N/A"},{"$error":"#N/A"},{"$error":"#N/A"},null,null,null,null,null,null,null,null,null,null,66,26,30,33]
[{"$error":"#N/A"},{"$error":"#N/A"},{"$error":"#N/A"},{"$error":"#N/A"},null,null,null,{"$error":"#N/A"},{"$error":"#N/A"},{"$error":"#N/A"},{"$error":"#N/A"},null,null,null,null,null,null,null,null,null,null,67,27,30,34]
[{"$error":"#N/A"},{"$error":"#N/A"},{"$error":"#N/A"},{"$error":"#N/A"},null,null,null,{"$error":"#N/A"},{"$error":"#N/A"},{"$error":"#N/A"},{"$error":"#N/A"},null,null,null,null,null,null,null,null,null,null,68,27,31]
[null,{"$f":"SUM(B38:B70)","v":{"$error":"#N/A"}},{"$f":"SUM(C38:C70)","v":{"$error":"#N/A"}},{"$f":"SUM(D38:D70)","v":{"$error":"#N/A"}},{"$f":"SUM(E38:E70)","v":0},null,null,null,{"$f":"SUM(I38:I70)","v":{"$error":"#N/A"}},{"$f":"SUM(J38:J70)","v":{"$error":"#N/A"}},{"$f":"SUM(K38:K70)","v":{"$error":"#N/A"}},{"$f":"SUM(L38:L70)","v":0},null,null,null,null,null,null,null,null,null,69,28,31]
["* Can be a negative number when expenses like trophies involved",null,null,null,null,null,null,null,null,null,{"$f":"IF(Q70=91,\"       To use this table, enter player divisions on Scores page >\",IF(Q70>4,\"Field limit exceeded. Use printed Payout tables.\",\"\"))","v":""},null,null,null,null,null,null,null,null,null,null,70,28,32]
["Click Here > Large Field Payout Calculator",null,null,null,null,null,null,"Click Here > Large Field Payout Calculator",null,null,null,null,null,null,"Click Here > Large Field Payout Calculator",null,null,null,null,null,null,71,28,32]
["MASTER PRO 80+ DIVISION",null,null,null,null,null,null,"MASTER PRO 75+ DIVISION",null,null,null,null,null,null,"MASTER PRO 70+ DIVISION",null,null,null,null,null,null,72,29,33]
[null,null,null,null,{"$f":"IF(C77>5,\"Field too big! Use manual tables.\",\"Enter Added Cash (or deduction) here* > \")","v":"Field too big! Use manual tables."},0,null,null,null,null,null,{"$f":"IF(J77>5,\"Field too big! Use manual tables.\",\"Enter Added Cash (or deduction) here* > \")","v":"Field too big! Use manual tables."},0,null,null,null,null,null,{"$f":"IF(Q77>5,\"Field too big! Use Large Field Calculator\",\"Enter Added Cash (or deduction) here* > \")","v":"Field too big! Use Large Field Calculator"},0,null,73,29,33]
["# Paid",null,"Field Size",null,"Total Fees: ",{"$f":"Cover!G15","v":0},null,"# Paid",null,"Field Size",null,"Total Fees: ",{"$f":"Cover!G14","v":0},null,"# Paid",null,"Field Size",null,"Total Fees: ",{"$f":"Cover!G13","v":0},null,74,30,33]
[{"$f":"VLOOKUP(C77,paypct,B78,FALSE)","v":{"$error":"#N/A"}},null,{"$f":"IF(Cover!F15=0,91,Cover!F15)","v":91},null,"Net Purse: ",{"$f":"F76+F75","v":0},null,{"$f":"VLOOKUP(J77,paypct,I78,FALSE)","v":{"$error":"#N/A"}},null,{"$f":"IF(Cover!F14=0,91,Cover!F14)","v":91},null,"Net Purse: ",{"$f":"M76+M75","v":0},null,{"$f":"VLOOKUP(Q77,paypct,P78,FALSE)","v":{"$error":"#N/A"}},null,{"$f":"IF(Cover!F13=0,91,Cover!F13)","v":91},null,"Net Purse: ",{"$f":"T76+T75","v":0},null,75,30,34]
[null,{"$f":"IF(E78=45%,3,IF(E78=50%,4,2))","v":2},null,"Choose Payout Percentage>",0.4,null,null,null,{"$f":"IF(L78=45%,3,IF(L78=50%,4,2))","v":2},null,"Choose Payout Percentage>",0.4,null,null,null,{"$f":"IF(S78=45%,3,IF(S78=50%,4,2))","v":2},null,"Choose Payout Percentage>",0.4,null,null,76,30]
[null,"Prelim","Proposed","Round","Manual","Final",null,null,"Prelim","Proposed","Round","Manual","Final",null,null,"Prelim","Proposed","Round","Manual","Final",null,77,31]
["Place","Factor","Payout $$","to $5","Adj. ","Place",null,"Place","Factor","Payout $$","to $5","Adj. ","Place",null,"Place","Factor","Payout $$","to $5","Adj. ","Place",null,78,31]
[{"$f":"IF(ROW()-80>$A$77,\"\",ROW()-80)","v":{"$error":"#N/A"}},{"$f":"IF(A81=\"\",\"\",VLOOKUP(A81,_pay1,$A$77+1))","v":{"$error":"#N/A"}},{"$f":"IF(B81=\"\",\"\",$F$77*B81)","v":{"$error":"#N/A"}},{"$f":"IF(C81=\"\",\"\",INT((C81+2.5)/5)*5)","v":{"$error":"#N/A"}},null,null,null,{"$f":"IF(ROW()-80>$H$77,\"\",ROW()-80)","v":{"$error":"#N/A"}},{"$f":"IF(H81=\"\",\"\",VLOOKUP(H81,_pay1,$H$77+1))","v":{"$error":"#N/A"}},{"$f":"IF(I81=\"\",\"\",$M$77*I81)","v":{"$error":"#N/A"}},{"$f":"IF(J81=\"\",\"\",INT((J81+2.5)/5)*5)","v":{"$error":"#N/A"}},null,null,null,{"$f":"IF(ROW()-80>$O$77,\"\",ROW()-80)","v":{"$error":"#N/A"}},{"$f":"IF(O81=\"\",\"\",VLOOKUP(O81,_pay1,$O$77+1))","v":{"$error":"#N/A"}},{"$f":"IF(P81=\"\",\"\",$T$77*P81)","v":{"$error":"#N/A"}},{"$f":"IF(Q81=\"\",\"\",INT((Q81+2.5)/5)*5)","v":{"$error":"#N/A"}},null,null,null,79,32]
[{"$f":"IF(ROW()-80>$A$77,\"\",ROW()-80)","v":{"$error":"#N/A"}},{"$f":"IF(A82=\"\",\"\",VLOOKUP(A82,_pay1,$A$77+1))","v":{"$error":"#N/A"}},{"$f":"IF(B82=\"\",\"\",$F$77*B82)","v":{"$error":"#N/A"}},{"$f":"IF(C82=\"\",\"\",INT((C82+2.5)/5)*5)","v":{"$error":"#N/A"}},null,null,null,{"$f":"IF(ROW()-80>$H$77,\"\",ROW()-80)","v":{"$error":"#N/A"}},{"$f":"IF(H82=\"\",\"\",VLOOKUP(H82,_pay1,$H$77+1))","v":{"$error":"#N/A"}},{"$f":"IF(I82=\"\",\"\",$M$77*I82)","v":{"$error":"#N/A"}},{"$f":"IF(J82=\"\",\"\",INT((J82+2.5)/5)*5)","v":{"$error":"#N/A"}},null,null,null,{"$f":"IF(ROW()-80>$O$77,\"\",ROW()-80)","v":{"$error":"#N/A"}},{"$f":"IF(O82=\"\",\"\",VLOOKUP(O82,_pay1,$O$77+1))","v":{"$error":"#N/A"}},{"$f":"IF(P82=\"\",\"\",$T$77*P82)","v":{"$error":"#N/A"}},{"$f":"IF(Q82=\"\",\"\",INT((Q82+2.5)/5)*5)","v":{"$error":"#N/A"}},null,null,null,80,32]
[null,{"$f":"SUM(B81:B82)","v":{"$error":"#N/A"}},{"$f":"SUM(C81:C82)","v":{"$error":"#N/A"}},{"$f":"SUM(D81:D82)","v":{"$error":"#N/A"}},{"$f":"SUM(E81:E82)","v":0},null,null,null,{"$f":"SUM(I81:I82)","v":{"$error":"#N/A"}},{"$f":"SUM(J81:J82)","v":{"$error":"#N/A"}},{"$f":"SUM(K81:K82)","v":{"$error":"#N/A"}},{"$f":"SUM(L81:L82)","v":0},null,null,null,{"$f":"SUM(P81:P82)","v":{"$error":"#N/A"}},{"$f":"SUM(Q81:Q82)","v":{"$error":"#N/A"}},{"$f":"SUM(R81:R82)","v":{"$error":"#N/A"}},{"$f":"SUM(S81:S82)","v":0},null,null,81,32]
[null,null,null,null,null,null,null,null,null,null,null,null,null,null,null,null,null,null,null,null,null,82,33]
["MASTER PRO 55+ DIVISION",null,null,null,null,null,null,"MASTER PRO 65+ DIVISION",null,null,null,null,null,null,"WOMEN MASTER PRO 70+",null,null,null,null,null,null,83,33]
[null,null,null,null,{"$f":"IF(C88>22,\"Field too big! Use manual tables.\",\"Enter Added Cash (or deduction) here* > \")","v":"Field too big! Use manual tables."},0,null,null,null,null,null,{"$f":"IF(J88>5,\"Field too big! Use manual tables.\",\"Enter Added Cash (or deduction) here* > \")","v":"Field too big! Use manual tables."},0,null,null,null,null,null,{"$f":"IF(Q88>5,\"Field too big! Use Large Field Calculator\",\"Enter Added Cash (or deduction) here* > \")","v":"Field too big! Use Large Field Calculator"},0]
["# Paid",null,"Field Size",null,"Total Fees: ",{"$f":"Cover!G10","v":0},null,"# Paid",null,"Field Size",null,"Total Fees: ",{"$f":"Cover!G12","v":0},null,"# Paid",null,"Field Size",null,"Total Fees: ",{"$f":"Cover!G22","v":0}]
[{"$f":"VLOOKUP(C88,paypct,B89,FALSE)","v":{"$error":"#N/A"}},null,{"$f":"IF(Cover!F10=0,91,Cover!F10)","v":91},null,"Net Purse: ",{"$f":"F87+F86","v":0},null,{"$f":"VLOOKUP(J88,paypct,I89,FALSE)","v":{"$error":"#N/A"}},null,{"$f":"IF(Cover!F12=0,91,Cover!F12)","v":91},null,"Net Purse: ",{"$f":"M87+M86","v":0},null,{"$f":"VLOOKUP(Q88,paypct,P89,FALSE)","v":{"$error":"#N/A"}},null,{"$f":"IF(Cover!F22=0,91,Cover!F22)","v":91},null,"Net Purse: ",{"$f":"T87+T86","v":0}]
[null,{"$f":"IF(E89=45%,3,IF(E89=50%,4,2))","v":4},null,"Choose Payout Percentage>",0.5,null,null,null,{"$f":"IF(L89=45%,3,IF(L89=50%,4,2))","v":2},null,"Choose Payout Percentage>",0.4,null,null,null,{"$f":"IF(S89=45%,3,IF(S89=50%,4,2))","v":2},null,"Choose Payout Percentage>",0.4]
[null,"Prelim","Proposed","Round","Manual","Final",null,null,"Prelim","Proposed","Round","Manual","Final",null,null,"Prelim","Proposed","Round","Manual","Final"]
["Place","Factor","Payout $$","to $5","Adj. ","Place",null,"Place","Factor","Payout $$","to $5","Adj. ","Place",null,"Place","Factor","Payout $$","to $5","Adj. ","Place"]
[{"$f":"IF(ROW()-91>$A$88,\"\",ROW()-91)","v":{"$error":"#N/A"}},{"$f":"IF(A92=\"\",\"\",VLOOKUP(A92,_pay1,$A$88+1))","v":{"$error":"#N/A"}},{"$f":"IF(B92=\"\",\"\",$F$88*B92)","v":{"$error":"#N/A"}},{"$f":"IF(C92=\"\",\"\",INT((C92+2.5)/5)*5)","v":{"$error":"#N/A"}},null,null,null,{"$f":"IF(ROW()-91>$H$88,\"\",ROW()-91)","v":{"$error":"#N/A"}},{"$f":"IF(H92=\"\",\"\",VLOOKUP(H92,_pay1,$H$88+1))","v":{"$error":"#N/A"}},{"$f":"IF(I92=\"\",\"\",$M$88*I92)","v":{"$error":"#N/A"}},{"$f":"IF(J92=\"\",\"\",INT((J92+2.5)/5)*5)","v":{"$error":"#N/A"}},null,null,null,{"$f":"IF(ROW()-91>$O$88,\"\",ROW()-91)","v":{"$error":"#N/A"}},{"$f":"IF(O92=\"\",\"\",VLOOKUP(O92,_pay1,$O$88+1))","v":{"$error":"#N/A"}},{"$f":"IF(P92=\"\",\"\",$T$88*P92)","v":{"$error":"#N/A"}},{"$f":"IF(Q92=\"\",\"\",INT((Q92+2.5)/5)*5)","v":{"$error":"#N/A"}}]
[{"$error":"#N/A"},{"$error":"#N/A"},{"$f":"IF(B93=\"\",\"\",$F$88*B93)","v":{"$error":"#N/A"}},{"$f":"IF(C93=\"\",\"\",INT((C93+2.5)/5)*5)","v":{"$error":"#N/A"}},null,null,null,{"$f":"IF(ROW()-91>$H$88,\"\",ROW()-91)","v":{"$error":"#N/A"}},{"$f":"IF(H93=\"\",\"\",VLOOKUP(H93,_pay1,$H$88+1))","v":{"$error":"#N/A"}},{"$f":"IF(I93=\"\",\"\",$M$88*I93)","v":{"$error":"#N/A"}},{"$f":"IF(J93=\"\",\"\",INT((J93+2.5)/5)*5)","v":{"$error":"#N/A"}},null,null,null,{"$f":"IF(ROW()-91>$O$88,\"\",ROW()-91)","v":{"$error":"#N/A"}},{"$f":"IF(O93=\"\",\"\",VLOOKUP(O93,_pay1,$O$88+1))","v":{"$error":"#N/A"}},{"$f":"IF(P93=\"\",\"\",$T$88*P93)","v":{"$error":"#N/A"}},{"$f":"IF(Q93=\"\",\"\",INT((Q93+2.5)/5)*5)","v":{"$error":"#N/A"}}]
[{"$error":"#N/A"},{"$error":"#N/A"},{"$f":"IF(B94=\"\",\"\",$F$88*B94)","v":{"$error":"#N/A"}},{"$error":"#N/A"},null,null,null,null,{"$f":"SUM(I92:I93)","v":{"$error":"#N/A"}},{"$f":"SUM(J92:J93)","v":{"$error":"#N/A"}},{"$f":"SUM(K92:K93)","v":{"$error":"#N/A"}},{"$f":"SUM(L92:L93)","v":0},null,null,null,{"$f":"SUM(P92:P93)","v":{"$error":"#N/A"}},{"$f":"SUM(Q92:Q93)","v":{"$error":"#N/A"}},{"$f":"SUM(R92:R93)","v":{"$error":"#N/A"}},{"$f":"SUM(S92:S93)","v":0}]
[{"$error":"#N/A"},{"$error":"#N/A"},{"$f":"IF(B95=\"\",\"\",$F$88*B95)","v":{"$error":"#N/A"}},{"$error":"#N/A"}]
[{"$error":"#N/A"},{"$error":"#N/A"},{"$f":"IF(B96=\"\",\"\",$F$88*B96)","v":{"$error":"#N/A"}},{"$error":"#N/A"}]
[{"$error":"#N/A"},{"$error":"#N/A"},{"$f":"IF(B97=\"\",\"\",$F$88*B97)","v":{"$error":"#N/A"}},{"$error":"#N/A"}]
[{"$error":"#N/A"},{"$error":"#N/A"},{"$f":"IF(B98=\"\",\"\",$F$88*B98)","v":{"$error":"#N/A"}},{"$error":"#N/A"}]
[{"$error":"#N/A"},{"$error":"#N/A"},{"$f":"IF(B99=\"\",\"\",$F$88*B99)","v":{"$error":"#N/A"}},{"$error":"#N/A"}]
[{"$error":"#N/A"},{"$error":"#N/A"},{"$f":"IF(B100=\"\",\"\",$F$88*B100)","v":{"$error":"#N/A"}},{"$error":"#N/A"}]
[{"$error":"#N/A"},{"$error":"#N/A"},{"$f":"IF(B101=\"\",\"\",$F$88*B101)","v":{"$error":"#N/A"}},{"$error":"#N/A"}]
[{"$error":"#N/A"},{"$error":"#N/A"},{"$f":"IF(B102=\"\",\"\",$F$88*B102)","v":{"$error":"#N/A"}},{"$error":"#N/A"}]
[null,{"$f":"SUM(B92:B102)","v":{"$error":"#N/A"}},{"$f":"SUM(C92:C102)","v":{"$error":"#N/A"}},{"$f":"SUM(D92:D102)","v":{"$error":"#N/A"}},{"$f":"SUM(E92:E102)","v":0}]

{"sheet":"Am.Jr.Payouts","index":6,"n_rows":218,"n_cols":61,"rows_kept":218,"cut":false,"hidden":false,"merged":[[0,0,0,5],[0,7,0,12],[0,14,0,19],[22,7,22,12],[22,14,22,19],[21,14,21,19],[21,7,21,12],[41,0,41,5],[107,14,107,19],[108,7,108,12],[108,14,108,19],[68,7,68,12],[107,7,107,12],[65,14,65,19],[84,0,84,5],[43,7,43,12],[43,14,43,19],[69,7,69,12],[86,0,86,5],[43,0,43,5],[56,7,56,12],[86,7,86,12],[86,14,86,19],[148,0,148,5],[128,0,128,5],[148,7,148,12],[128,7,128,12],[147,0,147,5],[158,7,158,12],[147,14,147,19],[148,14,148,19],[159,7,159,12],[128,14,128,19],[199,0,199,5],[199,7,199,12],[199,14,199,19],[167,14,167,19],[179,0,179,5],[179,7,179,12],[179,14,179,19],[167,0,167,5],[169,7,169,12]]}
["ADVANCED DIVISION",null,null,null,null,null,null,"MASTER AM 40+",null,null,null,null,null,null,"ADVANCED WOMEN DIVISION",null,null,null,null,null,null,null,null,null,null,null,null,null,null,null,null,null,null,null,null,null,null,null,null,null,null,null,null,null,null,null,null,null,null,null,null,null,null,null,null,null,0.5,null,null,0.45]
[null,null,null,null,"Enter Added Cash (or deduction) here* > ",0,null,null,null,null,null,"Enter Added Cash (or deduction) here* > ",0,null,null,null,null,null,"Enter Added Cash (or deduction) here* > ",0,null,null,null,null,null,null,null,null,null,null,null,null,null,null,null,null,null,null,null,null,null,null,null,null,null,null,null,null,null,null,null,null,null,null,null,null,"Field","# paid",null,"Field","# paid"]
["# Paid",null,"Field Size","Pay pct","Total Fees: ",{"$f":"Cover!G25+Cover!M25","v":0},null,"# Paid",null,"Field Size","Pay pct","Total Fees: ",{"$f":"Cover!G29+Cover!M29","v":0},null,"# Paid",null,"Field Size","Pay pct","Total Fees: ",{"$f":"Cover!G35","v":0}]
[{"$f":"IF(D4=45%,VLOOKUP(C4,dbd,2,FALSE),VLOOKUP(C4,dbe,2,FALSE))","v":{"$error":"#N/A"}},null,{"$f":"IF(Cover!F25=0,91,Cover!F25+ROUNDDOWN(Cover!L25/3,0))","v":91},0.45,"Net Purse: ",{"$f":"F3+F2","v":0},null,{"$f":"IF(K4=45%,VLOOKUP(J4,dbd,2,FALSE),VLOOKUP(J4,dbe,2,FALSE))","v":{"$error":"#N/A"}},null,{"$f":"IF(Cover!F29=0,91,Cover!F29+ROUNDDOWN(Cover!L29/3,0))","v":91},0.45,"Net Purse: ",{"$f":"M3+M2","v":0},null,{"$f":"IF(R4=45%,VLOOKUP(Q4,dbd,2,FALSE),VLOOKUP(Q4,dbe,2,FALSE))","v":{"$error":"#N/A"}},null,{"$f":"IF(Cover!F35=0,91,Cover!F35)","v":91},0.45,"Net Purse: ",{"$f":"T3+T2","v":0},null,null,null,null,null,null,null,null,null,null,null,null,null,null,null,null,null,null,null,null,null,null,null,null,null,null,null,null,null,null,null,null,null,null,null,null,1,1,null,1,1]
[null,null,null,{"$f":"IF(C4=91,\"       To use this table, enter player divisions on Scores page\",IF(C4>75,\"Field limit exceeded. Use printed Payout tables.\",\"\"))","v":"       To use this table, enter player divisions on Scores page"},null,null,null,null,null,null,{"$f":"IF(J4=91,\"       To use this table, enter player divisions on Scores page\",IF(J4>30,\"Field limit exceeded. Use printed Payout tables.\",\"\"))","v":"       To use this table, enter player divisions on Scores page"},null,null,null,null,null,null,{"$f":"IF(Q4=91,\"       To use this table, enter player divisions on Scores page\",IF(Q4>30,\"Field limit exceeded. Use printed Payout tables.\",\"\"))","v":"       To use this table, enter player divisions on Scores page"},null,null,null,null,null,null,null,null,null,null,null,null,null,null,null,null,null,null,null,null,null,null,null,null,null,null,null,null,null,null,null,null,null,null,null,null,null,null,2,1,null,2,1]
[null,"Prelim","Proposed","Round","Manual","Final",null,null,"Prelim","Proposed","Round","Manual","Final",null,null,"Prelim","Proposed","Round","Manual","Final",null,null,null,null,null,null,null,null,null,null,null,null,null,null,null,null,null,null,null,null,null,null,null,null,null,null,null,null,null,null,null,null,null,null,null,null,3,2,null,3,1]
["Place","Factor","Payout $$","to $5","Adj. ","Place",null,"Place","Factor","Payout $$","to $5","Adj. ","Place",null,"Place","Factor","Payout $$","to $5","Adj. ","Place",null,null,null,null,null,null,null,null,null,null,null,null,null,null,null,null,null,null,null,null,null,null,null,null,null,null,null,null,null,null,null,null,null,null,null,null,4,2,null,4,2]
[{"$f":"IF(ROW()-7>$A$4,\"\",ROW()-7)","v":{"$error":"#N/A"}},{"$f":"IF(A8>$A$4,\"\",IF(D$4=45%,VLOOKUP(A8,__pay5,$A$4+1),VLOOKUP(A8,__pay3,$A$4+1)))","v":{"$error":"#N/A"}},{"$f":"IF(B8=\"\",\"\",$F$4*B8)","v":{"$error":"#N/A"}},{"$f":"IF(C8=\"\",\"\",INT((C8+2.5)/5)*5)","v":{"$error":"#N/A"}},null,null,null,{"$f":"IF(ROW()-7>$H$4,\"\",ROW()-7)","v":{"$error":"#N/A"}},{"$f":"IF(K$4=45%,VLOOKUP(H8,__pay5,$H$4+1),VLOOKUP(H8,__pay3,$H$4+1))","v":{"$error":"#N/A"}},{"$f":"IF(I8=\"\",\"\",$M$4*I8)","v":{"$error":"#N/A"}},{"$f":"IF(J8=\"\",\"\",INT((J8+2.5)/5)*5)","v":{"$error":"#N/A"}},null,null,null,{"$f":"IF(ROW()-7>$O$4,\"\",ROW()-7)","v":{"$error":"#N/A"}},{"$f":"IF(R$4=45%,VLOOKUP(O8,__pay5,$O$4+1),VLOOKUP(O8,__pay3,$O$4+1))","v":{"$error":"#N/A"}},{"$f":"IF(P8=\"\",\"\",$T$4*P8)","v":{"$error":"#N/A"}},{"$f":"IF(Q8=\"\",\"\",INT((Q8+2.5)/5)*5)","v":{"$error":"#N/A"}},null,null,null,null,null,null,null,null,null,null,null,null,null,null,null,null,null,null,null,null,null,null,null,null,null,null,null,null,null,null,null,null,null,null,null,null,null,null,5,3,null,5,2]
[{"$error":"#N/A"},{"$f":"IF(A9=\"\",\"\",IF(D$4=45%,VLOOKUP(A9,__pay5,A$4+1),VLOOKUP(A9,__pay3,A$4+1)))","v":{"$error":"#N/A"}},{"$f":"IF(B9=\"\",\"\",$F$4*B9)","v":{"$error":"#N/A"}},{"$error":"#N/A"},null,null,null,{"$error":"#N/A"},{"$f":"IF(H9=\"\",\"\",IF(K$4=45%,VLOOKUP(H9,__pay5,H$4+1),VLOOKUP(H9,__pay3,H$4+1)))","v":{"$error":"#N/A"}},{"$f":"IF(I9=\"\",\"\",$M$4*I9)","v":{"$error":"#N/A"}},{"$error":"#N/A"},null,null,null,{"$error":"#N/A"},{"$f":"IF(O9=\"\",\"\",IF(R$4=45%,VLOOKUP(O9,__pay5,O$4+1),VLOOKUP(O9,__pay3,O$4+1)))","v":{"$error":"#N/A"}},{"$f":"IF(P9=\"\",\"\",$T$4*P9)","v":{"$error":"#N/A"}},{"$error":"#N/A"},null,null,null,null,null,null,null,null,null,null,null,null,null,null,null,null,null,null,null,null,null,null,null,null,null,null,null,null,null,null,null,null,null,null,null,null,null,null,6,3,null,6,3]
[{"$error":"#N/A"},{"$error":"#N/A"},{"$error":"#N/A"},{"$error":"#N/A"},null,null,null,{"$error":"#N/A"},{"$error":"#N/A"},{"$error":"#N/A"},{"$error":"#N/A"},null,null,null,{"$error":"#N/A"},{"$error":"#N/A"},{"$error":"#N/A"},{"$error":"#N/A"},null,null,null,null,null,null,null,null,null,null,null,null,null,null,null,null,null,null,null,null,null,null,null,null,null,null,null,null,null,null,null,null,null,null,null,null,null,null,7,4,null,7,3]
[{"$error":"#N/A"},{"$error":"#N/A"},{"$error":"#N/A"},{"$error":"#N/A"},null,null,null,{"$error":"#N/A"},{"$error":"#N/A"},{"$error":"#N/A"},{"$error":"#N/A"},null,null,null,{"$error":"#N/A"},{"$error":"#N/A"},{"$error":"#N/A"},{"$error":"#N/A"},null,null,null,null,null,null,null,null,null,null,null,null,null,null,null,null,null,null,null,null,null,null,null,null,null,null,null,null,null,null,null,null,null,null,null,null,null,null,8,4,null,8,4]
[{"$error":"#N/A"},{"$error":"#N/A"},{"$error":"#N/A"},{"$error":"#N/A"},null,null,null,{"$error":"#N/A"},{"$error":"#N/A"},{"$error":"#N/A"},{"$error":"#N/A"},null,null,null,{"$error":"#N/A"},{"$error":"#N/A"},{"$error":"#N/A"},{"$error":"#N/A"},null,null,null,null,null,null,null,null,null,null,null,null,null,null,null,null,null,null,null,null,null,null,null,null,null,null,null,null,null,null,null,null,null,null,null,null,null,null,9,5,null,9,4]
[{"$error":"#N/A"},{"$error":"#N/A"},{"$error":"#N/A"},{"$error":"#N/A"},null,null,null,{"$error":"#N/A"},{"$error":"#N/A"},{"$error":"#N/A"},{"$error":"#N/A"},null,null,null,{"$error":"#N/A"},{"$error":"#N/A"},{"$error":"#N/A"},{"$error":"#N/A"},null,null,null,null,null,null,null,null,null,null,null,null,null,null,null,null,null,null,null,null,null,null,null,null,null,null,null,null,null,null,null,null,null,null,null,null,null,null,10,5,null,10,5]
[{"$error":"#N/A"},{"$error":"#N/A"},{"$error":"#N/A"},{"$error":"#N/A"},null,null,null,{"$error":"#N/A"},{"$error":"#N/A"},{"$error":"#N/A"},{"$error":"#N/A"},null,null,null,{"$error":"#N/A"},{"$error":"#N/A"},{"$error":"#N/A"},{"$error":"#N/A"},null,null,null,null,null,null,null,null,null,null,null,null,null,null,null,null,null,null,null,null,null,null,null,null,null,null,null,null,null,null,null,null,null,null,null,null,null,null,11,6,null,11,5]
[{"$error":"#N/A"},{"$error":"#N/A"},{"$error":"#N/A"},{"$error":"#N/A"},null,null,null,{"$error":"#N/A"},{"$error":"#N/A"},{"$error":"#N/A"},{"$error":"#N/A"},null,null,null,{"$error":"#N/A"},{"$error":"#N/A"},{"$error":"#N/A"},{"$error":"#N/A"},null,null,null,null,null,null,null,null,null,null,null,null,null,null,null,null,null,null,null,null,null,null,null,null,null,null,null,null,null,null,null,null,null,null,null,null,null,null,12,6,null,12,6]
[{"$error":"#N/A"},{"$error":"#N/A"},{"$error":"#N/A"},{"$error":"#N/A"},null,null,null,{"$error":"#N/A"},{"$error":"#N/A"},{"$error":"#N/A"},{"$error":"#N/A"},null,null,null,{"$error":"#N/A"},{"$error":"#N/A"},{"$error":"#N/A"},{"$error":"#N/A"},null,null,null,null,null,null,null,null,null,null,null,null,null,null,null,null,null,null,null,null,null,null,null,null,null,null,null,null,null,null,null,null,null,null,null,null,null,null,13,7,null,13,6]
[{"$error":"#N/A"},{"$error":"#N/A"},{"$error":"#N/A"},{"$error":"#N/A"},null,null,null,{"$error":"#N/A"},{"$error":"#N/A"},{"$error":"#N/A"},{"$error":"#N/A"},null,null,null,{"$error":"#N/A"},{"$error":"#N/A"},{"$error":"#N/A"},{"$error":"#N/A"},null,null,null,null,null,null,null,null,null,null,null,null,null,null,null,null,null,null,null,null,null,null,null,null,null,null,null,null,null,null,null,null,null,null,null,null,null,null,14,7,null,14,6]
[{"$error":"#N/A"},{"$error":"#N/A"},{"$error":"#N/A"},{"$error":"#N/A"},null,null,null,{"$error":"#N/A"},{"$error":"#N/A"},{"$error":"#N/A"},{"$error":"#N/A"},null,null,null,{"$error":"#N/A"},{"$error":"#N/A"},{"$error":"#N/A"},{"$error":"#N/A"},null,null,null,null,null,null,null,null,null,null,null,null,null,null,null,null,null,null,null,null,null,null,null,null,null,null,null,null,null,null,null,null,null,null,null,null,null,null,15,8,null,15,7]
[{"$error":"#N/A"},{"$error":"#N/A"},{"$error":"#N/A"},{"$error":"#N/A"},null,null,null,{"$error":"#N/A"},{"$error":"#N/A"},{"$error":"#N/A"},{"$error":"#N/A"},null,null,null,{"$error":"#N/A"},{"$error":"#N/A"},{"$error":"#N/A"},{"$error":"#N/A"},null,null,null,null,null,null,null,null,null,null,null,null,null,null,null,null,null,null,null,null,null,null,null,null,null,null,null,null,null,null,null,null,null,null,null,null,null,null,16,8,null,16,7]
[{"$error":"#N/A"},{"$error":"#N/A"},{"$error":"#N/A"},{"$error":"#N/A"},null,null,null,{"$error":"#N/A"},{"$error":"#N/A"},{"$error":"#N/A"},{"$error":"#N/A"},null,null,null,{"$error":"#N/A"},{"$error":"#N/A"},{"$error":"#N/A"},{"$error":"#N/A"},null,null,null,null,null,null,null,null,null,null,null,null,null,null,null,null,null,null,null,null,null,null,null,null,null,null,null,null,null,null,null,null,null,null,null,null,null,null,17,9,null,17,8]
[{"$error":"#N/A"},{"$error":"#N/A"},{"$error":"#N/A"},{"$error":"#N/A"},null,null,null,null,{"$f":"SUM(I8:I20)","v":{"$error":"#N/A"}},{"$f":"SUM(J8:J20)","v":{"$error":"#N/A"}},{"$f":"SUM(K8:K20)","v":{"$error":"#N/A"}},{"$f":"SUM(L8:L20)","v":0},null,null,null,{"$f":"SUM(P8:P20)","v":{"$error":"#N/A"}},{"$f":"SUM(Q8:Q20)","v":{"$error":"#N/A"}},{"$f":"SUM(R8:R20)","v":{"$error":"#N/A"}},{"$f":"SUM(S8:S20)","v":0},null,null,null,null,null,null,null,null,null,null,null,null,null,null,null,null,null,null,null,null,null,null,null,null,null,null,null,null,null,null,null,null,null,null,null,null,null,18,9,null,18,8]
[{"$error":"#N/A"},{"$error":"#N/A"},{"$error":"#N/A"},{"$error":"#N/A"},null,null,null,"Click Here > Large Field Payout Calculator",null,null,null,null,null,null,"Click Here > Large Field Payout Calculator",null,null,null,null,null,null,null,null,null,null,null,null,null,null,null,null,null,null,null,null,null,null,null,null,null,null,null,null,null,null,null,null,null,null,null,null,null,null,null,null,null,19,10,null,19,9]
[{"$error":"#N/A"},{"$error":"#N/A"},{"$error":"#N/A"},{"$error":"#N/A"},null,null,null,"MASTER AM 50+",null,null,null,null,null,null,"INTERMEDIATE WOMEN AM",null,null,null,null,null,null,null,null,null,null,null,null,null,null,null,null,null,null,null,null,null,null,null,null,null,null,null,null,null,null,null,null,null,null,null,null,null,null,null,null,null,20,10,null,20,9]
[{"$error":"#N/A"},{"$error":"#N/A"},{"$error":"#N/A"},{"$error":"#N/A"},null,null,null,null,null,null,null,"Enter Added Cash (or deduction) here* > ",0,null,null,null,null,null,"Enter Added Cash (or deduction) here* > ",0,null,null,null,null,null,null,null,null,null,null,null,null,null,null,null,null,null,null,null,null,null,null,null,null,null,null,null,null,null,null,null,null,null,null,null,null,21,11,null,21,10]
[{"$error":"#N/A"},{"$error":"#N/A"},{"$error":"#N/A"},{"$error":"#N/A"},null,null,null,"# Paid",null,"Field Size","Pay pct","Total Fees: ",{"$f":"Cover!G30+Cover!M30","v":0},null,"# Paid",null,"Field Size","Pay pct","Total Fees: ",{"$f":"Cover!G36","v":0},null,null,null,null,null,null,null,null,null,null,null,null,null,null,null,null,null,null,null,null,null,null,null,null,null,null,null,null,null,null,null,null,null,null,null,null,22,11,null,22,10]
[{"$error":"#N/A"},{"$error":"#N/A"},{"$error":"#N/A"},{"$error":"#N/A"},null,null,null,{"$f":"IF(K26=45%,VLOOKUP(J26,dbd,2,FALSE),VLOOKUP(J26,dbe,2,FALSE))","v":{"$error":"#N/A"}},null,{"$f":"IF(Cover!F30=0,91,Cover!F30+ROUNDDOWN(Cover!L30/3,0))","v":91},0.45,"Net Purse: ",{"$f":"M25+M24","v":0},null,{"$f":"IF(R26=45%,VLOOKUP(Q26,dbd,2,FALSE),VLOOKUP(Q26,dbe,2,FALSE))","v":{"$error":"#N/A"}},null,{"$f":"IF(Cover!F36=0,91,Cover!F36)","v":91},0.45,"Net Purse: ",{"$f":"T25+T24","v":0},null,null,null,null,null,null,null,null,null,null,null,null,null,null,null,null,null,null,null,null,null,null,null,null,null,null,null,null,null,null,null,null,null,null,null,null,23,12,null,23,10]
[{"$error":"#N/A"},{"$error":"#N/A"},{"$error":"#N/A"},{"$error":"#N/A"},null,null,null,null,null,null,{"$f":"IF(J26=91,\"       To use this table, enter player divisions on Scores page\",IF(J26>30,\"Field limit exceeded. Use printed Payout tables.\",\"\"))","v":"       To use this table, enter player divisions on Scores page"},null,null,null,null,null,null,{"$f":"IF(Q26=91,\"       To use this table, enter player divisions on Scores page\",IF(Q26>26,\"Field limit exceeded. Use printed Payout tables.\",\"\"))","v":"       To use this table, enter player divisions on Scores page"},null,null,null,null,null,null,null,null,null,null,null,null,null,null,null,null,null,null,null,null,null,null,null,null,null,null,null,null,null,null,null,null,null,null,null,null,null,null,24,12,null,24,11]
[{"$error":"#N/A"},{"$error":"#N/A"},{"$error":"#N/A"},{"$error":"#N/A"},null,null,null,null,"Prelim","Proposed","Round","Manual","Final",null,null,"Prelim","Proposed","Round","Manual","Final",null,null,null,null,null,null,null,null,null,null,null,null,null,null,null,null,null,null,null,null,null,null,null,null,null,null,null,null,null,null,null,null,null,null,null,null,25,13,null,25,11]
[{"$error":"#N/A"},{"$error":"#N/A"},{"$error":"#N/A"},{"$error":"#N/A"},null,null,null,"Place","Factor","Payout $$","to $5","Adj. ","Place",null,"Place","Factor","Payout $$","to $5","Adj. ","Place",null,null,null,null,null,null,null,null,null,null,null,null,null,null,null,null,null,null,null,null,null,null,null,null,null,null,null,null,null,null,null,null,null,null,null,null,26,13,null,26,12]
[{"$error":"#N/A"},{"$error":"#N/A"},{"$error":"#N/A"},{"$error":"#N/A"},null,null,null,{"$f":"IF(ROW()-29>$H$26,\"\",ROW()-29)","v":{"$error":"#N/A"}},{"$f":"IF(K$26=45%,VLOOKUP(H30,__pay5,$H$26+1),VLOOKUP(H30,__pay3,$H$26+1))","v":{"$error":"#N/A"}},{"$f":"IF(I30=\"\",\"\",$M$26*I30)","v":{"$error":"#N/A"}},{"$f":"IF(J30=\"\",\"\",INT((J30+2.5)/5)*5)","v":{"$error":"#N/A"}},null,null,null,{"$f":"IF(ROW()-29>$O$26,\"\",ROW()-29)","v":{"$error":"#N/A"}},{"$f":"IF(R$26=45%,VLOOKUP(O30,__pay5,O$26+1),VLOOKUP(O30,__pay3,O$26+1))","v":{"$error":"#N/A"}},{"$f":"IF(P30=\"\",\"\",$T$26*P30)","v":{"$error":"#N/A"}},{"$f":"IF(Q30=\"\",\"\",INT((Q30+2.5)/5)*5)","v":{"$error":"#N/A"}},null,null,null,null,null,null,null,null,null,null,null,null,null,null,null,null,null,null,null,null,null,null,null,null,null,null,null,null,null,null,null,null,null,null,null,null,null,null,27,14,null,27,12]
[{"$error":"#N/A"},{"$error":"#N/A"},{"$error":"#N/A"},{"$error":"#N/A"},null,null,null,{"$error":"#N/A"},{"$f":"IF(H31=\"\",\"\",IF(K$26=45%,VLOOKUP(H31,__pay5,H$26+1),VLOOKUP(H31,__pay3,H$26+1)))","v":{"$error":"#N/A"}},{"$f":"IF(I31=\"\",\"\",$M$26*I31)","v":{"$error":"#N/A"}},{"$error":"#N/A"},null,null,null,{"$error":"#N/A"},{"$f":"IF(O31=\"\",\"\",IF(R$26=45%,VLOOKUP(O31,__pay5,O$26+1),VLOOKUP(O31,__pay3,O$26+1)))","v":{"$error":"#N/A"}},{"$error":"#N/A"},{"$error":"#N/A"},null,null,null,null,null,null,null,null,null,null,null,null,null,null,null,null,null,null,null,null,null,null,null,null,null,null,null,null,null,null,null,null,null,null,null,null,null,null,28,14,null,28,13]
[{"$error":"#N/A"},{"$error":"#N/A"},{"$error":"#N/A"},{"$error":"#N/A"},null,null,null,{"$error":"#N/A"},{"$error":"#N/A"},{"$error":"#N/A"},{"$error":"#N/A"},null,null,null,{"$error":"#N/A"},{"$error":"#N/A"},{"$error":"#N/A"},{"$error":"#N/A"},null,null,null,null,null,null,null,null,null,null,null,null,null,null,null,null,null,null,null,null,null,null,null,null,null,null,null,null,null,null,null,null,null,null,null,null,null,null,29,15,null,29,13]
[{"$error":"#N/A"},{"$error":"#N/A"},{"$error":"#N/A"},{"$error":"#N/A"},null,null,null,{"$error":"#N/A"},{"$error":"#N/A"},{"$error":"#N/A"},{"$error":"#N/A"},null,null,null,{"$error":"#N/A"},{"$error":"#N/A"},{"$error":"#N/A"},{"$error":"#N/A"},null,null,null,null,null,null,null,null,null,null,null,null,null,null,null,null,null,null,null,null,null,null,null,null,null,null,null,null,null,null,null,null,null,null,null,null,null,null,30,15,null,30,14]
[{"$error":"#N/A"},{"$error":"#N/A"},{"$error":"#N/A"},{"$error":"#N/A"},null,null,null,{"$error":"#N/A"},{"$error":"#N/A"},{"$error":"#N/A"},{"$error":"#N/A"},null,null,null,{"$error":"#N/A"},{"$error":"#N/A"},{"$error":"#N/A"},{"$error":"#N/A"},null,null,null,null,null,null,null,null,null,null,null,null,null,null,null,null,null,null,null,null,null,null,null,null,null,null,null,null,null,null,null,null,null,null,null,null,null,null,31,16,null,31,14]
[{"$error":"#N/A"},{"$error":"#N/A"},{"$error":"#N/A"},{"$error":"#N/A"},null,null,null,{"$error":"#N/A"},{"$error":"#N/A"},{"$error":"#N/A"},{"$error":"#N/A"},null,null,null,{"$error":"#N/A"},{"$error":"#N/A"},{"$error":"#N/A"},{"$error":"#N/A"},null,null,null,null,null,null,null,null,null,null,null,null,null,null,null,null,null,null,null,null,null,null,null,null,null,null,null,null,null,null,null,null,null,null,null,null,null,null,32,16,null,32,15]
[{"$error":"#N/A"},{"$error":"#N/A"},{"$error":"#N/A"},{"$error":"#N/A"},null,null,null,{"$error":"#N/A"},{"$error":"#N/A"},{"$error":"#N/A"},{"$error":"#N/A"},null,null,null,{"$error":"#N/A"},{"$error":"#N/A"},{"$error":"#N/A"},{"$error":"#N/A"},null,null,null,null,null,null,null,null,null,null,null,null,null,null,null,null,null,null,null,null,null,null,null,null,null,null,null,null,null,null,null,null,null,null,null,null,null,null,33,17,null,33,15]
[{"$error":"#N/A"},{"$error":"#N/A"},{"$error":"#N/A"},{"$error":"#N/A"},null,null,null,{"$error":"#N/A"},{"$error":"#N/A"},{"$error":"#N/A"},{"$error":"#N/A"},null,null,null,{"$error":"#N/A"},{"$error":"#N/A"},{"$error":"#N/A"},{"$error":"#N/A"},null,null,null,null,null,null,null,null,null,null,null,null,null,null,null,null,null,null,null,null,null,null,null,null,null,null,null,null,null,null,null,null,null,null,null,null,null,null,34,17,null,34,15]
[{"$error":"#N/A"},{"$error":"#N/A"},{"$error":"#N/A"},{"$error":"#N/A"},null,null,null,{"$error":"#N/A"},{"$error":"#N/A"},{"$error":"#N/A"},{"$error":"#N/A"},null,null,null,{"$error":"#N/A"},{"$error":"#N/A"},{"$error":"#N/A"},{"$error":"#N/A"},null,null,null,null,null,null,null,null,null,null,null,null,null,null,null,null,null,null,null,null,null,null,null,null,null,null,null,null,null,null,null,null,null,null,null,null,null,null,35,18,null,35,16]
[{"$error":"#N/A"},{"$error":"#N/A"},{"$error":"#N/A"},{"$error":"#N/A"},null,null,null,{"$error":"#N/A"},{"$error":"#N/A"},{"$error":"#N/A"},{"$error":"#N/A"},null,null,null,{"$error":"#N/A"},{"$error":"#N/A"},{"$error":"#N/A"},{"$error":"#N/A"},null,null,null,null,null,null,null,null,null,null,null,null,null,null,null,null,null,null,null,null,null,null,null,null,null,null,null,null,null,null,null,null,null,null,null,null,null,null,36,18,null,36,16]
[{"$error":"#N/A"},{"$error":"#N/A"},{"$error":"#N/A"},{"$error":"#N/A"},null,null,null,{"$error":"#N/A"},{"$error":"#N/A"},{"$error":"#N/A"},{"$error":"#N/A"},null,null,null,{"$error":"#N/A"},{"$error":"#N/A"},{"$error":"#N/A"},{"$error":"#N/A"},null,null,null,null,null,null,null,null,null,null,null,null,null,null,null,null,null,null,null,null,null,null,null,null,null,null,null,null,null,null,null,null,null,null,null,null,null,null,37,19,null,37,17]
[null,{"$f":"SUM(B8:B40)","v":{"$error":"#N/A"}},{"$f":"SUM(C8:C40)","v":{"$error":"#N/A"}},{"$f":"SUM(D8:D40)","v":{"$error":"#N/A"}},{"$f":"SUM(E8:E40)","v":0},null,null,{"$error":"#N/A"},{"$error":"#N/A"},{"$error":"#N/A"},{"$error":"#N/A"},null,null,null,{"$error":"#N/A"},{"$error":"#N/A"},{"$error":"#N/A"},{"$error":"#N/A"},null,null,null,null,null,null,null,null,null,null,null,null,null,null,null,null,null,null,null,null,null,null,null,null,null,null,null,null,null,null,null,null,null,null,null,null,null,null,38,19,null,38,17]
["Click Here > Large Field Payout Calculator",null,null,null,null,null,null,{"$error":"#N/A"},{"$error":"#N/A"},{"$error":"#N/A"},{"$error":"#N/A"},null,null,null,{"$error":"#N/A"},{"$error":"#N/A"},{"$error":"#N/A"},{"$error":"#N/A"},null,null,null,null,null,null,null,null,null,null,null,null,null,null,null,null,null,null,null,null,null,null,null,null,null,null,null,null,null,null,null,null,null,null,null,null,null,null,39,20,null,39,18]
["* Can be a negative number when expenses like trophies involved",null,null,null,null,null,null,null,{"$f":"SUM(I30:I42)","v":{"$error":"#N/A"}},{"$f":"SUM(J30:J42)","v":{"$error":"#N/A"}},{"$f":"SUM(K30:K42)","v":{"$error":"#N/A"}},{"$f":"SUM(L30:L42)","v":0},null,null,null,{"$f":"SUM(P30:P42)","v":{"$error":"#N/A"}},{"$f":"SUM(Q30:Q42)","v":{"$error":"#N/A"}},{"$f":"SUM(R30:R42)","v":{"$error":"#N/A"}},{"$f":"SUM(S30:S42)","v":0},null,null,null,null,null,null,null,null,null,null,null,null,null,null,null,null,null,null,null,null,null,null,null,null,null,null,null,null,null,null,null,null,null,null,null,null,null,40,20,null,40,18]
["INTERMEDIATE AM DIVISION",null,null,null,null,null,null,"MASTER AM 55+",null,null,null,null,null,null,"MASTER AM 60+",null,null,null,null,null,null,null,"Flatter",null,null,null,null,null,null,null,null,null,null,null,null,null,null,null,null,null,null,null,null,null,null,null,null,null,null,null,null,null,null,null,null,null,41,21,null,41,19]
[null,null,null,null,"Enter Added Cash (or deduction) here* > ",0,null,null,null,null,null,"Enter Added Cash (or deduction) here* > ",0,null,null,null,null,null,"Enter Added Cash (or deduction) here* > ",0,null,null,1,2,3,4,5,6,7,8,9,10,11,12,13,14,15,16,17,18,19,20,21,22,23,24,25,26,27,28,29,30,31,32,33,null,42,21,null,42,19]
["# Paid",null,"Field Size","Pay pct","Total Fees: ",{"$f":"Cover!G26+Cover!M26","v":0},null,"# Paid",null,"Field Size","Pay pct","Total Fees: ",{"$f":"Cover!G31+Cover!M31","v":0},null,"# Paid",null,"Field Size","Pay pct","Total Fees: ",{"$f":"Cover!G38+Cover!M32","v":0},null,1,1,0.6,0.45,0.39,0.3,0.25,0.21,0.19,0.17,0.15,0.14000000000000001,0.13,0.115,0.11,0.1,9.5000000000000001E-2,0.09,8.5000000000000006E-2,0.08,7.4999999999999997E-2,7.1999999999999995E-2,7.0000000000000007E-2,7.0000000000000007E-2,6.5000000000000002E-2,6.2E-2,0.06,5.7000000000000002E-2,5.5E-2,5.5E-2,5.1999999999999998E-2,0.05,4.8000000000000001E-2,4.5999999999999999E-2,null,43,22,null,43,19]
[{"$f":"IF(D47=45%,VLOOKUP(C47,dbd,2,FALSE),VLOOKUP(C47,dbe,2,FALSE))","v":{"$error":"#N/A"}},null,{"$f":"IF(Cover!F26=0,91,Cover!F26+ROUNDDOWN(Cover!L26/3,0))","v":91},0.45,"Net Purse: ",{"$f":"F46+F45","v":0},null,{"$f":"IF(K47=45%,VLOOKUP(J47,dbd,2,FALSE),VLOOKUP(J47,dbe,2,FALSE))","v":{"$error":"#N/A"}},null,{"$f":"IF(Cover!F31=0,91,Cover!F31+ROUNDDOWN(Cover!L31/3,0))","v":91},0.45,"Net Purse: ",{"$f":"M46+M45","v":0},null,{"$f":"IF(R47=45%,VLOOKUP(Q47,dbd,2,FALSE),VLOOKUP(Q47,dbe,2,FALSE))","v":{"$error":"#N/A"}},null,{"$f":"IF(Cover!F32=0,91,Cover!F32)","v":91},0.45,"Net Purse: ",{"$f":"T46+T45","v":0},null,2,null,0.4,0.32500000000000001,0.28999999999999998,0.25,0.22,0.19,0.17,0.15,0.14000000000000001,0.13,0.12,0.11,0.1,9.5000000000000001E-2,0.09,8.5000000000000006E-2,0.08,7.4999999999999997E-2,7.0000000000000007E-2,6.8000000000000005E-2,6.5000000000000002E-2,6.5000000000000002E-2,0.06,5.8000000000000003E-2,5.5E-2,5.5E-2,0.05,0.05,0.05,4.8000000000000001E-2,4.5999999999999999E-2,4.3999999999999997E-2,null,44,22,null,44,20]
[null,null,null,{"$f":"IF(C47=91,\"       To use this table, enter player divisions on Scores page\",IF(C47>66,\"Field limit exceeded. Use printed Payout tables.\",\"\"))","v":"       To use this table, enter player divisions on Scores page"},null,null,null,null,null,null,{"$f":"IF(J47=91,\"       To use this table, enter player divisions on Scores page\",IF(J47>9,\"Field limit exceeded. Use printed Payout tables.\",\"\"))","v":"       To use this table, enter player divisions on Scores page"},null,null,null,null,null,null,{"$f":"IF(Q47=91,\"       To use this table, enter player divisions on Scores page\",IF(Q47>26,\"Field limit exceeded. Use printed Payout tables.\",\"\"))","v":"       To use this table, enter player divisions on Scores page"},null,null,null,3,null,null,0.22500000000000001,0.2,0.2,0.18,0.17,0.15,0.14000000000000001,0.13,0.12,0.11,0.105,9.5000000000000001E-2,0.09,8.5000000000000006E-2,0.08,7.4999999999999997E-2,7.4999999999999997E-2,7.0000000000000007E-2,6.5000000000000002E-2,6.5000000000000002E-2,0.06,0.06,5.5E-2,5.5E-2,5.2999999999999999E-2,0.05,0.05,4.8000000000000001E-2,4.5999999999999999E-2,4.4999999999999998E-2,4.3999999999999997E-2,null,45,23,null,45,20]
[null,"Prelim","Proposed","Round","Manual","Final",null,null,"Prelim","Proposed","Round","Manual","Final",null,null,"Prelim","Proposed","Round","Manual","Final",null,4,null,null,null,0.12,0.15,0.15,0.14000000000000001,0.13,0.12,0.12,0.11,0.1,9.5000000000000001E-2,0.09,8.5000000000000006E-2,0.08,7.4999999999999997E-2,7.4999999999999997E-2,7.0000000000000007E-2,6.5000000000000002E-2,6.5000000000000002E-2,0.06,0.06,5.5E-2,5.5E-2,5.5E-2,0.05,0.05,0.05,4.4999999999999998E-2,4.4999999999999998E-2,4.3999999999999997E-2,4.2000000000000003E-2,null,46,23,null,46,21]
["Place","Factor","Payout $$","to $5","Adj. ","Place",null,"Place","Factor","Payout $$","to $5","Adj. ","Place",null,"Place","Factor","Payout $$","to $5","Adj. ","Place",null,5,null,null,null,null,0.1,0.12,0.12,0.12,0.11,0.11,0.1,0.09,0.09,8.5000000000000006E-2,0.08,7.4999999999999997E-2,7.4999999999999997E-2,7.0000000000000007E-2,6.5000000000000002E-2,6.5000000000000002E-2,0.06,0.06,5.5E-2,5.5E-2,5.5E-2,0.05,0.05,0.05,4.4999999999999998E-2,4.4999999999999998E-2,4.3999999999999997E-2,4.2000000000000003E-2,4.2000000000000003E-2,null,47,24,null,47,21]
[{"$f":"IF(ROW()-50>$A$47,\"\",ROW()-50)","v":{"$error":"#N/A"}},{"$f":"IF(D$47=45%,VLOOKUP(A51,__pay5,A$47+1),VLOOKUP(A51,__pay3,A$47+1))","v":{"$error":"#N/A"}},{"$f":"IF(B51=\"\",\"\",$F$47*B51)","v":{"$error":"#N/A"}},{"$f":"IF(C51=\"\",\"\",INT((C51+2.5)/5)*5)","v":{"$error":"#N/A"}},null,null,null,{"$f":"IF(ROW()-50>$H$47,\"\",ROW()-50)","v":{"$error":"#N/A"}},{"$f":"IF(K$47=45%,VLOOKUP(H51,__pay5,H$47+1),VLOOKUP(H51,__pay3,H$47+1))","v":{"$error":"#N/A"}},{"$f":"IF(I51=\"\",\"\",$M$47*I51)","v":{"$error":"#N/A"}},{"$f":"IF(J51=\"\",\"\",INT((J51+2.5)/5)*5)","v":{"$error":"#N/A"}},null,null,null,{"$f":"IF(ROW()-50>$O$47,\"\",ROW()-50)","v":{"$error":"#N/A"}},{"$f":"IF(R$47=45%,VLOOKUP(O51,__pay5,O$47+1),VLOOKUP(O51,__pay3,O$47+1))","v":{"$error":"#N/A"}},{"$f":"IF(P51=\"\",\"\",$T$47*P51)","v":{"$error":"#N/A"}},{"$f":"IF(Q51=\"\",\"\",INT((Q51+2.5)/5)*5)","v":{"$error":"#N/A"}},null,null,null,6,null,null,null,null,null,0.08,0.1,0.1,0.1,0.09,0.09,0.09,0.08,0.08,7.4999999999999997E-2,7.4999999999999997E-2,7.0000000000000007E-2,6.5000000000000002E-2,6.5000000000000002E-2,0.06,0.06,5.5E-2,5.5E-2,5.5E-2,0.05,0.05,0.05,4.4999999999999998E-2,4.4999999999999998E-2,4.4999999999999998E-2,4.2000000000000003E-2,0.04,0.04,null,48,24,null,48,22]
[{"$error":"#N/A"},{"$f":"IF(A52=\"\",\"\",IF(D$47=45%,VLOOKUP(A52,__pay5,A$47+1),VLOOKUP(A52,__pay3,A$47+1)))","v":{"$error":"#N/A"}},{"$error":"#N/A"},{"$error":"#N/A"},null,null,null,{"$f":"IF(ROW()-50>$H$47,\"\",ROW()-50)","v":{"$error":"#N/A"}},{"$f":"IF(H52=\"\",\"\",IF(K$47=45%,VLOOKUP(H52,__pay5,H$47+1),VLOOKUP(H52,__pay3,H$47+1)))","v":{"$error":"#N/A"}},{"$f":"IF(I52=\"\",\"\",$M$47*I52)","v":{"$error":"#N/A"}},{"$error":"#N/A"},null,null,null,{"$error":"#N/A"},{"$f":"IF(O52=\"\",\"\",IF(R$47=45%,VLOOKUP(O52,__pay5,O$47+1),VLOOKUP(O52,__pay3,O$47+1)))","v":{"$error":"#N/A"}},{"$error":"#N/A"},{"$error":"#N/A"},null,null,null,7,null,null,null,null,null,null,7.0000000000000007E-2,0.08,0.08,0.08,0.08,0.08,7.4999999999999997E-2,7.4999999999999997E-2,7.0000000000000007E-2,7.0000000000000007E-2,6.5000000000000002E-2,6.5000000000000002E-2,0.06,0.06,5.5E-2,5.5E-2,0.05,0.05,0.05,0.05,0.05,4.4999999999999998E-2,4.4999999999999998E-2,4.4999999999999998E-2,0.04,0.04,0.04,null,49,25,null,49,22]
[{"$error":"#N/A"},{"$error":"#N/A"},{"$error":"#N/A"},{"$error":"#N/A"},null,null,null,{"$f":"IF(ROW()-50>$H$47,\"\",ROW()-50)","v":{"$error":"#N/A"}},{"$f":"IF(H53=\"\",\"\",IF(K$47=45%,VLOOKUP(H53,__pay5,H$47+1),VLOOKUP(H53,__pay3,H$47+1)))","v":{"$error":"#N/A"}},{"$f":"IF(I53=\"\",\"\",$M$47*I53)","v":{"$error":"#N/A"}},{"$error":"#N/A"},null,null,null,{"$error":"#N/A"},{"$error":"#N/A"},{"$error":"#N/A"},{"$error":"#N/A"},null,null,null,8,null,null,null,null,null,null,null,0.06,7.0000000000000007E-2,7.0000000000000007E-2,7.0000000000000007E-2,7.0000000000000007E-2,7.0000000000000007E-2,7.0000000000000007E-2,6.5000000000000002E-2,6.5000000000000002E-2,6.5000000000000002E-2,0.06,0.06,5.5E-2,5.5E-2,5.5E-2,0.05,0.05,0.05,4.4999999999999998E-2,4.4999999999999998E-2,4.4999999999999998E-2,4.4999999999999998E-2,0.04,0.04,0.04,3.7999999999999999E-2,null,50,25,null,50,23]
[{"$error":"#N/A"},{"$error":"#N/A"},{"$error":"#N/A"},{"$error":"#N/A"},null,null,null,{"$f":"IF(ROW()-50>$H$47,\"\",ROW()-50)","v":{"$error":"#N/A"}},{"$f":"IF(H54=\"\",\"\",IF(K$47=45%,VLOOKUP(H54,__pay5,H$47+1),VLOOKUP(H54,__pay3,H$47+1)))","v":{"$error":"#N/A"}},{"$f":"IF(I54=\"\",\"\",$M$47*I54)","v":{"$error":"#N/A"}},{"$error":"#N/A"},null,null,null,{"$error":"#N/A"},{"$error":"#N/A"},{"$error":"#N/A"},{"$error":"#N/A"},null,null,null,9,null,null,null,null,null,null,null,null,0.06,0.06,0.06,0.06,6.5000000000000002E-2,6.5000000000000002E-2,0.06,0.06,0.06,5.5E-2,5.5E-2,5.5E-2,0.05,0.05,0.05,0.05,4.4999999999999998E-2,4.4999999999999998E-2,4.4999999999999998E-2,4.4999999999999998E-2,0.04,0.04,0.04,0.04,3.7999999999999999E-2,null,51,26,null,51,23]
[{"$error":"#N/A"},{"$error":"#N/A"},{"$error":"#N/A"},{"$error":"#N/A"},null,null,null,null,{"$f":"SUM(I51:I54)","v":{"$error":"#N/A"}},{"$f":"SUM(J51:J54)","v":{"$error":"#N/A"}},{"$f":"SUM(K51:K54)","v":{"$error":"#N/A"}},{"$f":"SUM(L51:L54)","v":0},null,null,{"$error":"#N/A"},{"$error":"#N/A"},{"$error":"#N/A"},{"$error":"#N/A"},null,null,null,10,null,null,null,null,null,null,null,null,null,0.05,0.05,0.06,0.06,0.06,0.06,5.5E-2,5.5E-2,5.5E-2,5.5E-2,0.05,0.05,0.05,4.4999999999999998E-2,4.4999999999999998E-2,4.4999999999999998E-2,4.4999999999999998E-2,4.4999999999999998E-2,0.04,0.04,0.04,0.04,0.04,3.5999999999999997E-2,null,52,26,null,52,23]
[{"$error":"#N/A"},{"$error":"#N/A"},{"$error":"#N/A"},{"$error":"#N/A"},null,null,null,null,null,null,null,null,null,null,{"$error":"#N/A"},{"$error":"#N/A"},{"$error":"#N/A"},{"$error":"#N/A"},null,null,null,11,null,null,null,null,null,null,null,null,null,null,0.05,0.05,0.05,0.05,5.5E-2,0.05,0.05,0.05,0.05,0.05,0.05,4.4999999999999998E-2,4.4999999999999998E-2,4.4999999999999998E-2,4.4999999999999998E-2,0.04,0.04,0.04,0.04,0.04,0.04,3.5000000000000003E-2,3.5999999999999997E-2,null,53,27,null,53,24]
[{"$error":"#N/A"},{"$error":"#N/A"},{"$error":"#N/A"},{"$error":"#N/A"},null,null,null,"MASTER AM 65+",null,null,null,null,null,null,{"$error":"#N/A"},{"$error":"#N/A"},{"$error":"#N/A"},{"$error":"#N/A"},null,null,null,12,null,null,null,null,null,null,null,null,null,null,null,0.04,4.4999999999999998E-2,4.4999999999999998E-2,0.05,0.05,0.05,4.4999999999999998E-2,0.05,4.4999999999999998E-2,4.4999999999999998E-2,4.4999999999999998E-2,4.4999999999999998E-2,0.04,0.04,0.04,0.04,0.04,0.04,3.5000000000000003E-2,3.5000000000000003E-2,3.5000000000000003E-2,3.5999999999999997E-2,null,54,27,null,54,24]
[{"$error":"#N/A"},{"$error":"#N/A"},{"$error":"#N/A"},{"$error":"#N/A"},null,null,null,null,null,null,null,"Enter Added Cash (or deduction) here* > ",0,null,{"$error":"#N/A"},{"$error":"#N/A"},{"$error":"#N/A"},{"$error":"#N/A"},null,null,null,13,null,null,null,null,null,null,null,null,null,null,null,null,0.04,0.04,4.4999999999999998E-2,4.4999999999999998E-2,4.4999999999999998E-2,4.4999999999999998E-2,4.4999999999999998E-2,4.4999999999999998E-2,4.4999999999999998E-2,0.04,0.04,0.04,0.04,0.04,0.04,0.04,3.5000000000000003E-2,3.5000000000000003E-2,3.5000000000000003E-2,3.5000000000000003E-2,3.4000000000000002E-2,null,55,28,null,55,25]
[{"$error":"#N/A"},{"$error":"#N/A"},{"$error":"#N/A"},{"$error":"#N/A"},null,null,null,"# Paid",null,"Field Size","Pay pct","Total Fees: ",{"$f":"Cover!G33+Cover!M33","v":0},null,{"$error":"#N/A"},{"$error":"#N/A"},{"$error":"#N/A"},{"$error":"#N/A"},null,null,null,14,null,null,null,null,null,null,null,null,null,null,null,null,null,0.03,0.04,0.04,0.04,0.04,0.04,0.04,0.04,0.04,0.04,0.04,0.04,0.04,3.5000000000000003E-2,3.5000000000000003E-2,3.5000000000000003E-2,3.5000000000000003E-2,3.5000000000000003E-2,3.5000000000000003E-2,3.4000000000000002E-2,null,56,28,null,56,25]
[{"$error":"#N/A"},{"$error":"#N/A"},{"$error":"#N/A"},{"$error":"#N/A"},null,null,null,{"$f":"IF(K60=45%,VLOOKUP(J60,dbd,2,FALSE),VLOOKUP(J60,dbe,2,FALSE))","v":{"$error":"#N/A"}},null,{"$f":"IF(Cover!F33=0,91,Cover!F33+ROUNDDOWN(Cover!L33/3,0))","v":91},0.45,"Net Purse: ",{"$f":"M59+M58","v":0},null,{"$error":"#N/A"},{"$error":"#N/A"},{"$error":"#N/A"},{"$error":"#N/A"},null,null,null,15,null,null,null,null,null,null,null,null,null,null,null,null,null,null,0.03,3.5000000000000003E-2,3.5000000000000003E-2,0.04,0.04,0.04,0.04,0.04,0.04,3.5000000000000003E-2,3.5000000000000003E-2,3.5000000000000003E-2,3.5000000000000003E-2,3.5000000000000003E-2,3.5000000000000003E-2,3.5000000000000003E-2,3.5000000000000003E-2,3.5000000000000003E-2,3.2000000000000001E-2,null,57,29,null,57,26]
[{"$error":"#N/A"},{"$error":"#N/A"},{"$error":"#N/A"},{"$error":"#N/A"},null,null,null,null,null,null,{"$f":"IF(J60=91,\"       To use this table, enter player divisions on Scores page\",IF(J60>9,\"Field limit exceeded. Use printed Payout tables.\",\"\"))","v":"       To use this table, enter player divisions on Scores page"},null,null,null,{"$error":"#N/A"},{"$error":"#N/A"},{"$error":"#N/A"},{"$error":"#N/A"},null,null,null,16,null,null,null,null,null,null,null,null,null,null,null,null,null,null,null,0.03,0.03,3.5000000000000003E-2,3.5000000000000003E-2,3.5000000000000003E-2,3.5000000000000003E-2,3.5000000000000003E-2,3.5000000000000003E-2,3.5000000000000003E-2,3.5000000000000003E-2,3.5000000000000003E-2,3.5000000000000003E-2,3.5000000000000003E-2,3.5000000000000003E-2,3.5000000000000003E-2,0.03,0.03,3.2000000000000001E-2,null,58,29,null,58,26]
[{"$error":"#N/A"},{"$error":"#N/A"},{"$error":"#N/A"},{"$error":"#N/A"},null,null,null,null,"Prelim","Proposed","Round","Manual","Final",null,{"$error":"#N/A"},{"$error":"#N/A"},{"$error":"#N/A"},{"$error":"#N/A"},null,null,null,17,null,null,null,null,null,null,null,null,null,null,null,null,null,null,null,null,0.03,0.03,0.03,3.5000000000000003E-2,3.5000000000000003E-2,3.5000000000000003E-2,3.5000000000000003E-2,3.5000000000000003E-2,3.5000000000000003E-2,3.5000000000000003E-2,0.03,0.03,0.03,0.03,0.03,0.03,0.03,null,59,30,null,59,27]
[{"$error":"#N/A"},{"$error":"#N/A"},{"$error":"#N/A"},{"$error":"#N/A"},null,null,null,"Place","Factor","Payout $$","to $5","Adj. ","Place",null,{"$error":"#N/A"},{"$error":"#N/A"},{"$error":"#N/A"},{"$error":"#N/A"},null,null,null,18,null,null,null,null,null,null,null,null,null,null,null,null,null,null,null,null,null,0.03,2.5000000000000001E-2,0.03,0.03,0.03,0.03,0.03,0.03,0.03,0.03,0.03,0.03,0.03,0.03,0.03,0.03,null,60,30,null,60,27]
[{"$error":"#N/A"},{"$error":"#N/A"},{"$error":"#N/A"},{"$error":"#N/A"},null,null,null,{"$f":"IF(ROW()-63>$H$60,\"\",ROW()-63)","v":{"$error":"#N/A"}},{"$f":"IF(K$60=45%,VLOOKUP(H64,__pay5,H$60+1),VLOOKUP(H64,__pay3,H$60+1))","v":{"$error":"#N/A"}},{"$f":"IF(I64=\"\",\"\",$M$60*I64)","v":{"$error":"#N/A"}},{"$error":"#N/A"},null,null,null,null,{"$f":"SUM(P51:P63)","v":{"$error":"#N/A"}},{"$f":"SUM(Q51:Q63)","v":{"$error":"#N/A"}},{"$f":"SUM(R51:R63)","v":{"$error":"#N/A"}},{"$f":"SUM(S51:S63)","v":0},null,null,19,null,null,null,null,null,null,null,null,null,null,null,null,null,null,null,null,null,null,2.5000000000000001E-2,0.03,0.03,0.03,0.03,0.03,0.03,0.03,0.03,0.03,0.03,0.03,0.03,0.03,2.8000000000000001E-2,null,61,31,null,61,28]
[{"$error":"#N/A"},{"$error":"#N/A"},{"$error":"#N/A"},{"$error":"#N/A"},null,null,null,{"$f":"IF(ROW()-63>$H$60,\"\",ROW()-63)","v":{"$error":"#N/A"}},{"$f":"IF(H65=\"\",\"\",IF(K$60=45%,VLOOKUP(H65,__pay5,H$60+1),VLOOKUP(H65,__pay3,H$60+1)))","v":{"$error":"#N/A"}},{"$f":"IF(I65=\"\",\"\",$M$60*I65)","v":{"$error":"#N/A"}},{"$error":"#N/A"},null,null,null,null,null,null,null,null,null,null,20,null,null,null,null,null,null,null,null,null,null,null,null,null,null,null,null,null,null,null,2.5000000000000001E-2,2.5000000000000001E-2,2.5000000000000001E-2,0.03,0.03,0.03,0.03,0.03,0.03,0.03,0.03,0.03,0.03,2.8000000000000001E-2,null,62,31,null,62,28]
[{"$error":"#N/A"},{"$error":"#N/A"},{"$error":"#N/A"},{"$error":"#N/A"},null,null,null,{"$f":"IF(ROW()-63>$H$60,\"\",ROW()-63)","v":{"$error":"#N/A"}},{"$f":"IF(H66=\"\",\"\",IF(K$60=45%,VLOOKUP(H66,__pay5,H$60+1),VLOOKUP(H66,__pay3,H$60+1)))","v":{"$error":"#N/A"}},{"$f":"IF(I66=\"\",\"\",$M$60*I66)","v":{"$error":"#N/A"}},{"$error":"#N/A"},null,null,null,"RECREATIONAL WOMEN AM",null,null,null,null,null,null,21,null,null,null,null,null,null,null,null,null,null,null,null,null,null,null,null,null,null,null,null,2.5000000000000001E-2,2.5000000000000001E-2,2.5000000000000001E-2,2.5000000000000001E-2,2.5000000000000001E-2,2.5000000000000001E-2,2.5000000000000001E-2,2.5000000000000001E-2,2.5000000000000001E-2,2.5000000000000001E-2,2.5000000000000001E-2,2.5000000000000001E-2,2.5999999999999999E-2,null,63,32,null,63,28]
[{"$error":"#N/A"},{"$error":"#N/A"},{"$error":"#N/A"},{"$error":"#N/A"},null,null,null,{"$f":"IF(ROW()-63>$H$60,\"\",ROW()-63)","v":{"$error":"#N/A"}},{"$f":"IF(H67=\"\",\"\",IF(K$60=45%,VLOOKUP(H67,__pay5,H$60+1),VLOOKUP(H67,__pay3,H$60+1)))","v":{"$error":"#N/A"}},{"$f":"IF(I67=\"\",\"\",$M$60*I67)","v":{"$error":"#N/A"}},{"$error":"#N/A"},null,null,null,null,null,null,null,"Enter Added Cash (or deduction) here* > ",0,null,22,null,null,null,null,null,null,null,null,null,null,null,null,null,null,null,null,null,null,null,null,null,2.5000000000000001E-2,2.5000000000000001E-2,2.5000000000000001E-2,2.5000000000000001E-2,2.5000000000000001E-2,2.5000000000000001E-2,2.5000000000000001E-2,2.5000000000000001E-2,2.5000000000000001E-2,2.5000000000000001E-2,2.5000000000000001E-2,2.5999999999999999E-2,null,64,32,null,64,29]
[{"$error":"#N/A"},{"$error":"#N/A"},{"$error":"#N/A"},{"$error":"#N/A"},null,null,null,null,{"$f":"SUM(I64:I67)","v":{"$error":"#N/A"}},{"$f":"SUM(J64:J67)","v":{"$error":"#N/A"}},{"$f":"SUM(K64:K67)","v":{"$error":"#N/A"}},{"$f":"SUM(L64:L67)","v":0},null,null,"# Paid",null,"Field Size","Pay pct","Total Fees: ",{"$f":"Cover!G37","v":0},null,23,null,null,null,null,null,null,null,null,null,null,null,null,null,null,null,null,null,null,null,null,null,null,0.02,2.5000000000000001E-2,2.5000000000000001E-2,2.5000000000000001E-2,2.5000000000000001E-2,2.5000000000000001E-2,2.5000000000000001E-2,2.5000000000000001E-2,2.5000000000000001E-2,2.5000000000000001E-2,2.4E-2,null,65,33,null,65,29]
[{"$error":"#N/A"},{"$error":"#N/A"},{"$error":"#N/A"},{"$error":"#N/A"},null,null,null,"Click Here > Large Field Payout Calculator",null,null,null,null,null,null,{"$f":"IF(R69=45%,VLOOKUP(Q69,dbd,2,FALSE),VLOOKUP(Q69,dbe,2,FALSE))","v":{"$error":"#N/A"}},null,{"$f":"IF(Cover!F37=0,91,Cover!F37)","v":91},0.45,"Net Purse: ",{"$f":"T68+T67","v":0},null,24,null,null,null,null,null,null,null,null,null,null,null,null,null,null,null,null,null,null,null,null,null,null,null,0.02,0.02,0.02,0.02,2.5000000000000001E-2,2.5000000000000001E-2,2.5000000000000001E-2,2.5000000000000001E-2,2.5000000000000001E-2,2.4E-2,null,66,33,null,66,30]
[{"$error":"#N/A"},{"$error":"#N/A"},{"$error":"#N/A"},{"$error":"#N/A"},null,null,null,"NOVICE WOMEN AM",null,null,null,null,null,null,null,null,null,{"$f":"IF(Q69=91,\"       To use this table, enter player divisions on Scores page\",IF(Q69>26,\"Field limit exceeded. Use printed Payout tables.\",\"\"))","v":"       To use this table, enter player divisions on Scores page"},null,null,null,25,null,null,null,null,null,null,null,null,null,null,null,null,null,null,null,null,null,null,null,null,null,null,null,null,0.02,0.02,0.02,0.02,0.02,0.02,2.5000000000000001E-2,0.02,2.1999999999999999E-2,null,null,null,null,67,30]
[{"$error":"#N/A"},{"$error":"#N/A"},{"$error":"#N/A"},{"$error":"#N/A"},null,null,null,null,null,null,null,"Enter Added Cash (or deduction) here* > ",0,null,null,"Prelim","Proposed","Round","Manual","Final",null,26,null,null,null,null,null,null,null,null,null,null,null,null,null,null,null,null,null,null,null,null,null,null,null,null,null,0.02,0.02,0.02,0.02,0.02,0.02,0.02,2.1999999999999999E-2,null,null,null,null,68,31]
[{"$error":"#N/A"},{"$error":"#N/A"},{"$error":"#N/A"},{"$error":"#N/A"},null,null,null,"# Paid",null,"Field Size","Pay pct","Total Fees: ",{"$f":"Cover!G38","v":0},null,"Place","Factor","Payout $$","to $5","Adj. ","Place",null,27,null,null,null,null,null,null,null,null,null,null,null,null,null,null,null,null,null,null,null,null,null,null,null,null,null,null,0.02,0.02,0.02,0.02,0.02,0.02,0.02,null,null,null,null,69,31]
[{"$error":"#N/A"},{"$error":"#N/A"},{"$error":"#N/A"},{"$error":"#N/A"},null,null,null,{"$f":"IF(K73=45%,VLOOKUP(J73,dbd,2,FALSE),VLOOKUP(J73,dbe,2,FALSE))","v":{"$error":"#N/A"}},null,{"$f":"IF(Cover!F38=0,91,Cover!F38)","v":91},0.45,"Net Purse: ",{"$f":"M72+M71","v":0},null,{"$f":"IF(ROW()-72>$O$69,\"\",ROW()-72)","v":{"$error":"#N/A"}},{"$f":"IF(R$69=45%,VLOOKUP(O73,__pay5,O$69+1),VLOOKUP(O73,__pay3,O$69+1))","v":{"$error":"#N/A"}},{"$f":"IF(P73=\"\",\"\",$T$69*P73)","v":{"$error":"#N/A"}},{"$f":"IF(Q73=\"\",\"\",INT((Q73+2.5)/5)*5)","v":{"$error":"#N/A"}},null,null,null,28,null,null,null,null,null,null,null,null,null,null,null,null,null,null,null,null,null,null,null,null,null,null,null,null,null,null,null,0.02,0.02,0.02,0.02,0.02,0.02,null,null,null,null,70,32]
[{"$error":"#N/A"},{"$error":"#N/A"},{"$error":"#N/A"},{"$error":"#N/A"},null,null,null,null,null,null,{"$f":"IF(J73=91,\"       To use this table, enter player divisions on Scores page\",IF(J73>18,\"Field limit exceeded. Use printed Payout tables.\",\"\"))","v":"       To use this table, enter player divisions on Scores page"},null,null,null,{"$error":"#N/A"},{"$f":"IF(O74=\"\",\"\",IF(R$69=45%,VLOOKUP(O74,__pay5,O$69+1),VLOOKUP(O74,__pay3,O$69+1)))","v":{"$error":"#N/A"}},{"$error":"#N/A"},{"$error":"#N/A"},null,null,null,29,null,null,null,null,null,null,null,null,null,null,null,null,null,null,null,null,null,null,null,null,null,null,null,null,null,null,null,null,1.4999999999999999E-2,0.02,0.02,0.02,1.7999999999999999E-2,null,null,null,null,71,32]
[{"$error":"#N/A"},{"$error":"#N/A"},{"$error":"#N/A"},{"$error":"#N/A"},null,null,null,null,"Prelim","Proposed","Round","Manual","Final",null,{"$error":"#N/A"},{"$error":"#N/A"},{"$error":"#N/A"},{"$error":"#N/A"},null,null,null,30,null,null,null,null,null,null,null,null,null,null,null,null,null,null,null,null,null,null,null,null,null,null,null,null,null,null,null,null,null,1.4999999999999999E-2,1.4999999999999999E-2,0.02,1.7999999999999999E-2,null,null,null,null,72,33]
[{"$error":"#N/A"},{"$error":"#N/A"},{"$error":"#N/A"},{"$error":"#N/A"},null,null,null,"Place","Factor","Payout $$","to $5","Adj. ","Place",null,{"$error":"#N/A"},{"$error":"#N/A"},{"$error":"#N/A"},{"$error":"#N/A"},null,null,null,31,null,null,null,null,null,null,null,null,null,null,null,null,null,null,null,null,null,null,null,null,null,null,null,null,null,null,null,null,null,null,1.4999999999999999E-2,1.4999999999999999E-2,1.7999999999999999E-2,null,null,null,null,73,33]
[{"$error":"#N/A"},{"$error":"#N/A"},{"$error":"#N/A"},{"$error":"#N/A"},null,null,null,{"$f":"IF(ROW()-76>$H$73,\"\",ROW()-76)","v":{"$error":"#N/A"}},{"$f":"IF(K$73=45%,VLOOKUP(H77,__pay5,H$73+1),VLOOKUP(H77,__pay3,H$73+1))","v":{"$error":"#N/A"}},{"$f":"IF(I77=\"\",\"\",$M$73*I77)","v":{"$error":"#N/A"}},{"$f":"IF(J77=\"\",\"\",INT((J77+2.5)/5)*5)","v":{"$error":"#N/A"}},null,null,null,{"$error":"#N/A"},{"$error":"#N/A"},{"$error":"#N/A"},{"$error":"#N/A"},null,null,null,32,null,null,null,null,null,null,null,null,null,null,null,null,null,null,null,null,null,null,null,null,null,null,null,null,null,null,null,null,null,null,null,1.4999999999999999E-2,1.6E-2,null,null,null,null,74,33]
[{"$error":"#N/A"},{"$error":"#N/A"},{"$error":"#N/A"},{"$error":"#N/A"},null,null,null,{"$error":"#N/A"},{"$f":"IF(H78=\"\",\"\",IF(K$73=45%,VLOOKUP(H78,__pay5,H$73+1),VLOOKUP(H78,__pay3,H$73+1)))","v":{"$error":"#N/A"}},{"$error":"#N/A"},{"$error":"#N/A"},null,null,null,{"$error":"#N/A"},{"$error":"#N/A"},{"$error":"#N/A"},{"$error":"#N/A"},null,null,null,33,null,null,null,null,null,null,null,null,null,null,null,null,null,null,null,null,null,null,null,null,null,null,null,null,null,null,null,null,null,null,null,null,1.6E-2,null,null,null,null,75,34]
[{"$error":"#N/A"},{"$error":"#N/A"},{"$error":"#N/A"},{"$error":"#N/A"},null,null,null,{"$error":"#N/A"},{"$error":"#N/A"},{"$error":"#N/A"},{"$error":"#N/A"},null,null,null,{"$error":"#N/A"},{"$error":"#N/A"},{"$error":"#N/A"},{"$error":"#N/A"}]
[{"$error":"#N/A"},{"$error":"#N/A"},{"$error":"#N/A"},{"$error":"#N/A"},null,null,null,{"$error":"#N/A"},{"$error":"#N/A"},{"$error":"#N/A"},{"$error":"#N/A"},null,null,null,{"$error":"#N/A"},{"$error":"#N/A"},{"$error":"#N/A"},{"$error":"#N/A"}]
[{"$error":"#N/A"},{"$error":"#N/A"},{"$error":"#N/A"},{"$error":"#N/A"},null,null,null,{"$error":"#N/A"},{"$error":"#N/A"},{"$error":"#N/A"},{"$error":"#N/A"},null,null,null,{"$error":"#N/A"},{"$error":"#N/A"},{"$error":"#N/A"},{"$error":"#N/A"},null,null,null,null,"Steeper"]
[{"$error":"#N/A"},{"$error":"#N/A"},{"$error":"#N/A"},{"$error":"#N/A"},null,null,null,{"$error":"#N/A"},{"$error":"#N/A"},{"$error":"#N/A"},{"$error":"#N/A"},null,null,null,{"$error":"#N/A"},{"$error":"#N/A"},{"$error":"#N/A"},{"$error":"#N/A"},null,null,null,null,1,2,3,4,5,6,7,8,9,10,11,12,13,14,15,16,17,18,19,20,21,22,23,24,25,26,27,28,29,30,31,32,33]
[{"$error":"#N/A"},{"$error":"#N/A"},{"$error":"#N/A"},{"$error":"#N/A"},null,null,null,{"$error":"#N/A"},{"$error":"#N/A"},{"$error":"#N/A"},{"$error":"#N/A"},null,null,null,{"$error":"#N/A"},{"$error":"#N/A"},{"$error":"#N/A"},{"$error":"#N/A"},null,null,null,1,1,0.625,0.47499999999999998,0.41,0.34499999999999997,0.30599999999999999,0.27400000000000002,0.249,0.22800000000000001,0.21099999999999999,0.19500000000000001,0.18099999999999999,0.17,0.159,0.15,0.14299999999999999,0.13500000000000001,0.129,0.125,0.11799999999999999,0.113,0.11,0.107,0.10199999999999999,0.1,9.5000000000000001E-2,9.2999999999999999E-2,0.09,8.7999999999999995E-2,8.5000000000000006E-2,8.3000000000000004E-2,0.08,7.8E-2]
[null,{"$f":"SUM(B51:B83)","v":{"$error":"#N/A"}},{"$f":"SUM(C51:C83)","v":{"$error":"#N/A"}},{"$f":"SUM(D51:D83)","v":{"$error":"#N/A"}},{"$f":"SUM(E51:E83)","v":0},null,null,{"$error":"#N/A"},{"$error":"#N/A"},{"$error":"#N/A"},{"$error":"#N/A"},null,null,null,{"$error":"#N/A"},{"$error":"#N/A"},{"$error":"#N/A"},{"$error":"#N/A"},null,null,null,2,null,0.375,0.3,0.26,0.24,0.218,0.2,0.185,0.17299999999999999,0.16200000000000001,0.151,0.14199999999999999,0.13400000000000001,0.127,0.121,0.115,0.111,0.105,0.10100000000000001,9.7000000000000003E-2,9.4E-2,9.0999999999999998E-2,8.7999999999999995E-2,8.5000000000000006E-2,8.3000000000000004E-2,0.08,7.8E-2,7.6999999999999999E-2,7.3999999999999996E-2,7.0999999999999994E-2,7.0999999999999994E-2,6.9000000000000006E-2,6.7000000000000004E-2]
["Click Here > Large Field Payout Calculator",null,null,null,null,null,null,{"$error":"#N/A"},{"$error":"#N/A"},{"$error":"#N/A"},{"$error":"#N/A"},null,null,null,{"$error":"#N/A"},{"$error":"#N/A"},{"$error":"#N/A"},{"$error":"#N/A"},null,null,null,3,null,null,0.22500000000000001,0.19,0.18,0.16800000000000001,0.158,0.14899999999999999,0.14099999999999999,0.13400000000000001,0.127,0.12,0.114,0.109,0.104,0.1,9.6000000000000002E-2,9.1999999999999998E-2,8.8999999999999996E-2,8.5999999999999993E-2,8.3000000000000004E-2,8.1000000000000003E-2,7.8E-2,7.5999999999999998E-2,7.3999999999999996E-2,7.1999999999999995E-2,7.0999999999999994E-2,6.9000000000000006E-2,6.7000000000000004E-2,6.6000000000000003E-2,6.5000000000000002E-2,6.3E-2,6.0999999999999999E-2]
["* Can be a negative number when expenses like trophies involved",null,null,null,null,null,null,null,{"$f":"SUM(I77:I85)","v":{"$error":"#N/A"}},{"$f":"SUM(J77:J85)","v":{"$error":"#N/A"}},{"$f":"SUM(K77:K85)","v":{"$error":"#N/A"}},{"$f":"SUM(L77:L85)","v":0},null,null,null,{"$f":"SUM(P73:P85)","v":{"$error":"#N/A"}},{"$f":"SUM(Q73:Q85)","v":{"$error":"#N/A"}},{"$f":"SUM(R73:R85)","v":{"$error":"#N/A"}},{"$f":"SUM(S73:S85)","v":0},null,null,4,null,null,null,0.14000000000000001,0.13500000000000001,0.13,0.126,0.121,0.11700000000000001,0.112,0.107,0.10299999999999999,9.8000000000000004E-2,9.5000000000000001E-2,9.0999999999999998E-2,8.7999999999999995E-2,8.5000000000000006E-2,8.2000000000000003E-2,0.08,7.6999999999999999E-2,7.4999999999999997E-2,7.2999999999999995E-2,7.0999999999999994E-2,6.9000000000000006E-2,6.8000000000000005E-2,6.6000000000000003E-2,6.5000000000000002E-2,6.3E-2,6.2E-2,6.0999999999999999E-2,5.8999999999999997E-2,5.8000000000000003E-2,5.7000000000000002E-2]
["RECREATIONAL AM DIVISION",null,null,null,null,null,null,"GIRLS JR < 18",null,null,null,null,null,null,"BOYS JR < 18",null,null,null,null,null,null,5,null,null,null,null,0.1,0.10100000000000001,0.1,9.9000000000000005E-2,9.6000000000000002E-2,9.4E-2,9.0999999999999998E-2,8.7999999999999995E-2,8.5000000000000006E-2,8.2000000000000003E-2,7.9000000000000001E-2,7.6999999999999999E-2,7.4999999999999997E-2,7.2999999999999995E-2,7.0999999999999994E-2,6.9000000000000006E-2,6.7000000000000004E-2,6.6000000000000003E-2,6.4000000000000001E-2,6.3E-2,6.0999999999999999E-2,0.06,5.8999999999999997E-2,5.8000000000000003E-2,5.7000000000000002E-2,5.5E-2,5.5E-2,5.3999999999999999E-2,5.2999999999999999E-2]
[null,null,null,null,"Enter Added Cash (or deduction) here* > ",0,null,null,null,null,null,"Enter Added Cash (or deduction) here* > ",0,null,null,null,null,null,"Enter Added Cash (or deduction) here* > ",0,null,6,null,null,null,null,null,7.6999999999999999E-2,7.9000000000000001E-2,7.9000000000000001E-2,7.9000000000000001E-2,7.8E-2,7.5999999999999998E-2,7.3999999999999996E-2,7.1999999999999995E-2,7.0000000000000007E-2,6.9000000000000006E-2,6.7000000000000004E-2,6.5000000000000002E-2,6.4000000000000001E-2,6.2E-2,6.0999999999999999E-2,0.06,5.8000000000000003E-2,5.7000000000000002E-2,5.6000000000000001E-2,5.5E-2,5.3999999999999999E-2,5.2999999999999999E-2,5.1999999999999998E-2,5.1999999999999998E-2,5.0999999999999997E-2,0.05,4.9000000000000002E-2,4.8000000000000001E-2]
["# Paid",null,"Field Size","Pay pct","Total Fees: ",{"$f":"Cover!G27+Cover!M27","v":0},null,"# Paid",null,"Field Size","Pay pct","Total Fees: ",{"$f":"Cover!G53","v":0},null,"# Paid",null,"Field Size","Pay pct","Total Fees: ",{"$f":"Cover!G47","v":0},null,7,null,null,null,null,null,null,6.3E-2,6.5000000000000002E-2,6.5000000000000002E-2,6.5000000000000002E-2,6.5000000000000002E-2,6.4000000000000001E-2,6.3E-2,6.0999999999999999E-2,0.06,5.8999999999999997E-2,5.8000000000000003E-2,5.7000000000000002E-2,5.6000000000000001E-2,5.5E-2,5.3999999999999999E-2,5.2999999999999999E-2,5.1999999999999998E-2,5.0999999999999997E-2,5.0999999999999997E-2,0.05,4.9000000000000002E-2,4.8000000000000001E-2,4.8000000000000001E-2,4.7E-2,4.5999999999999999E-2,4.5999999999999999E-2,4.4999999999999998E-2]
[{"$f":"IF(D90=45%,VLOOKUP(C90,dbd,2,FALSE),VLOOKUP(C90,dbe,2,FALSE))","v":{"$error":"#N/A"}},null,{"$f":"IF(Cover!F27=0,91,Cover!F27+ROUNDDOWN(Cover!L27/3,0))","v":91},0.45,"Net Purse: ",{"$f":"F89+F88","v":0},null,{"$f":"IF(K90=45%,VLOOKUP(J90,dbd,2,FALSE),VLOOKUP(J90,dbe,2,FALSE))","v":{"$error":"#N/A"}},null,{"$f":"IF(Cover!F53=0,91,Cover!F53)","v":91},0.45,"Net Purse: ",{"$f":"M89+M88","v":0},null,{"$f":"IF(R90=45%,VLOOKUP(Q90,dbd,2,FALSE),VLOOKUP(Q90,dbe,2,FALSE))","v":{"$error":"#N/A"}},null,{"$f":"IF(Cover!F47=0,91,Cover!F47)","v":91},0.45,"Net Purse: ",{"$f":"T89+T88","v":0},null,8,null,null,null,null,null,null,null,5.2999999999999999E-2,5.3999999999999999E-2,5.5E-2,5.5E-2,5.5E-2,5.3999999999999999E-2,5.3999999999999999E-2,5.2999999999999999E-2,5.1999999999999998E-2,5.1999999999999998E-2,5.0999999999999997E-2,0.05,0.05,4.9000000000000002E-2,4.8000000000000001E-2,4.8000000000000001E-2,4.7E-2,4.5999999999999999E-2,4.5999999999999999E-2,4.4999999999999998E-2,4.4999999999999998E-2,4.3999999999999997E-2,4.3999999999999997E-2,4.2999999999999997E-2,4.2000000000000003E-2,4.2000000000000003E-2]
[null,null,null,{"$f":"IF(C90=91,\"       To use this table, enter player divisions on Scores page\",IF(C90>66,\"Field limit exceeded. Use printed Payout tables.\",\"\"))","v":"       To use this table, enter player divisions on Scores page"},null,null,null,null,null,null,{"$f":"IF(J90=91,\"       To use this table, enter player divisions on Scores page\",IF(J90>22,\"Field limit exceeded. Use printed Payout tables.\",\"\"))","v":"       To use this table, enter player divisions on Scores page"},null,null,null,null,null,null,{"$f":"IF(Q90=91,\"       To use this table, enter player divisions on Scores page\",IF(Q90>22,\"Field limit exceeded. Use printed Payout tables.\",\"\"))","v":"       To use this table, enter player divisions on Scores page"},null,null,null,9,null,null,null,null,null,null,null,null,4.7E-2,4.8000000000000001E-2,4.8000000000000001E-2,4.7E-2,4.5999999999999999E-2,4.9000000000000002E-2,4.8000000000000001E-2,4.7E-2,4.7E-2,4.7E-2,4.5999999999999999E-2,4.5999999999999999E-2,4.4999999999999998E-2,4.4999999999999998E-2,4.3999999999999997E-2,4.3999999999999997E-2,4.2999999999999997E-2,4.2999999999999997E-2,4.2999999999999997E-2,4.2000000000000003E-2,4.2000000000000003E-2,4.1000000000000002E-2,4.1000000000000002E-2,4.1000000000000002E-2,0.04]
[null,"Prelim","Proposed","Round","Manual","Final",null,null,"Prelim","Proposed","Round","Manual","Final",null,null,"Prelim","Proposed","Round","Manual","Final",null,10,null,null,null,null,null,null,null,null,null,4.1000000000000002E-2,4.3999999999999997E-2,4.3999999999999997E-2,4.3999999999999997E-2,4.4999999999999998E-2,4.2999999999999997E-2,4.2999999999999997E-2,4.2000000000000003E-2,4.2000000000000003E-2,4.2000000000000003E-2,4.2000000000000003E-2,4.1000000000000002E-2,4.1000000000000002E-2,4.1000000000000002E-2,4.1000000000000002E-2,0.04,0.04,0.04,3.9E-2,3.9E-2,3.9E-2,3.7999999999999999E-2,3.7999999999999999E-2,3.7999999999999999E-2]
["Place","Factor","Payout $$","to $5","Adj. ","Place",null,"Place","Factor","Payout $$","to $5","Adj. ","Place",null,"Place","Factor","Payout $$","to $5","Adj. ","Place",null,11,null,null,null,null,null,null,null,null,null,null,4.1000000000000002E-2,4.2000000000000003E-2,4.2000000000000003E-2,4.1000000000000002E-2,4.1000000000000002E-2,4.1000000000000002E-2,0.04,0.04,3.9E-2,3.9E-2,3.9E-2,3.7999999999999999E-2,3.7999999999999999E-2,3.7999999999999999E-2,3.7999999999999999E-2,3.6999999999999998E-2,3.6999999999999998E-2,3.6999999999999998E-2,3.6999999999999998E-2,3.6999999999999998E-2,3.5999999999999997E-2,3.5999999999999997E-2,3.5999999999999997E-2]
[{"$f":"IF(ROW()-93>$A$90,\"\",ROW()-93)","v":{"$error":"#N/A"}},{"$f":"IF(D$90=45%,VLOOKUP(A94,__pay5,A$90+1),VLOOKUP(A94,__pay3,A$90+1))","v":{"$error":"#N/A"}},{"$f":"IF(B94=\"\",\"\",$F$90*B94)","v":{"$error":"#N/A"}},{"$f":"IF(C94=\"\",\"\",INT((C94+2.5)/5)*5)","v":{"$error":"#N/A"}},null,null,null,{"$f":"IF(ROW()-93>$H$90,\"\",ROW()-93)","v":{"$error":"#N/A"}},{"$f":"IF(K$90=45%,VLOOKUP(H94,__pay5,H$90+1),VLOOKUP(H94,__pay3,H$90+1))","v":{"$error":"#N/A"}},{"$f":"IF(I94=\"\",\"\",$M$90*I94)","v":{"$error":"#N/A"}},{"$f":"IF(J94=\"\",\"\",INT((J94+2.5)/5)*5)","v":{"$error":"#N/A"}},null,null,null,{"$f":"IF(ROW()-93>$O$90,\"\",ROW()-93)","v":{"$error":"#N/A"}},{"$f":"IF(R$90=45%,VLOOKUP(O94,__pay5,O$90+1),VLOOKUP(O94,__pay3,O$90+1))","v":{"$error":"#N/A"}},{"$f":"IF(P94=\"\",\"\",$T$90*P94)","v":{"$error":"#N/A"}},{"$f":"IF(Q94=\"\",\"\",INT((Q94+2.5)/5)*5)","v":{"$error":"#N/A"}},null,null,null,12,null,null,null,null,null,null,null,null,null,null,null,0.04,0.04,3.7999999999999999E-2,3.9E-2,3.9E-2,3.7999999999999999E-2,3.7999999999999999E-2,3.6999999999999998E-2,3.6999999999999998E-2,3.6999999999999998E-2,3.5999999999999997E-2,3.5999999999999997E-2,3.5999999999999997E-2,3.5000000000000003E-2,3.5000000000000003E-2,3.5000000000000003E-2,3.5000000000000003E-2,3.5000000000000003E-2,3.5000000000000003E-2,3.4000000000000002E-2,3.4000000000000002E-2,3.4000000000000002E-2]
[{"$error":"#N/A"},{"$f":"IF(A95=\"\",\"\",IF(D$90=45%,VLOOKUP(A95,__pay5,A$90+1),VLOOKUP(A95,__pay3,A$90+1)))","v":{"$error":"#N/A"}},{"$error":"#N/A"},{"$error":"#N/A"},null,null,null,{"$error":"#N/A"},{"$f":"IF(H95=\"\",\"\",IF(K$90=45%,VLOOKUP(H95,__pay5,H$90+1),VLOOKUP(H95,__pay3,H$90+1)))","v":{"$error":"#N/A"}},{"$error":"#N/A"},{"$error":"#N/A"},null,null,null,{"$error":"#N/A"},{"$f":"IF(O95=\"\",\"\",IF(R$90=45%,VLOOKUP(O95,__pay5,O$90+1),VLOOKUP(O95,__pay3,O$90+1)))","v":{"$error":"#N/A"}},{"$error":"#N/A"},{"$error":"#N/A"},null,null,null,13,null,null,null,null,null,null,null,null,null,null,null,null,3.7999999999999999E-2,3.5999999999999997E-2,3.5999999999999997E-2,3.5999999999999997E-2,3.5000000000000003E-2,3.5000000000000003E-2,3.5000000000000003E-2,3.4000000000000002E-2,3.4000000000000002E-2,3.4000000000000002E-2,3.3000000000000002E-2,3.3000000000000002E-2,3.3000000000000002E-2,3.3000000000000002E-2,3.3000000000000002E-2,3.2000000000000001E-2,3.2000000000000001E-2,3.2000000000000001E-2,3.2000000000000001E-2,3.2000000000000001E-2,3.2000000000000001E-2]
[{"$error":"#N/A"},{"$error":"#N/A"},{"$error":"#N/A"},{"$error":"#N/A"},null,null,null,{"$error":"#N/A"},{"$error":"#N/A"},{"$error":"#N/A"},{"$error":"#N/A"},null,null,null,{"$error":"#N/A"},{"$error":"#N/A"},{"$error":"#N/A"},{"$error":"#N/A"},null,null,null,14,null,null,null,null,null,null,null,null,null,null,null,null,null,3.4000000000000002E-2,3.4000000000000002E-2,3.3000000000000002E-2,3.3000000000000002E-2,3.3000000000000002E-2,3.2000000000000001E-2,3.2000000000000001E-2,3.2000000000000001E-2,3.1E-2,3.1E-2,3.1E-2,3.1E-2,3.1E-2,0.03,0.03,0.03,0.03,0.03,0.03,0.03]
[{"$error":"#N/A"},{"$error":"#N/A"},{"$error":"#N/A"},{"$error":"#N/A"},null,null,null,{"$error":"#N/A"},{"$error":"#N/A"},{"$error":"#N/A"},{"$error":"#N/A"},null,null,null,{"$error":"#N/A"},{"$error":"#N/A"},{"$error":"#N/A"},{"$error":"#N/A"},null,null,null,15,null,null,null,null,null,null,null,null,null,null,null,null,null,null,3.2000000000000001E-2,3.1E-2,3.1E-2,0.03,0.03,0.03,0.03,2.9000000000000001E-2,2.9000000000000001E-2,2.9000000000000001E-2,2.9000000000000001E-2,2.9000000000000001E-2,2.8000000000000001E-2,2.8000000000000001E-2,2.8000000000000001E-2,2.8000000000000001E-2,2.8000000000000001E-2,2.8000000000000001E-2,2.8000000000000001E-2]
[{"$error":"#N/A"},{"$error":"#N/A"},{"$error":"#N/A"},{"$error":"#N/A"},null,null,null,{"$error":"#N/A"},{"$error":"#N/A"},{"$error":"#N/A"},{"$error":"#N/A"},null,null,null,{"$error":"#N/A"},{"$error":"#N/A"},{"$error":"#N/A"},{"$error":"#N/A"},null,null,null,16,null,null,null,null,null,null,null,null,null,null,null,null,null,null,null,2.9000000000000001E-2,2.9000000000000001E-2,2.9000000000000001E-2,2.8000000000000001E-2,2.8000000000000001E-2,2.8000000000000001E-2,2.8000000000000001E-2,2.7E-2,2.7E-2,2.7E-2,2.7E-2,2.7E-2,2.7E-2,2.5999999999999999E-2,2.5999999999999999E-2,2.5999999999999999E-2,2.5999999999999999E-2,2.5999999999999999E-2]
[{"$error":"#N/A"},{"$error":"#N/A"},{"$error":"#N/A"},{"$error":"#N/A"},null,null,null,{"$error":"#N/A"},{"$error":"#N/A"},{"$error":"#N/A"},{"$error":"#N/A"},null,null,null,{"$error":"#N/A"},{"$error":"#N/A"},{"$error":"#N/A"},{"$error":"#N/A"},null,null,null,17,null,null,null,null,null,null,null,null,null,null,null,null,null,null,null,null,2.8000000000000001E-2,2.7E-2,2.7E-2,2.7E-2,2.7E-2,2.5999999999999999E-2,2.5999999999999999E-2,2.5999999999999999E-2,2.5999999999999999E-2,2.5999999999999999E-2,2.5000000000000001E-2,2.5000000000000001E-2,2.5000000000000001E-2,2.5000000000000001E-2,2.5000000000000001E-2,2.5000000000000001E-2,2.5000000000000001E-2]
[{"$error":"#N/A"},{"$error":"#N/A"},{"$error":"#N/A"},{"$error":"#N/A"},null,null,null,{"$error":"#N/A"},{"$error":"#N/A"},{"$error":"#N/A"},{"$error":"#N/A"},null,null,null,{"$error":"#N/A"},{"$error":"#N/A"},{"$error":"#N/A"},{"$error":"#N/A"},null,null,null,18,null,null,null,null,null,null,null,null,null,null,null,null,null,null,null,null,null,2.5999999999999999E-2,2.5999999999999999E-2,2.5000000000000001E-2,2.5000000000000001E-2,2.5000000000000001E-2,2.5000000000000001E-2,2.5000000000000001E-2,2.4E-2,2.4E-2,2.4E-2,2.4E-2,2.4E-2,2.4E-2,2.4E-2,2.4E-2,2.3E-2]
[{"$error":"#N/A"},{"$error":"#N/A"},{"$error":"#N/A"},{"$error":"#N/A"},null,null,null,{"$error":"#N/A"},{"$error":"#N/A"},{"$error":"#N/A"},{"$error":"#N/A"},null,null,null,{"$error":"#N/A"},{"$error":"#N/A"},{"$error":"#N/A"},{"$error":"#N/A"},null,null,null,19,null,null,null,null,null,null,null,null,null,null,null,null,null,null,null,null,null,null,2.4E-2,2.4E-2,2.4E-2,2.4E-2,2.4E-2,2.3E-2,2.3E-2,2.3E-2,2.3E-2,2.3E-2,2.3E-2,2.3E-2,2.1999999999999999E-2,2.1999999999999999E-2,2.1999999999999999E-2]
[{"$error":"#N/A"},{"$error":"#N/A"},{"$error":"#N/A"},{"$error":"#N/A"},null,null,null,{"$error":"#N/A"},{"$error":"#N/A"},{"$error":"#N/A"},{"$error":"#N/A"},null,null,null,{"$error":"#N/A"},{"$error":"#N/A"},{"$error":"#N/A"},{"$error":"#N/A"},null,null,null,20,null,null,null,null,null,null,null,null,null,null,null,null,null,null,null,null,null,null,null,2.3E-2,2.3E-2,2.1999999999999999E-2,2.1999999999999999E-2,2.1999999999999999E-2,2.1999999999999999E-2,2.1999999999999999E-2,2.1999999999999999E-2,2.1999999999999999E-2,2.1000000000000001E-2,2.1000000000000001E-2,2.1000000000000001E-2,2.1000000000000001E-2,2.1000000000000001E-2]
[{"$error":"#N/A"},{"$error":"#N/A"},{"$error":"#N/A"},{"$error":"#N/A"},null,null,null,{"$error":"#N/A"},{"$error":"#N/A"},{"$error":"#N/A"},{"$error":"#N/A"},null,null,null,{"$error":"#N/A"},{"$error":"#N/A"},{"$error":"#N/A"},{"$error":"#N/A"},null,null,null,21,null,null,null,null,null,null,null,null,null,null,null,null,null,null,null,null,null,null,null,null,0.02,2.1000000000000001E-2,2.1000000000000001E-2,2.1000000000000001E-2,2.1000000000000001E-2,2.1000000000000001E-2,0.02,0.02,0.02,0.02,0.02,0.02,0.02]
[{"$error":"#N/A"},{"$error":"#N/A"},{"$error":"#N/A"},{"$error":"#N/A"},null,null,null,{"$error":"#N/A"},{"$error":"#N/A"},{"$error":"#N/A"},{"$error":"#N/A"},null,null,null,{"$error":"#N/A"},{"$error":"#N/A"},{"$error":"#N/A"},{"$error":"#N/A"},null,null,null,22,null,null,null,null,null,null,null,null,null,null,null,null,null,null,null,null,null,null,null,null,null,0.02,0.02,0.02,1.9E-2,1.9E-2,1.9E-2,1.9E-2,1.9E-2,1.9E-2,1.9E-2,1.9E-2,1.9E-2]
[{"$error":"#N/A"},{"$error":"#N/A"},{"$error":"#N/A"},{"$error":"#N/A"},null,null,null,null,{"$f":"SUM(I94:I104)","v":{"$error":"#N/A"}},{"$f":"SUM(J94:J104)","v":{"$error":"#N/A"}},{"$f":"SUM(K94:K104)","v":{"$error":"#N/A"}},{"$f":"SUM(L94:L104)","v":0},null,null,null,{"$f":"SUM(P94:P104)","v":{"$error":"#N/A"}},{"$f":"SUM(Q94:Q104)","v":{"$error":"#N/A"}},{"$f":"SUM(R94:R104)","v":{"$error":"#N/A"}},{"$f":"SUM(S94:S104)","v":0},null,null,23,null,null,null,null,null,null,null,null,null,null,null,null,null,null,null,null,null,null,null,null,null,null,1.7999999999999999E-2,1.7999999999999999E-2,1.7999999999999999E-2,1.7999999999999999E-2,1.7999999999999999E-2,1.7999999999999999E-2,1.7999999999999999E-2,1.7999999999999999E-2,1.7999999999999999E-2,1.7000000000000001E-2,1.7000000000000001E-2]
[{"$error":"#N/A"},{"$error":"#N/A"},{"$error":"#N/A"},{"$error":"#N/A"},null,null,null,null,null,null,null,null,null,null,null,null,null,null,null,null,null,24,null,null,null,null,null,null,null,null,null,null,null,null,null,null,null,null,null,null,null,null,null,null,null,1.7000000000000001E-2,1.7000000000000001E-2,1.7000000000000001E-2,1.7000000000000001E-2,1.7000000000000001E-2,1.7000000000000001E-2,1.7000000000000001E-2,1.7000000000000001E-2,1.7000000000000001E-2,1.7000000000000001E-2]
[{"$error":"#N/A"},{"$error":"#N/A"},{"$error":"#N/A"},{"$error":"#N/A"},null,null,null,null,null,null,null,null,null,null,null,null,null,null,null,null,null,25,null,null,null,null,null,null,null,null,null,null,null,null,null,null,null,null,null,null,null,null,null,null,null,null,1.6E-2,1.6E-2,1.6E-2,1.6E-2,1.6E-2,1.6E-2,1.6E-2,1.6E-2,1.6E-2]
[{"$error":"#N/A"},{"$error":"#N/A"},{"$error":"#N/A"},{"$error":"#N/A"},null,null,null,"Click Here > Large Field Payout Calculator",null,null,null,null,null,null,"Click Here > Large Field Payout Calculator",null,null,null,null,null,null,26,null,null,null,null,null,null,null,null,null,null,null,null,null,null,null,null,null,null,null,null,null,null,null,null,null,1.6E-2,1.4999999999999999E-2,1.4999999999999999E-2,1.4999999999999999E-2,1.4999999999999999E-2,1.4999999999999999E-2,1.4999999999999999E-2,1.4999999999999999E-2]
[{"$error":"#N/A"},{"$error":"#N/A"},{"$error":"#N/A"},{"$error":"#N/A"},null,null,null,"GIRLS JR < 15",null,null,null,null,null,null,"BOYS JR < 15",null,null,null,null,null,null,27,null,null,null,null,null,null,null,null,null,null,null,null,null,null,null,null,null,null,null,null,null,null,null,null,null,null,1.4999999999999999E-2,1.4999999999999999E-2,1.4E-2,1.4E-2,1.4E-2,1.4E-2,1.4E-2]
[{"$error":"#N/A"},{"$error":"#N/A"},{"$error":"#N/A"},{"$error":"#N/A"},null,null,null,null,null,null,null,"Enter Added Cash (or deduction) here* > ",0,null,null,null,null,null,"Enter Added Cash (or deduction) here* > ",0,null,28,null,null,null,null,null,null,null,null,null,null,null,null,null,null,null,null,null,null,null,null,null,null,null,null,null,null,null,1.4E-2,1.4E-2,1.4E-2,1.2999999999999999E-2,1.2999999999999999E-2,1.2999999999999999E-2]
[{"$error":"#N/A"},{"$error":"#N/A"},{"$error":"#N/A"},{"$error":"#N/A"},null,null,null,"# Paid",null,"Field Size","Pay pct","Total Fees: ",{"$f":"Cover!G54","v":0},null,"# Paid",null,"Field Size","Pay pct","Total Fees: ",{"$f":"Cover!G48","v":0},null,29,null,null,null,null,null,null,null,null,null,null,null,null,null,null,null,null,null,null,null,null,null,null,null,null,null,null,null,null,1.2999999999999999E-2,1.2999999999999999E-2,1.2999999999999999E-2,1.2999999999999999E-2,1.2999999999999999E-2]
[{"$error":"#N/A"},{"$error":"#N/A"},{"$error":"#N/A"},{"$error":"#N/A"},null,null,null,{"$f":"IF(K112=45%,VLOOKUP(J112,dbd,2,FALSE),VLOOKUP(J112,dbe,2,FALSE))","v":{"$error":"#N/A"}},null,{"$f":"IF(Cover!F54=0,91,Cover!F54)","v":91},0.45,"Net Purse: ",{"$f":"M111+M110","v":0},null,{"$f":"IF(R112=45%,VLOOKUP(Q112,dbd,2,FALSE),VLOOKUP(Q112,dbe,2,FALSE))","v":{"$error":"#N/A"}},null,{"$f":"IF(Cover!F48=0,91,Cover!F48)","v":91},0.45,"Net Purse: ",{"$f":"T111+T110","v":0},null,30,null,null,null,null,null,null,null,null,null,null,null,null,null,null,null,null,null,null,null,null,null,null,null,null,null,null,null,null,null,1.2999999999999999E-2,1.2999999999999999E-2,1.2999999999999999E-2,1.2999999999999999E-2]
[{"$error":"#N/A"},{"$error":"#N/A"},{"$error":"#N/A"},{"$error":"#N/A"},null,null,null,null,null,null,{"$f":"IF(J112=91,\"       To use this table, enter player divisions on Scores page\",IF(J112>22,\"Field limit exceeded. Use printed Payout tables.\",\"\"))","v":"       To use this table, enter player divisions on Scores page"},null,null,null,null,null,null,{"$f":"IF(Q112=91,\"       To use this table, enter player divisions on Scores page\",IF(Q112>22,\"Field limit exceeded. Use printed Payout tables.\",\"\"))","v":"       To use this table, enter player divisions on Scores page"},null,null,null,31,null,null,null,null,null,null,null,null,null,null,null,null,null,null,null,null,null,null,null,null,null,null,null,null,null,null,null,null,null,null,1.2999999999999999E-2,1.2999999999999999E-2,1.2999999999999999E-2]
[{"$error":"#N/A"},{"$error":"#N/A"},{"$error":"#N/A"},{"$error":"#N/A"},null,null,null,null,"Prelim","Proposed","Round","Manual","Final",null,null,"Prelim","Proposed","Round","Manual","Final",null,32,null,null,null,null,null,null,null,null,null,null,null,null,null,null,null,null,null,null,null,null,null,null,null,null,null,null,null,null,null,null,null,1.2E-2,1.2E-2]
[{"$error":"#N/A"},{"$error":"#N/A"},{"$error":"#N/A"},{"$error":"#N/A"},null,null,null,"Place","Factor","Payout $$","to $5","Adj. ","Place",null,"Place","Factor","Payout $$","to $5","Adj. ","Place",null,33,null,null,null,null,null,null,null,null,null,null,null,null,null,null,null,null,null,null,null,null,null,null,null,null,null,null,null,null,null,null,null,null,1.2E-2]
[{"$error":"#N/A"},{"$error":"#N/A"},{"$error":"#N/A"},{"$error":"#N/A"},null,null,null,{"$f":"IF(ROW()-115>$H$112,\"\",ROW()-115)","v":{"$error":"#N/A"}},{"$f":"IF(K$112=45%,VLOOKUP(H116,__pay5,H$112+1),VLOOKUP(H116,__pay3,H$112+1))","v":{"$error":"#N/A"}},{"$f":"IF(I116=\"\",\"\",$M$112*I116)","v":{"$error":"#N/A"}},{"$f":"IF(J116=\"\",\"\",INT((J116+2.5)/5)*5)","v":{"$error":"#N/A"}},null,null,null,{"$f":"IF(ROW()-115>$O$112,\"\",ROW()-115)","v":{"$error":"#N/A"}},{"$f":"IF(R$112=45%,VLOOKUP(O116,__pay5,O$112+1),VLOOKUP(O116,__pay3,O$112+1))","v":{"$error":"#N/A"}},{"$f":"IF(P116=\"\",\"\",$T$112*P116)","v":{"$error":"#N/A"}},{"$f":"IF(Q116=\"\",\"\",INT((Q116+2.5)/5)*5)","v":{"$error":"#N/A"}}]
[{"$error":"#N/A"},{"$error":"#N/A"},{"$error":"#N/A"},{"$error":"#N/A"},null,null,null,{"$error":"#N/A"},{"$f":"IF(H117=\"\",\"\",IF(K$112=45%,VLOOKUP(H117,__pay5,H$112+1),VLOOKUP(H117,__pay3,H$112+1)))","v":{"$error":"#N/A"}},{"$error":"#N/A"},{"$error":"#N/A"},null,null,null,{"$error":"#N/A"},{"$f":"IF(O117=\"\",\"\",IF(R$112=45%,VLOOKUP(O117,__pay5,O$112+1),VLOOKUP(O117,__pay3,O$112+1)))","v":{"$error":"#N/A"}},{"$error":"#N/A"},{"$error":"#N/A"}]
[{"$error":"#N/A"},{"$error":"#N/A"},{"$error":"#N/A"},{"$error":"#N/A"},null,null,null,{"$error":"#N/A"},{"$error":"#N/A"},{"$error":"#N/A"},{"$error":"#N/A"},null,null,null,{"$error":"#N/A"},{"$error":"#N/A"},{"$error":"#N/A"},{"$error":"#N/A"}]
[{"$error":"#N/A"},{"$error":"#N/A"},{"$error":"#N/A"},{"$error":"#N/A"},null,null,null,{"$error":"#N/A"},{"$error":"#N/A"},{"$error":"#N/A"},{"$error":"#N/A"},null,null,null,{"$error":"#N/A"},{"$error":"#N/A"},{"$error":"#N/A"},{"$error":"#N/A"}]
[{"$error":"#N/A"},{"$error":"#N/A"},{"$error":"#N/A"},{"$error":"#N/A"},null,null,null,{"$error":"#N/A"},{"$error":"#N/A"},{"$error":"#N/A"},{"$error":"#N/A"},null,null,null,{"$error":"#N/A"},{"$error":"#N/A"},{"$error":"#N/A"},{"$error":"#N/A"}]
[{"$error":"#N/A"},{"$error":"#N/A"},{"$error":"#N/A"},{"$error":"#N/A"},null,null,null,{"$error":"#N/A"},{"$error":"#N/A"},{"$error":"#N/A"},{"$error":"#N/A"},null,null,null,{"$error":"#N/A"},{"$error":"#N/A"},{"$error":"#N/A"},{"$error":"#N/A"}]
[{"$error":"#N/A"},{"$error":"#N/A"},{"$error":"#N/A"},{"$error":"#N/A"},null,null,null,{"$error":"#N/A"},{"$error":"#N/A"},{"$error":"#N/A"},{"$error":"#N/A"},null,null,null,{"$error":"#N/A"},{"$error":"#N/A"},{"$error":"#N/A"},{"$error":"#N/A"}]
[{"$error":"#N/A"},{"$error":"#N/A"},{"$error":"#N/A"},{"$error":"#N/A"},null,null,null,{"$error":"#N/A"},{"$error":"#N/A"},{"$error":"#N/A"},{"$error":"#N/A"},null,null,null,{"$error":"#N/A"},{"$error":"#N/A"},{"$error":"#N/A"},{"$error":"#N/A"}]
[{"$error":"#N/A"},{"$error":"#N/A"},{"$error":"#N/A"},{"$error":"#N/A"},null,null,null,{"$error":"#N/A"},{"$error":"#N/A"},{"$error":"#N/A"},{"$error":"#N/A"},null,null,null,{"$error":"#N/A"},{"$error":"#N/A"},{"$error":"#N/A"},{"$error":"#N/A"}]
[{"$error":"#N/A"},{"$error":"#N/A"},{"$error":"#N/A"},{"$error":"#N/A"},null,null,null,{"$error":"#N/A"},{"$error":"#N/A"},{"$error":"#N/A"},{"$error":"#N/A"},null,null,null,{"$error":"#N/A"},{"$error":"#N/A"},{"$error":"#N/A"},{"$error":"#N/A"}]
[{"$error":"#N/A"},{"$error":"#N/A"},{"$error":"#N/A"},{"$error":"#N/A"},null,null,null,{"$error":"#N/A"},{"$error":"#N/A"},{"$error":"#N/A"},{"$error":"#N/A"},null,null,null,{"$error":"#N/A"},{"$error":"#N/A"},{"$error":"#N/A"},{"$error":"#N/A"}]
[null,{"$f":"SUM(B94:B126)","v":{"$error":"#N/A"}},{"$f":"SUM(C94:C126)","v":{"$error":"#N/A"}},{"$f":"SUM(D94:D126)","v":{"$error":"#N/A"}},{"$f":"SUM(E94:E126)","v":0},null,null,null,{"$f":"SUM(I116:I126)","v":{"$error":"#N/A"}},{"$f":"SUM(J116:J126)","v":{"$error":"#N/A"}},{"$f":"SUM(K116:K126)","v":{"$error":"#N/A"}},{"$f":"SUM(L116:L126)","v":0},null,null,null,{"$f":"SUM(P116:P126)","v":{"$error":"#N/A"}},{"$f":"SUM(Q116:Q126)","v":{"$error":"#N/A"}},{"$f":"SUM(R116:R126)","v":{"$error":"#N/A"}},{"$f":"SUM(S116:S126)","v":0}]
["* Can be a negative number when expenses like trophies involved"]
["NOVICE AM DIVISION",null,null,null,null,null,null,"GIRLS JR < 12",null,null,null,null,null,null,"BOYS JR < 12"]
[null,null,null,null,"Enter Added Cash (or deduction) here* > ",0,null,null,null,null,null,"Enter Added Cash (or deduction) here* > ",0,null,null,null,null,null,"Enter Added Cash (or deduction) here* > ",0]
["# Paid",null,"Field Size","Pay pct","Total Fees: ",{"$f":"Cover!G28","v":0},null,"# Paid",null,"Field Size","Pay pct","Total Fees: ",{"$f":"Cover!G55","v":0},null,"# Paid",null,"Field Size","Pay pct","Total Fees: ",{"$f":"Cover!G49","v":0}]
[{"$f":"IF(D132=45%,VLOOKUP(C132,dbd,2,FALSE),VLOOKUP(C132,dbe,2,FALSE))","v":{"$error":"#N/A"}},null,{"$f":"IF(Cover!F28=0,91,Cover!F28)","v":91},0.45,"Net Purse: ",{"$f":"F131+F130","v":0},null,{"$f":"IF(K132=45%,VLOOKUP(J132,dbd,2,FALSE),VLOOKUP(J132,dbe,2,FALSE))","v":{"$error":"#N/A"}},null,{"$f":"IF(Cover!F55=0,91,Cover!F55)","v":91},0.45,"Net Purse: ",{"$f":"M131+M130","v":0},null,{"$f":"IF(R132=45%,VLOOKUP(Q132,dbd,2,FALSE),VLOOKUP(Q132,dbe,2,FALSE))","v":{"$error":"#N/A"}},null,{"$f":"IF(Cover!F49=0,91,Cover!F49)","v":91},0.45,"Net Purse: ",{"$f":"T131+T130","v":0}]
[null,null,null,{"$f":"IF(C132=91,\"       To use this table, enter player divisions on Scores page\",IF(C132>22,\"Field limit exceeded. Use printed Payout tables.\",\"\"))","v":"       To use this table, enter player divisions on Scores page"},null,null,null,null,null,null,{"$f":"IF(J132=91,\"       To use this table, enter player divisions on Scores page\",IF(J132>22,\"Field limit exceeded. Use printed Payout tables.\",\"\"))","v":"       To use this table, enter player divisions on Scores page"},null,null,null,null,null,null,{"$f":"IF(Q132=91,\"       To use this table, enter player divisions on Scores page\",IF(Q132>22,\"Field limit exceeded. Use printed Payout tables.\",\"\"))","v":"       To use this table, enter player divisions on Scores page"}]
[null,"Prelim","Proposed","Round","Manual","Final",null,null,"Prelim","Proposed","Round","Manual","Final",null,null,"Prelim","Proposed","Round","Manual","Final"]
["Place","Factor","Payout $$","to $5","Adj. ","Place",null,"Place","Factor","Payout $$","to $5","Adj. ","Place",null,"Place","Factor","Payout $$","to $5","Adj. ","Place"]
[{"$f":"IF(ROW()-135>$A$132,\"\",ROW()-135)","v":{"$error":"#N/A"}},{"$f":"IF(D$132=45%,VLOOKUP(A136,__pay5,A$132+1),VLOOKUP(A136,__pay3,A$132+1))","v":{"$error":"#N/A"}},{"$f":"IF(B136=\"\",\"\",$F$132*B136)","v":{"$error":"#N/A"}},{"$f":"IF(C136=\"\",\"\",INT((C136+2.5)/5)*5)","v":{"$error":"#N/A"}},null,null,null,{"$f":"IF(ROW()-135>$H$132,\"\",ROW()-135)","v":{"$error":"#N/A"}},{"$f":"IF(K$132=45%,VLOOKUP(H136,__pay5,H$132+1),VLOOKUP(H136,__pay3,H$132+1))","v":{"$error":"#N/A"}},{"$f":"IF(I136=\"\",\"\",$M$132*I136)","v":{"$error":"#N/A"}},{"$f":"IF(J136=\"\",\"\",INT((J136+2.5)/5)*5)","v":{"$error":"#N/A"}},null,null,null,{"$f":"IF(ROW()-135>$O$132,\"\",ROW()-135)","v":{"$error":"#N/A"}},{"$f":"IF(R$132=45%,VLOOKUP(O136,__pay5,O$132+1),VLOOKUP(O136,__pay3,O$132+1))","v":{"$error":"#N/A"}},{"$f":"IF(P136=\"\",\"\",$T$132*P136)","v":{"$error":"#N/A"}},{"$f":"IF(Q136=\"\",\"\",INT((Q136+2.5)/5)*5)","v":{"$error":"#N/A"}}]
[{"$error":"#N/A"},{"$f":"IF(A137=\"\",\"\",IF(D$132=45%,VLOOKUP(A137,__pay5,A$132+1),VLOOKUP(A137,__pay3,A$132+1)))","v":{"$error":"#N/A"}},{"$error":"#N/A"},{"$error":"#N/A"},null,null,null,{"$error":"#N/A"},{"$f":"IF(H137=\"\",\"\",IF(K$132=45%,VLOOKUP(H137,__pay5,H$132+1),VLOOKUP(H137,__pay3,H$132+1)))","v":{"$error":"#N/A"}},{"$error":"#N/A"},{"$error":"#N/A"},null,null,null,{"$error":"#N/A"},{"$f":"IF(O137=\"\",\"\",IF(R$132=45%,VLOOKUP(O137,__pay5,O$132+1),VLOOKUP(O137,__pay3,O$132+1)))","v":{"$error":"#N/A"}},{"$error":"#N/A"},{"$error":"#N/A"}]
[{"$error":"#N/A"},{"$error":"#N/A"},{"$error":"#N/A"},{"$error":"#N/A"},null,null,null,{"$error":"#N/A"},{"$error":"#N/A"},{"$error":"#N/A"},{"$error":"#N/A"},null,null,null,{"$error":"#N/A"},{"$error":"#N/A"},{"$error":"#N/A"},{"$error":"#N/A"}]
[{"$error":"#N/A"},{"$error":"#N/A"},{"$error":"#N/A"},{"$error":"#N/A"},null,null,null,{"$error":"#N/A"},{"$error":"#N/A"},{"$error":"#N/A"},{"$error":"#N/A"},null,null,null,{"$error":"#N/A"},{"$error":"#N/A"},{"$error":"#N/A"},{"$error":"#N/A"}]
[{"$error":"#N/A"},{"$error":"#N/A"},{"$error":"#N/A"},{"$error":"#N/A"},null,null,null,{"$error":"#N/A"},{"$error":"#N/A"},{"$error":"#N/A"},{"$error":"#N/A"},null,null,null,{"$error":"#N/A"},{"$error":"#N/A"},{"$error":"#N/A"},{"$error":"#N/A"}]
[{"$error":"#N/A"},{"$error":"#N/A"},{"$error":"#N/A"},{"$error":"#N/A"},null,null,null,{"$error":"#N/A"},{"$error":"#N/A"},{"$error":"#N/A"},{"$error":"#N/A"},null,null,null,{"$error":"#N/A"},{"$error":"#N/A"},{"$error":"#N/A"},{"$error":"#N/A"}]
[{"$error":"#N/A"},{"$error":"#N/A"},{"$error":"#N/A"},{"$error":"#N/A"},null,null,null,{"$error":"#N/A"},{"$error":"#N/A"},{"$error":"#N/A"},{"$error":"#N/A"},null,null,null,{"$error":"#N/A"},{"$error":"#N/A"},{"$error":"#N/A"},{"$error":"#N/A"}]
[{"$error":"#N/A"},{"$error":"#N/A"},{"$error":"#N/A"},{"$error":"#N/A"},null,null,null,{"$error":"#N/A"},{"$error":"#N/A"},{"$error":"#N/A"},{"$error":"#N/A"},null,null,null,{"$error":"#N/A"},{"$error":"#N/A"},{"$error":"#N/A"},{"$error":"#N/A"}]
[{"$error":"#N/A"},{"$error":"#N/A"},{"$error":"#N/A"},{"$error":"#N/A"},null,null,null,{"$error":"#N/A"},{"$error":"#N/A"},{"$error":"#N/A"},{"$error":"#N/A"},null,null,null,{"$error":"#N/A"},{"$error":"#N/A"},{"$error":"#N/A"},{"$error":"#N/A"}]
[{"$error":"#N/A"},{"$error":"#N/A"},{"$error":"#N/A"},{"$error":"#N/A"},null,null,null,{"$error":"#N/A"},{"$error":"#N/A"},{"$error":"#N/A"},{"$error":"#N/A"},null,null,null,{"$error":"#N/A"},{"$error":"#N/A"},{"$error":"#N/A"},{"$error":"#N/A"}]
[{"$error":"#N/A"},{"$error":"#N/A"},{"$error":"#N/A"},{"$error":"#N/A"},null,null,null,{"$error":"#N/A"},{"$error":"#N/A"},{"$error":"#N/A"},{"$error":"#N/A"},null,null,null,{"$error":"#N/A"},{"$error":"#N/A"},{"$error":"#N/A"},{"$error":"#N/A"}]
[null,{"$f":"SUM(B136:B146)","v":{"$error":"#N/A"}},{"$f":"SUM(C136:C146)","v":{"$error":"#N/A"}},{"$f":"SUM(D136:D146)","v":{"$error":"#N/A"}},{"$f":"SUM(E136:E146)","v":0},null,null,null,{"$f":"SUM(I136:I146)","v":{"$error":"#N/A"}},{"$f":"SUM(J136:J146)","v":{"$error":"#N/A"}},{"$f":"SUM(K136:K146)","v":{"$error":"#N/A"}},{"$f":"SUM(L136:L146)","v":0},null,null,null,{"$f":"SUM(P136:P146)","v":{"$error":"#N/A"}},{"$f":"SUM(Q136:Q146)","v":{"$error":"#N/A"}},{"$f":"SUM(R136:R146)","v":{"$error":"#N/A"}},{"$f":"SUM(S136:S146)","v":0}]
["Click Here > Large Field Payout Calculator",null,null,null,null,null,null,null,null,null,null,null,null,null,"Click Here > Large Field Payout Calculator"]
["WOMEN MASTER AM 40+",null,null,null,null,null,null,"WOMEN MASTER AM 55+",null,null,null,null,null,null,"MASTER AM 70+"]
[null,null,null,null,"Enter Added Cash (or deduction) here* > ",0,null,null,null,null,null,"Enter Added Cash (or deduction) here* > ",0,null,null,null,null,null,"Enter Added Cash (or deduction) here* > ",0]
["# Paid",null,"Field Size","Pay pct","Total Fees: ",{"$f":"Cover!G39","v":0},null,"# Paid",null,"Field Size","Pay pct","Total Fees: ",{"$f":"Cover!G41","v":0},null,"# Paid",null,"Field Size","Pay pct","Total Fees: ",{"$f":"Cover!G34","v":0}]
[{"$f":"IF(D152=45%,VLOOKUP(C152,dbd,2,FALSE),VLOOKUP(C152,dbe,2,FALSE))","v":{"$error":"#N/A"}},null,{"$f":"IF(Cover!F39=0,91,Cover!F39)","v":91},0.45,"Net Purse: ",{"$f":"F151+F150","v":0},null,{"$f":"IF(K152=45%,VLOOKUP(J152,dbd,2,FALSE),VLOOKUP(J152,dbe,2,FALSE))","v":{"$error":"#N/A"}},null,{"$f":"IF(Cover!F41=0,91,Cover!F41)","v":91},0.45,"Net Purse: ",{"$f":"M151+M150","v":0},null,{"$f":"IF(R152=45%,VLOOKUP(Q152,dbd,2,FALSE),VLOOKUP(Q152,dbe,2,FALSE))","v":{"$error":"#N/A"}},null,{"$f":"IF(Cover!F34=0,91,Cover!F34)","v":91},0.45,"Net Purse: ",{"$f":"T151+T150","v":0}]
[null,null,null,{"$f":"IF(C152=91,\"       To use this table, enter player divisions on Scores page\",IF(C152>22,\"Field limit exceeded. Use printed Payout tables.\",\"\"))","v":"       To use this table, enter player divisions on Scores page"},null,null,null,null,null,null,{"$f":"IF(J152=91,\"       To use this table, enter player divisions on Scores page\",IF(J152>4,\"Field limit exceeded. Use printed Payout tables.\",\"\"))","v":"       To use this table, enter player divisions on Scores page"},null,null,null,null,null,null,{"$f":"IF(Q152=91,\"       To use this table, enter player divisions on Scores page\",IF(Q152>16,\"Field limit exceeded. Use printed Payout tables.\",\"\"))","v":"       To use this table, enter player divisions on Scores page"}]
[null,"Prelim","Proposed","Round","Manual","Final",null,null,"Prelim","Proposed","Round","Manual","Final",null,null,"Prelim","Proposed","Round","Manual","Final"]
["Place","Factor","Payout $$","to $5","Adj. ","Place",null,"Place","Factor","Payout $$","to $5","Adj. ","Place",null,"Place","Factor","Payout $$","to $5","Adj. ","Place"]
[{"$f":"IF(ROW()-155>$A$152,\"\",ROW()-155)","v":{"$error":"#N/A"}},{"$f":"IF(D$152=45%,VLOOKUP(A156,__pay5,A$152+1),VLOOKUP(A156,__pay3,A$152+1))","v":{"$error":"#N/A"}},{"$f":"IF(B156=\"\",\"\",$F$152*B156)","v":{"$error":"#N/A"}},{"$f":"IF(C156=\"\",\"\",INT((C156+2.5)/5)*5)","v":{"$error":"#N/A"}},null,null,null,{"$f":"IF(ROW()-155>$H$152,\"\",ROW()-155)","v":{"$error":"#N/A"}},{"$f":"IF(K$152=45%,VLOOKUP(H156,__pay5,H$152+1),VLOOKUP(H156,__pay3,H$152+1))","v":{"$error":"#N/A"}},{"$f":"IF(I156=\"\",\"\",$M$152*I156)","v":{"$error":"#N/A"}},{"$f":"IF(J156=\"\",\"\",INT((J156+2.5)/5)*5)","v":{"$error":"#N/A"}},null,null,null,{"$f":"IF(ROW()-155>$O$152,\"\",ROW()-155)","v":{"$error":"#N/A"}},{"$f":"IF(R$152=45%,VLOOKUP(O156,__pay5,O$152+1),VLOOKUP(O156,__pay3,O$152+1))","v":{"$error":"#N/A"}},{"$f":"IF(P156=\"\",\"\",$T$152*P156)","v":{"$error":"#N/A"}},{"$f":"IF(Q156=\"\",\"\",INT((Q156+2.5)/5)*5)","v":{"$error":"#N/A"}}]
[{"$f":"IF(ROW()-155>$A$152,\"\",ROW()-155)","v":{"$error":"#N/A"}},{"$f":"IF(A157=\"\",\"\",IF(D$152=45%,VLOOKUP(A157,__pay5,A$152+1),VLOOKUP(A157,__pay3,A$152+1)))","v":{"$error":"#N/A"}},{"$error":"#N/A"},{"$error":"#N/A"},null,null,null,{"$f":"IF(ROW()-155>$H$152,\"\",ROW()-155)","v":{"$error":"#N/A"}},{"$f":"IF(H157=\"\",\"\",IF(K$152=45%,VLOOKUP(H157,__pay5,H$152+1),VLOOKUP(H157,__pay3,H$152+1)))","v":{"$error":"#N/A"}},{"$f":"IF(I157=\"\",\"\",$M$152*I157)","v":{"$error":"#N/A"}},{"$f":"IF(J157=\"\",\"\",INT((J157+2.5)/5)*5)","v":{"$error":"#N/A"}},null,null,null,{"$error":"#N/A"},{"$f":"IF(O157=\"\",\"\",IF(R$152=45%,VLOOKUP(O157,__pay5,O$152+1),VLOOKUP(O157,__pay3,O$152+1)))","v":{"$error":"#N/A"}},{"$error":"#N/A"},{"$error":"#N/A"}]
[{"$error":"#N/A"},{"$error":"#N/A"},{"$error":"#N/A"},{"$error":"#N/A"},null,null,null,null,{"$f":"SUM(I156:I157)","v":{"$error":"#N/A"}},{"$f":"SUM(J156:J157)","v":{"$error":"#N/A"}},{"$f":"SUM(K156:K157)","v":{"$error":"#N/A"}},{"$f":"SUM(L156:L157)","v":0},null,null,{"$error":"#N/A"},{"$error":"#N/A"},{"$error":"#N/A"},{"$error":"#N/A"}]
[{"$error":"#N/A"},{"$error":"#N/A"},{"$error":"#N/A"},{"$error":"#N/A"},null,null,null,"Click Here > Large Field Payout Calculator",null,null,null,null,null,null,{"$error":"#N/A"},{"$error":"#N/A"},{"$error":"#N/A"},{"$error":"#N/A"}]
[{"$error":"#N/A"},{"$error":"#N/A"},{"$error":"#N/A"},{"$error":"#N/A"},null,null,null,"WOMEN MASTER AM 65+",null,null,null,null,null,null,{"$error":"#N/A"},{"$error":"#N/A"},{"$error":"#N/A"},{"$error":"#N/A"}]
[{"$error":"#N/A"},{"$error":"#N/A"},{"$error":"#N/A"},{"$error":"#N/A"},null,null,null,null,null,null,null,"Enter Added Cash (or deduction) here* > ",0,null,{"$error":"#N/A"},{"$error":"#N/A"},{"$error":"#N/A"},{"$error":"#N/A"}]
[{"$error":"#N/A"},{"$error":"#N/A"},{"$error":"#N/A"},{"$error":"#N/A"},null,null,null,"# Paid",null,"Field Size","Pay pct","Total Fees: ",{"$f":"Cover!G43","v":0},null,{"$error":"#N/A"},{"$error":"#N/A"},{"$error":"#N/A"},{"$error":"#N/A"}]
[{"$error":"#N/A"},{"$error":"#N/A"},{"$error":"#N/A"},{"$error":"#N/A"},null,null,null,{"$f":"IF(K163=45%,VLOOKUP(J163,dbd,2,FALSE),VLOOKUP(J163,dbe,2,FALSE))","v":{"$error":"#N/A"}},null,{"$f":"IF(Cover!F43=0,91,Cover!F43)","v":91},0.45,"Net Purse: ",{"$f":"M162+M161","v":0},null,{"$error":"#N/A"},{"$error":"#N/A"},{"$error":"#N/A"},{"$error":"#N/A"}]
[{"$error":"#N/A"},{"$error":"#N/A"},{"$error":"#N/A"},{"$error":"#N/A"},null,null,null,null,null,null,{"$f":"IF(J163=91,\"       To use this table, enter player divisions on Scores page\",IF(J163>4,\"Field limit exceeded. Use printed Payout tables.\",\"\"))","v":"       To use this table, enter player divisions on Scores page"},null,null,null,null,{"$f":"SUM(P156:P163)","v":{"$error":"#N/A"}},{"$f":"SUM(Q156:Q163)","v":{"$error":"#N/A"}},{"$f":"SUM(R156:R163)","v":{"$error":"#N/A"}},{"$f":"SUM(S156:S163)","v":0}]
[{"$error":"#N/A"},{"$error":"#N/A"},{"$error":"#N/A"},{"$error":"#N/A"},null,null,null,null,"Prelim","Proposed","Round","Manual","Final"]
[{"$error":"#N/A"},{"$error":"#N/A"},{"$error":"#N/A"},{"$error":"#N/A"},null,null,null,"Place","Factor","Payout $$","to $5","Adj. ","Place"]
[null,{"$f":"SUM(B156:B166)","v":{"$error":"#N/A"}},{"$f":"SUM(C156:C166)","v":{"$error":"#N/A"}},{"$f":"SUM(D156:D166)","v":{"$error":"#N/A"}},{"$f":"SUM(E156:E166)","v":0},null,null,{"$f":"IF(ROW()-166>$H$163,\"\",ROW()-166)","v":{"$error":"#N/A"}},{"$f":"IF(K$163=45%,VLOOKUP(H167,__pay5,H$163+1),VLOOKUP(H167,__pay3,H$163+1))","v":{"$error":"#N/A"}},{"$f":"IF(I167=\"\",\"\",$M$163*I167)","v":{"$error":"#N/A"}},{"$f":"IF(J167=\"\",\"\",INT((J167+2.5)/5)*5)","v":{"$error":"#N/A"}}]
["WOMEN MASTER AM 50+",null,null,null,null,null,null,{"$f":"IF(ROW()-166>$H$163,\"\",ROW()-166)","v":{"$error":"#N/A"}},{"$f":"IF(H168=\"\",\"\",IF(K$163=45%,VLOOKUP(H168,__pay5,H$163+1),VLOOKUP(H168,__pay3,H$163+1)))","v":{"$error":"#N/A"}},{"$f":"IF(I168=\"\",\"\",$M$163*I168)","v":{"$error":"#N/A"}},{"$f":"IF(J168=\"\",\"\",INT((J168+2.5)/5)*5)","v":{"$error":"#N/A"}},null,null,null,"WOMEN MASTER AM 60+"]
[null,null,null,null,"Enter Added Cash (or deduction) here* > ",0,null,null,{"$f":"SUM(I167:I168)","v":{"$error":"#N/A"}},{"$f":"SUM(J167:J168)","v":{"$error":"#N/A"}},{"$f":"SUM(K167:K168)","v":{"$error":"#N/A"}},{"$f":"SUM(L167:L168)","v":0},null,null,null,null,null,null,"Enter Added Cash (or deduction) here* > ",0]
["# Paid",null,"Field Size","Pay pct","Total Fees: ",{"$f":"Cover!G40","v":0},null,"WOMEN MASTER AM 70+",null,null,null,null,null,null,"# Paid",null,"Field Size","Pay pct","Total Fees: ",{"$f":"Cover!G42","v":0}]
[{"$f":"IF(D171=45%,VLOOKUP(C171,dbd,2,FALSE),VLOOKUP(C171,dbe,2,FALSE))","v":{"$error":"#N/A"}},null,{"$f":"IF(Cover!F40=0,91,Cover!F40)","v":91},0.45,"Net Purse: ",{"$f":"F170+F169","v":0},null,null,null,null,null,"Enter Added Cash (or deduction) here* > ",0,null,{"$f":"IF(R171=45%,VLOOKUP(Q171,dbd,2,FALSE),VLOOKUP(Q171,dbe,2,FALSE))","v":{"$error":"#N/A"}},null,{"$f":"IF(Cover!F42=0,91,Cover!F42)","v":91},0.45,"Net Purse: ",{"$f":"T170+T169","v":0}]
[null,null,null,{"$f":"IF(C171=91,\"       To use this table, enter player divisions on Scores page\",IF(C171>22,\"Field limit exceeded. Use printed Payout tables.\",\"\"))","v":"       To use this table, enter player divisions on Scores page"},null,null,null,"# Paid",null,"Field Size","Pay pct","Total Fees: ",{"$f":"Cover!G44","v":0},null,null,null,null,{"$f":"IF(Q171=91,\"       To use this table, enter player divisions on Scores page\",IF(Q171>22,\"Field limit exceeded. Use printed Payout tables.\",\"\"))","v":"       To use this table, enter player divisions on Scores page"}]
[null,"Prelim","Proposed","Round","Manual","Final",null,{"$f":"IF(K173=45%,VLOOKUP(J173,dbd,2,FALSE),VLOOKUP(J173,dbe,2,FALSE))","v":{"$error":"#N/A"}},null,{"$f":"IF(Cover!F44=0,91,Cover!F44)","v":91},0.45,"Net Purse: ",{"$f":"M172+M171","v":0},null,null,"Prelim","Proposed","Round","Manual","Final"]
["Place","Factor","Payout $$","to $5","Adj. ","Place",null,null,null,null,{"$f":"IF(J173=91,\"       To use this table, enter player divisions on Scores page\",IF(J173>4,\"Field limit exceeded. Use printed Payout tables.\",\"\"))","v":"       To use this table, enter player divisions on Scores page"},null,null,null,"Place","Factor","Payout $$","to $5","Adj. ","Place"]
[{"$f":"IF(ROW()-174>$A$171,\"\",ROW()-174)","v":{"$error":"#N/A"}},{"$f":"IF(D$171=45%,VLOOKUP(A175,__pay5,A$171+1),VLOOKUP(A175,__pay3,A$171+1))","v":{"$error":"#N/A"}},{"$f":"IF(B175=\"\",\"\",$F$171*B175)","v":{"$error":"#N/A"}},{"$f":"IF(C175=\"\",\"\",INT((C175+2.5)/5)*5)","v":{"$error":"#N/A"}},null,null,null,null,"Prelim","Proposed","Round","Manual","Final",null,{"$f":"IF(ROW()-174>$O$171,\"\",ROW()-174)","v":{"$error":"#N/A"}},{"$f":"IF(R$171=45%,VLOOKUP(O175,__pay5,O$171+1),VLOOKUP(O175,__pay3,O$171+1))","v":{"$error":"#N/A"}},{"$f":"IF(P175=\"\",\"\",$T$171*P175)","v":{"$error":"#N/A"}},{"$f":"IF(Q175=\"\",\"\",INT((Q175+2.5)/5)*5)","v":{"$error":"#N/A"}}]
[{"$f":"IF(ROW()-174>$A$171,\"\",ROW()-174)","v":{"$error":"#N/A"}},{"$f":"IF(A176=\"\",\"\",IF(D$171=45%,VLOOKUP(A176,__pay5,A$171+1),VLOOKUP(A176,__pay3,A$171+1)))","v":{"$error":"#N/A"}},{"$f":"IF(B176=\"\",\"\",$F$171*B176)","v":{"$error":"#N/A"}},{"$f":"IF(C176=\"\",\"\",INT((C176+2.5)/5)*5)","v":{"$error":"#N/A"}},null,null,null,"Place","Factor","Payout $$","to $5","Adj. ","Place",null,{"$f":"IF(ROW()-174>$O$171,\"\",ROW()-174)","v":{"$error":"#N/A"}},{"$f":"IF(O176=\"\",\"\",IF(R$171=45%,VLOOKUP(O176,__pay5,O$171+1),VLOOKUP(O176,__pay3,O$171+1)))","v":{"$error":"#N/A"}},{"$f":"IF(P176=\"\",\"\",$T$171*P176)","v":{"$error":"#N/A"}},{"$f":"IF(Q176=\"\",\"\",INT((Q176+2.5)/5)*5)","v":{"$error":"#N/A"}}]
[{"$f":"IF(ROW()-174>$A$171,\"\",ROW()-174)","v":{"$error":"#N/A"}},{"$f":"IF(A177=\"\",\"\",IF(D$171=45%,VLOOKUP(A177,__pay5,A$171+1),VLOOKUP(A177,__pay3,A$171+1)))","v":{"$error":"#N/A"}},{"$f":"IF(B177=\"\",\"\",$F$171*B177)","v":{"$error":"#N/A"}},{"$f":"IF(C177=\"\",\"\",INT((C177+2.5)/5)*5)","v":{"$error":"#N/A"}},null,null,null,{"$f":"IF(ROW()-176>$H$173,\"\",ROW()-176)","v":{"$error":"#N/A"}},{"$f":"IF(K$173=45%,VLOOKUP(H177,__pay5,H$173+1),VLOOKUP(H177,__pay3,H$173+1))","v":{"$error":"#N/A"}},{"$f":"IF(I177=\"\",\"\",$M$173*I177)","v":{"$error":"#N/A"}},{"$f":"IF(J177=\"\",\"\",INT((J177+2.5)/5)*5)","v":{"$error":"#N/A"}},null,null,null,{"$f":"IF(ROW()-174>$O$171,\"\",ROW()-174)","v":{"$error":"#N/A"}},{"$f":"IF(O177=\"\",\"\",IF(R$171=45%,VLOOKUP(O177,__pay5,O$171+1),VLOOKUP(O177,__pay3,O$171+1)))","v":{"$error":"#N/A"}},{"$f":"IF(P177=\"\",\"\",$T$171*P177)","v":{"$error":"#N/A"}},{"$f":"IF(Q177=\"\",\"\",INT((Q177+2.5)/5)*5)","v":{"$error":"#N/A"}}]
[{"$f":"IF(ROW()-174>$A$171,\"\",ROW()-174)","v":{"$error":"#N/A"}},{"$f":"IF(A178=\"\",\"\",IF(D$171=45%,VLOOKUP(A178,__pay5,A$171+1),VLOOKUP(A178,__pay3,A$171+1)))","v":{"$error":"#N/A"}},{"$f":"IF(B178=\"\",\"\",$F$171*B178)","v":{"$error":"#N/A"}},{"$f":"IF(C178=\"\",\"\",INT((C178+2.5)/5)*5)","v":{"$error":"#N/A"}},null,null,null,{"$f":"IF(ROW()-176>$H$173,\"\",ROW()-176)","v":{"$error":"#N/A"}},{"$f":"IF(H178=\"\",\"\",IF(K$173=45%,VLOOKUP(H178,__pay5,H$173+1),VLOOKUP(H178,__pay3,H$173+1)))","v":{"$error":"#N/A"}},{"$f":"IF(I178=\"\",\"\",$M$173*I178)","v":{"$error":"#N/A"}},{"$f":"IF(J178=\"\",\"\",INT((J178+2.5)/5)*5)","v":{"$error":"#N/A"}},null,null,null,{"$f":"IF(ROW()-174>$O$171,\"\",ROW()-174)","v":{"$error":"#N/A"}},{"$f":"IF(O178=\"\",\"\",IF(R$171=45%,VLOOKUP(O178,__pay5,O$171+1),VLOOKUP(O178,__pay3,O$171+1)))","v":{"$error":"#N/A"}},{"$f":"IF(P178=\"\",\"\",$T$171*P178)","v":{"$error":"#N/A"}},{"$f":"IF(Q178=\"\",\"\",INT((Q178+2.5)/5)*5)","v":{"$error":"#N/A"}}]
[null,{"$f":"SUM(B175:B178)","v":{"$error":"#N/A"}},{"$f":"SUM(C175:C178)","v":{"$error":"#N/A"}},{"$f":"SUM(D175:D178)","v":{"$error":"#N/A"}},{"$f":"SUM(E175:E178)","v":0},null,null,null,null,{"$f":"SUM(J177:J178)","v":{"$error":"#N/A"}},{"$f":"SUM(K177:K178)","v":{"$error":"#N/A"}},{"$f":"SUM(L177:L178)","v":0},null,null,null,{"$f":"SUM(P175:P178)","v":{"$error":"#N/A"}},{"$f":"SUM(Q175:Q178)","v":{"$error":"#N/A"}},{"$f":"SUM(R175:R178)","v":{"$error":"#N/A"}},{"$f":"SUM(S175:S178)","v":0}]
["GIRLS JR < 10",null,null,null,null,null,null,"GIRLS JR < 8",null,null,null,null,null,null,"GIRLS JR < 6"]
[null,null,null,null,"Enter Added Cash (or deduction) here* > ",0,null,null,null,null,null,"Enter Added Cash (or deduction) here* > ",0,null,null,null,null,null,"Enter Added Cash (or deduction) here* > ",0]
["# Paid",null,"Field Size","Pay pct","Total Fees: ",{"$f":"Cover!G56","v":0},null,"# Paid",null,"Field Size","Pay pct","Total Fees: ",{"$f":"Cover!G57","v":0},null,"# Paid",null,"Field Size","Pay pct","Total Fees: ",{"$f":"Cover!G58","v":0}]
[{"$f":"IF(D183=45%,VLOOKUP(C183,dbd,2,FALSE),VLOOKUP(C183,dbe,2,FALSE))","v":{"$error":"#N/A"}},null,{"$f":"IF(Cover!F56=0,91,Cover!F56)","v":91},0.45,"Net Purse: ",{"$f":"F182+F181","v":0},null,{"$f":"IF(K183=45%,VLOOKUP(J183,dbd,2,FALSE),VLOOKUP(J183,dbe,2,FALSE))","v":{"$error":"#N/A"}},null,{"$f":"IF(Cover!F57=0,91,Cover!F57)","v":91},0.45,"Net Purse: ",{"$f":"M182+M181","v":0},null,{"$f":"IF(R183=45%,VLOOKUP(Q183,dbd,2,FALSE),VLOOKUP(Q183,dbe,2,FALSE))","v":{"$error":"#N/A"}},null,{"$f":"IF(Cover!F58=0,91,Cover!F58)","v":91},0.45,"Net Purse: ",{"$f":"T182+T181","v":0}]
[null,null,null,{"$f":"IF(C183=91,\"       To use this table, enter player divisions on Scores page\",IF(C183>22,\"Field limit exceeded. Use printed Payout tables.\",\"\"))","v":"       To use this table, enter player divisions on Scores page"},null,null,null,null,null,null,{"$f":"IF(J183=91,\"       To use this table, enter player divisions on Scores page\",IF(J183>22,\"Field limit exceeded. Use printed Payout tables.\",\"\"))","v":"       To use this table, enter player divisions on Scores page"},null,null,null,null,null,null,{"$f":"IF(Q183=91,\"       To use this table, enter player divisions on Scores page\",IF(Q183>22,\"Field limit exceeded. Use printed Payout tables.\",\"\"))","v":"       To use this table, enter player divisions on Scores page"}]
[null,"Prelim","Proposed","Round","Manual","Final",null,null,"Prelim","Proposed","Round","Manual","Final",null,null,"Prelim","Proposed","Round","Manual","Final"]
["Place","Factor","Payout $$","to $5","Adj. ","Place",null,"Place","Factor","Payout $$","to $5","Adj. ","Place",null,"Place","Factor","Payout $$","to $5","Adj. ","Place"]
[{"$f":"IF(ROW()-186>$A$183,\"\",ROW()-186)","v":{"$error":"#N/A"}},{"$f":"IF(D$183=45%,VLOOKUP(A187,__pay5,A$183+1),VLOOKUP(A187,__pay3,A$183+1))","v":{"$error":"#N/A"}},{"$f":"IF(B187=\"\",\"\",$F$183*B187)","v":{"$error":"#N/A"}},{"$f":"IF(C187=\"\",\"\",INT((C187+2.5)/5)*5)","v":{"$error":"#N/A"}},null,null,null,{"$f":"IF(ROW()-186>$H$183,\"\",ROW()-186)","v":{"$error":"#N/A"}},{"$f":"IF(K$183=45%,VLOOKUP(H187,__pay5,H$183+1),VLOOKUP(H187,__pay3,H$183+1))","v":{"$error":"#N/A"}},{"$f":"IF(I187=\"\",\"\",$M$183*I187)","v":{"$error":"#N/A"}},{"$f":"IF(J187=\"\",\"\",INT((J187+2.5)/5)*5)","v":{"$error":"#N/A"}},null,null,null,{"$f":"IF(ROW()-186>$O$183,\"\",ROW()-186)","v":{"$error":"#N/A"}},{"$f":"IF(R$183=45%,VLOOKUP(O187,__pay5,O$183+1),VLOOKUP(O187,__pay3,O$183+1))","v":{"$error":"#N/A"}},{"$f":"IF(P187=\"\",\"\",$T$183*P187)","v":{"$error":"#N/A"}},{"$f":"IF(Q187=\"\",\"\",INT((Q187+2.5)/5)*5)","v":{"$error":"#N/A"}}]
[{"$error":"#N/A"},{"$f":"IF(A188=\"\",\"\",IF(D$183=45%,VLOOKUP(A188,__pay5,A$183+1),VLOOKUP(A188,__pay3,A$183+1)))","v":{"$error":"#N/A"}},{"$error":"#N/A"},{"$error":"#N/A"},null,null,null,{"$error":"#N/A"},{"$f":"IF(H188=\"\",\"\",IF(K$183=45%,VLOOKUP(H188,__pay5,H$183+1),VLOOKUP(H188,__pay3,H$183+1)))","v":{"$error":"#N/A"}},{"$error":"#N/A"},{"$error":"#N/A"},null,null,null,{"$error":"#N/A"},{"$f":"IF(O188=\"\",\"\",IF(R$183=45%,VLOOKUP(O188,__pay5,O$183+1),VLOOKUP(O188,__pay3,O$183+1)))","v":{"$error":"#N/A"}},{"$error":"#N/A"},{"$error":"#N/A"}]
[{"$error":"#N/A"},{"$error":"#N/A"},{"$error":"#N/A"},{"$error":"#N/A"},null,null,null,{"$error":"#N/A"},{"$error":"#N/A"},{"$error":"#N/A"},{"$error":"#N/A"},null,null,null,{"$error":"#N/A"},{"$error":"#N/A"},{"$error":"#N/A"},{"$error":"#N/A"}]
[{"$error":"#N/A"},{"$error":"#N/A"},{"$error":"#N/A"},{"$error":"#N/A"},null,null,null,{"$error":"#N/A"},{"$error":"#N/A"},{"$error":"#N/A"},{"$error":"#N/A"},null,null,null,{"$error":"#N/A"},{"$error":"#N/A"},{"$error":"#N/A"},{"$error":"#N/A"}]
[{"$error":"#N/A"},{"$error":"#N/A"},{"$error":"#N/A"},{"$error":"#N/A"},null,null,null,{"$error":"#N/A"},{"$error":"#N/A"},{"$error":"#N/A"},{"$error":"#N/A"},null,null,null,{"$error":"#N/A"},{"$error":"#N/A"},{"$error":"#N/A"},{"$error":"#N/A"}]
[{"$error":"#N/A"},{"$error":"#N/A"},{"$error":"#N/A"},{"$error":"#N/A"},null,null,null,{"$error":"#N/A"},{"$error":"#N/A"},{"$error":"#N/A"},{"$error":"#N/A"},null,null,null,{"$error":"#N/A"},{"$error":"#N/A"},{"$error":"#N/A"},{"$error":"#N/A"}]
[{"$error":"#N/A"},{"$error":"#N/A"},{"$error":"#N/A"},{"$error":"#N/A"},null,null,null,{"$error":"#N/A"},{"$error":"#N/A"},{"$error":"#N/A"},{"$error":"#N/A"},null,null,null,{"$error":"#N/A"},{"$error":"#N/A"},{"$error":"#N/A"},{"$error":"#N/A"}]
[{"$error":"#N/A"},{"$error":"#N/A"},{"$error":"#N/A"},{"$error":"#N/A"},null,null,null,{"$error":"#N/A"},{"$error":"#N/A"},{"$error":"#N/A"},{"$error":"#N/A"},null,null,null,{"$error":"#N/A"},{"$error":"#N/A"},{"$error":"#N/A"},{"$error":"#N/A"}]
[{"$error":"#N/A"},{"$error":"#N/A"},{"$error":"#N/A"},{"$error":"#N/A"},null,null,null,{"$error":"#N/A"},{"$error":"#N/A"},{"$error":"#N/A"},{"$error":"#N/A"},null,null,null,{"$error":"#N/A"},{"$error":"#N/A"},{"$error":"#N/A"},{"$error":"#N/A"}]
[{"$error":"#N/A"},{"$error":"#N/A"},{"$error":"#N/A"},{"$error":"#N/A"},null,null,null,{"$error":"#N/A"},{"$error":"#N/A"},{"$error":"#N/A"},{"$error":"#N/A"},null,null,null,{"$error":"#N/A"},{"$error":"#N/A"},{"$error":"#N/A"},{"$error":"#N/A"}]
[{"$error":"#N/A"},{"$error":"#N/A"},{"$error":"#N/A"},{"$error":"#N/A"},null,null,null,{"$error":"#N/A"},{"$error":"#N/A"},{"$error":"#N/A"},{"$error":"#N/A"},null,null,null,{"$error":"#N/A"},{"$error":"#N/A"},{"$error":"#N/A"},{"$error":"#N/A"}]
[null,{"$f":"SUM(B187:B197)","v":{"$error":"#N/A"}},{"$f":"SUM(C187:C197)","v":{"$error":"#N/A"}},{"$f":"SUM(D187:D197)","v":{"$error":"#N/A"}},{"$f":"SUM(E187:E197)","v":0},null,null,null,{"$f":"SUM(I187:I197)","v":{"$error":"#N/A"}},{"$f":"SUM(J187:J197)","v":{"$error":"#N/A"}},{"$f":"SUM(K187:K197)","v":{"$error":"#N/A"}},{"$f":"SUM(L187:L197)","v":0},null,null,null,{"$f":"SUM(P187:P197)","v":{"$error":"#N/A"}},{"$f":"SUM(Q187:Q197)","v":{"$error":"#N/A"}},{"$f":"SUM(R187:R197)","v":{"$error":"#N/A"}},{"$f":"SUM(S187:S197)","v":0}]
[]
["BOYS JR < 10",null,null,null,null,null,null,"BOYS JR < 8",null,null,null,null,null,null,"BOYS JR < 6"]
[null,null,null,null,"Enter Added Cash (or deduction) here* > ",0,null,null,null,null,null,"Enter Added Cash (or deduction) here* > ",0,null,null,null,null,null,"Enter Added Cash (or deduction) here* > ",0]
["# Paid",null,"Field Size","Pay pct","Total Fees: ",{"$f":"Cover!G50","v":0},null,"# Paid",null,"Field Size","Pay pct","Total Fees: ",{"$f":"Cover!G51","v":0},null,"# Paid",null,"Field Size","Pay pct","Total Fees: ",{"$f":"Cover!G52","v":0}]
[{"$f":"IF(D203=45%,VLOOKUP(C203,dbd,2,FALSE),VLOOKUP(C203,dbe,2,FALSE))","v":{"$error":"#N/A"}},null,{"$f":"IF(Cover!F50=0,91,Cover!F50)","v":91},0.45,"Net Purse: ",{"$f":"F202+F201","v":0},null,{"$f":"IF(K203=45%,VLOOKUP(J203,dbd,2,FALSE),VLOOKUP(J203,dbe,2,FALSE))","v":{"$error":"#N/A"}},null,{"$f":"IF(Cover!F51=0,91,Cover!F51)","v":91},0.45,"Net Purse: ",{"$f":"M202+M201","v":0},null,{"$f":"IF(R203=45%,VLOOKUP(Q203,dbd,2,FALSE),VLOOKUP(Q203,dbe,2,FALSE))","v":{"$error":"#N/A"}},null,{"$f":"IF(Cover!F52=0,91,Cover!F52)","v":91},0.45,"Net Purse: ",{"$f":"T202+T201","v":0}]
[null,null,null,{"$f":"IF(C203=91,\"       To use this table, enter player divisions on Scores page\",IF(C203>22,\"Field limit exceeded. Use printed Payout tables.\",\"\"))","v":"       To use this table, enter player divisions on Scores page"},null,null,null,null,null,null,{"$f":"IF(J203=91,\"       To use this table, enter player divisions on Scores page\",IF(J203>22,\"Field limit exceeded. Use printed Payout tables.\",\"\"))","v":"       To use this table, enter player divisions on Scores page"},null,null,null,null,null,null,{"$f":"IF(Q203=91,\"       To use this table, enter player divisions on Scores page\",IF(Q203>22,\"Field limit exceeded. Use printed Payout tables.\",\"\"))","v":"       To use this table, enter player divisions on Scores page"}]
[null,"Prelim","Proposed","Round","Manual","Final",null,null,"Prelim","Proposed","Round","Manual","Final",null,null,"Prelim","Proposed","Round","Manual","Final"]
["Place","Factor","Payout $$","to $5","Adj. ","Place",null,"Place","Factor","Payout $$","to $5","Adj. ","Place",null,"Place","Factor","Payout $$","to $5","Adj. ","Place"]
[{"$f":"IF(ROW()-206>$A$203,\"\",ROW()-206)","v":{"$error":"#N/A"}},{"$f":"IF(D$203=45%,VLOOKUP(A207,__pay5,A$203+1),VLOOKUP(A207,__pay3,A$203+1))","v":{"$error":"#N/A"}},{"$f":"IF(B207=\"\",\"\",$F$203*B207)","v":{"$error":"#N/A"}},{"$f":"IF(C207=\"\",\"\",INT((C207+2.5)/5)*5)","v":{"$error":"#N/A"}},null,null,null,{"$f":"IF(ROW()-206>$H$203,\"\",ROW()-206)","v":{"$error":"#N/A"}},{"$f":"IF(K$203=45%,VLOOKUP(H207,__pay5,H$203+1),VLOOKUP(H207,__pay3,H$203+1))","v":{"$error":"#N/A"}},{"$f":"IF(I207=\"\",\"\",$M$203*I207)","v":{"$error":"#N/A"}},{"$f":"IF(J207=\"\",\"\",INT((J207+2.5)/5)*5)","v":{"$error":"#N/A"}},null,null,null,{"$f":"IF(ROW()-206>$O$203,\"\",ROW()-206)","v":{"$error":"#N/A"}},{"$f":"IF(R$203=45%,VLOOKUP(O207,__pay5,O$203+1),VLOOKUP(O207,__pay3,O$203+1))","v":{"$error":"#N/A"}},{"$f":"IF(P207=\"\",\"\",$T$203*P207)","v":{"$error":"#N/A"}},{"$f":"IF(Q207=\"\",\"\",INT((Q207+2.5)/5)*5)","v":{"$error":"#N/A"}}]
[{"$error":"#N/A"},{"$f":"IF(A208=\"\",\"\",IF(D$203=45%,VLOOKUP(A208,__pay5,A$203+1),VLOOKUP(A208,__pay3,A$203+1)))","v":{"$error":"#N/A"}},{"$error":"#N/A"},{"$error":"#N/A"},null,null,null,{"$error":"#N/A"},{"$f":"IF(H208=\"\",\"\",IF(K$203=45%,VLOOKUP(H208,__pay5,H$203+1),VLOOKUP(H208,__pay3,H$203+1)))","v":{"$error":"#N/A"}},{"$error":"#N/A"},{"$error":"#N/A"},null,null,null,{"$error":"#N/A"},{"$f":"IF(O208=\"\",\"\",IF(R$203=45%,VLOOKUP(O208,__pay5,O$203+1),VLOOKUP(O208,__pay3,O$203+1)))","v":{"$error":"#N/A"}},{"$error":"#N/A"},{"$error":"#N/A"}]
[{"$error":"#N/A"},{"$error":"#N/A"},{"$error":"#N/A"},{"$error":"#N/A"},null,null,null,{"$error":"#N/A"},{"$error":"#N/A"},{"$error":"#N/A"},{"$error":"#N/A"},null,null,null,{"$error":"#N/A"},{"$error":"#N/A"},{"$error":"#N/A"},{"$error":"#N/A"}]
[{"$error":"#N/A"},{"$error":"#N/A"},{"$error":"#N/A"},{"$error":"#N/A"},null,null,null,{"$error":"#N/A"},{"$error":"#N/A"},{"$error":"#N/A"},{"$error":"#N/A"},null,null,null,{"$error":"#N/A"},{"$error":"#N/A"},{"$error":"#N/A"},{"$error":"#N/A"}]
[{"$error":"#N/A"},{"$error":"#N/A"},{"$error":"#N/A"},{"$error":"#N/A"},null,null,null,{"$error":"#N/A"},{"$error":"#N/A"},{"$error":"#N/A"},{"$error":"#N/A"},null,null,null,{"$error":"#N/A"},{"$error":"#N/A"},{"$error":"#N/A"},{"$error":"#N/A"}]
[{"$error":"#N/A"},{"$error":"#N/A"},{"$error":"#N/A"},{"$error":"#N/A"},null,null,null,{"$error":"#N/A"},{"$error":"#N/A"},{"$error":"#N/A"},{"$error":"#N/A"},null,null,null,{"$error":"#N/A"},{"$error":"#N/A"},{"$error":"#N/A"},{"$error":"#N/A"}]
[{"$error":"#N/A"},{"$error":"#N/A"},{"$error":"#N/A"},{"$error":"#N/A"},null,null,null,{"$error":"#N/A"},{"$error":"#N/A"},{"$error":"#N/A"},{"$error":"#N/A"},null,null,null,{"$error":"#N/A"},{"$error":"#N/A"},{"$error":"#N/A"},{"$error":"#N/A"}]
[{"$error":"#N/A"},{"$error":"#N/A"},{"$error":"#N/A"},{"$error":"#N/A"},null,null,null,{"$error":"#N/A"},{"$error":"#N/A"},{"$error":"#N/A"},{"$error":"#N/A"},null,null,null,{"$error":"#N/A"},{"$error":"#N/A"},{"$error":"#N/A"},{"$error":"#N/A"}]
[{"$error":"#N/A"},{"$error":"#N/A"},{"$error":"#N/A"},{"$error":"#N/A"},null,null,null,{"$error":"#N/A"},{"$error":"#N/A"},{"$error":"#N/A"},{"$error":"#N/A"},null,null,null,{"$error":"#N/A"},{"$error":"#N/A"},{"$error":"#N/A"},{"$error":"#N/A"}]
[{"$error":"#N/A"},{"$error":"#N/A"},{"$error":"#N/A"},{"$error":"#N/A"},null,null,null,{"$error":"#N/A"},{"$error":"#N/A"},{"$error":"#N/A"},{"$error":"#N/A"},null,null,null,{"$error":"#N/A"},{"$error":"#N/A"},{"$error":"#N/A"},{"$error":"#N/A"}]
[{"$error":"#N/A"},{"$error":"#N/A"},{"$error":"#N/A"},{"$error":"#N/A"},null,null,null,{"$error":"#N/A"},{"$error":"#N/A"},{"$error":"#N/A"},{"$error":"#N/A"},null,null,null,{"$error":"#N/A"},{"$error":"#N/A"},{"$error":"#N/A"},{"$error":"#N/A"}]
[null,{"$f":"SUM(B207:B217)","v":{"$error":"#N/A"}},{"$f":"SUM(C207:C217)","v":{"$error":"#N/A"}},{"$f":"SUM(D207:D217)","v":{"$error":"#N/A"}},{"$f":"SUM(E207:E217)","v":0},null,null,null,{"$f":"SUM(I207:I217)","v":{"$error":"#N/A"}},{"$f":"SUM(J207:J217)","v":{"$error":"#N/A"}},{"$f":"SUM(K207:K217)","v":{"$error":"#N/A"}},{"$f":"SUM(L207:L217)","v":0},null,null,null,{"$f":"SUM(P207:P217)","v":{"$error":"#N/A"}},{"$f":"SUM(Q207:Q217)","v":{"$error":"#N/A"}},{"$f":"SUM(R207:R217)","v":{"$error":"#N/A"}},{"$f":"SUM(S207:S217)","v":0}]

{"sheet":"Finance","index":7,"n_rows":78,"n_cols":20,"rows_kept":78,"cut":false,"hidden":false,"merged":[[77,8,77,13],[70,0,70,4],[69,0,69,4],[71,0,71,4],[76,8,76,13],[74,8,74,13],[73,8,73,13],[76,0,76,4],[74,0,74,4],[73,0,73,4],[72,0,72,4],[69,8,69,13],[72,8,72,13],[71,8,71,13],[70,8,70,13],[52,8,52,13],[57,8,57,13],[56,8,56,13],[50,8,50,13],[23,7,23,9],[34,7,34,9],[32,7,32,9],[48,8,48,13],[26,11,26,13],[27,7,27,9],[29,11,29,13],[54,0,54,4],[56,0,56,4],[55,0,55,4],[18,0,18,2],[21,11,21,13],[23,11,23,13],[24,7,24,9],[18,11,18,13],[22,7,22,9],[19,0,19,2],[20,0,20,2],[30,0,30,2],[30,7,30,9],[25,11,25,13],[30,4,30,5],[22,11,22,13],[28,4,28,5],[25,4,25,5],[24,11,24,13],[27,11,27,13],[25,7,25,9],[26,7,26,9],[18,4,18,5],[21,7,21,9],[2,2,2,4],[4,0,4,2],[9,4,9,5],[11,4,11,5],[8,7,8,9],[8,4,8,5],[51,8,51,13],[53,0,53,4],[52,0,52,4],[4,7,4,9],[4,11,4,14],[7,11,7,13],[6,11,6,13],[7,7,7,9],[19,7,19,9],[20,7,20,9],[19,4,19,5],[20,11,20,13],[19,11,19,13],[20,4,20,5],[7,0,7,2],[7,4,7,5],[16,11,16,13],[17,11,17,13],[68,8,68,13],[66,8,66,13],[67,0,67,4],[66,0,66,4],[57,0,57,4],[67,8,67,13],[64,0,64,4],[63,0,63,4],[63,8,63,13],[62,8,62,13],[58,8,58,13],[61,8,61,13],[59,8,59,13],[61,0,61,4],[60,8,60,13],[58,0,58,4],[59,0,59,4],[65,8,65,13],[65,0,65,4],[62,0,62,4],[68,0,68,4],[60,0,60,4],[64,8,64,13],[8,11,8,13],[17,4,17,5],[14,4,14,5],[9,7,9,9],[6,4,6,5],[17,0,17,2],[12,4,12,5],[13,4,13,5],[6,0,6,2],[10,4,10,5],[9,0,9,2],[8,0,8,2],[15,7,15,9],[15,0,15,2],[16,0,16,2],[6,7,6,9],[9,11,9,13],[15,11,15,13],[17,7,17,9],[16,7,16,9],[15,4,15,5],[16,4,16,5],[18,7,18,9],[28,11,28,13],[28,7,28,9],[24,4,24,5],[23,4,23,5],[26,4,26,5],[27,4,27,5],[22,4,22,5],[21,4,21,5],[35,4,35,5],[32,11,32,13],[29,7,29,9],[34,4,34,5],[29,4,29,5],[30,11,30,13],[31,11,31,13],[33,7,33,9],[33,11,33,13],[31,7,31,9],[49,0,49,4],[49,8,49,13],[48,0,48,4],[29,0,29,2],[28,0,28,2],[31,4,31,5],[31,0,31,2],[33,4,33,5],[47,8,47,13],[44,8,44,9],[47,0,47,4],[32,4,32,5],[32,0,32,2],[46,0,46,4],[42,0,42,15],[46,8,46,13],[35,7,35,9],[35,11,35,14],[34,11,34,13],[34,0,34,2],[41,0,41,15],[33,0,33,2],[40,0,40,15],[35,0,35,2]]}
[null,null,null,null,null,null,null," PDGA Canada Tour Event: Financial Summary"]
[]
["Part 1:",null,"Sponsors",null,null,null,"Please list all sponsors and their contributions."]
[]
["Cash Sponsors",null,null,null,"Amount",null,null,"Non Cash Sponsors",null,null,null,"Description of Donation",null,null,null,"Value"]
[]
[]
[]
[]
[]
[]
[]
[]
[]
[]
[]
[]
[]
[]
[]
[]
[]
[]
[]
[]
[]
[]
[]
[]
[]
[]
[]
[]
[]
[]
["Total Cash Sponsors",null,null,null,{"$f":"SUM(E7:E35)","v":0},null,null,null,null,null,null,"Total Non-Cash Sponsors",null,null,null,{"$f":"SUM(P7:P35)","v":0}]
[]
[]
["Part 2:",null,"Statement of Income and Expenses"]
[]
["Instructions : Only Majors and National Tour events are required to complete this section. This sheet is provided to "]
["assist TDs with the financial management of their event. You will be asked to provide financial detail only if the PDGA "]
["receives complaints from players regarding the overall event payout (incl players packages, side games, amenities etc)."]
[]
["Income",null,null,null,null,null,"Cdn$",null,"Expenses",null,null,null,null,null,null,"Cdn$"]
[]
["Gross Pro Entry Fees",null,null,null,null,null,{"$f":"Cover!X7","v":0},null,"Total Pro Payout",null,null,null,null,null,null,{"$f":"Cover!T24","v":0}]
["Cash Sponsorships",null,null,null,null,null,{"$f":"+Finance!E36","v":0},null,"Pro Player Packs - Actual Cost"]
[null,null,null,null,null,null,null,null,"Amateur Prizes - Actual Cost"]
["Gross Amateur Entry Fees",null,null,null,null,null,{"$f":"Cover!X8","v":0},null,"Amateur Player Packs - Actual Cost"]
["Gross Junior Entry Fees",null,null,null,null,null,{"$f":"Cover!X9","v":0}]
["Non-Cash Sponsorships Value",null,null,null,null,null,{"$f":"+Finance!P36","v":0},null,"Sponsor Costs: Signs, Banners, Shirts"]
["Other Cash: Raffles, Contests, etc."]
[null,null,null,null,null,null,null,null,"Other Cash Prizes: Skins, etc."]
["Late Fees",null,null,null,null,null,null,null,"Other Prizes: CTPs, etc.- Actual Cost"]
[null,null,null,null,null,null,null,null,"Trophies"]
[null,null,null,null,null,null,null,null,"Player Fees to PDGA",null,null,null,null,null,null,{"$f":"Cover!T49+Cover!T50","v":0}]
["$10 Fees from Non-Current Players",null,null,null,null,null,{"$f":"Cover!T51","v":0},null,"$10 Non-current Fees to PDGA",null,null,null,null,null,null,{"$f":"G58","v":0}]
["Ace Pool Collected",null,null,null,null,null,null,null,"Ace Pool",null,null,null,null,null,null,{"$f":"G59","v":0}]
[null,null,null,null,null,null,null,null,"PDGA Sanctioning/Insurance"]
[null,null,null,null,null,null,null,null,"Park Permits",null,null,null,null,null,null,null,null,"# of players",null,"Fee each"]
[null,null,null,null,null,null,null,null,"Regional Series Fees",null,null,null,null,null,null,{"$f":"R62*T62","v":0},"=",null,"X"]
[null,null,null,null,null,null,null,null,"Local Club Fees",null,null,null,null,null,null,{"$f":"R63*T63","v":0},"=",null,"X"]
[null,null,null,null,null,null,null,null,"Equipment Rental"]
[null,null,null,null,null,null,null,null,"Printing & Advertising"]
[null,null,null,null,null,null,null,null,"Communication"]
[null,null,null,null,null,null,null,null,"Staff: Shirts, Plyr Packs - Actual Cost"]
[null,null,null,null,null,null,null,null,"Charitable Contribution"]
[]
["Merchandise Sales",null,null,null,null,null,null,null,"Cost of Merchandise"]
["Food & Beverage Sales",null,null,null,null,null,null,null,"Food & Beverage Costs"]
["Other Income : please specify",null,null,null,null,null,null,null,"Other Expense : please specify"]
[]
[]
[null,null,null,null,null,null,null,null,"TD Fee (if not donated)"]
[]
["Total Income",null,null,null,null,null,{"$f":"SUM(G47:G75)","v":0},null,"Total Expenses",null,null,null,null,null,null,{"$f":"SUM(P47:P75)","v":0}]
[null,null,null,null,null,null,null,null,"NET:  PROFIT or (LOSS)",null,null,null,null,null,null,{"$f":"G77-P77","v":0}]

{"sheet":"$10 Fees","index":8,"n_rows":12,"n_cols":10,"rows_kept":12,"cut":false,"hidden":false,"merged":[[6,0,9,9]]}
["List of Non-Current Players / Supporting Members Paying the $10 PDGA Fee"]
[]
["Instructions: PDGA current membership is required at all Majors, National Tour and SuperTour (A Tier) events. For all other events, non-current or non-member"]
["players may participate by paying a $10 fee to the PDGA in lieu of membership. This fee is required of ALL players who cannot prove current membership, except"]
["for players competing in a Junior division."]
[]
["New players who pay the $10 fee are eligible for a $10 discount when registering as a new member of the PDGA. The discount can only be applied to membership registration received during the same calendar year as the $10 fee.  Players should use the code NONMEMBER10 to receive this discount.  TDs are encouraged to provide PDGA membership forms to any player who is not current."]
[]
[]
[]
[]
["PDGA#","First Name","Last Name","Address","City","State","Zip","DOB","Phone","Email"]

{"sheet":"Memberships","index":9,"n_rows":0,"n_cols":0,"rows_kept":0,"cut":false,"hidden":false,"merged":[]}

{"sheet":"Evaluation","index":10,"n_rows":0,"n_cols":0,"rows_kept":0,"cut":false,"hidden":false,"merged":[]}

{"sheet":"SupportData","index":11,"n_rows":52,"n_cols":7,"rows_kept":52,"cut":false,"hidden":true,"merged":[]}
["This worksheet contains data used by other worksheets and formulas in this file."]
["Please do not delete this worksheet or modify any data on it."]
[]
["Divcode",null,"Tier","Code","Fee","Tier 1","Tier 2"]
["MPO",null,"NT",1,5,"NT"]
["MP40",null,"A or XA",2,4,"A or XA"]
["MP50",null,"B or XB",3,3,"B or XB"]
["MP55",null,"C or XC",4,2,"C or XC"]
["MP60",null,"A Pro / B Am",9,null,"Pro A","Am B"]
["MP65",null,"A Pro / C Am",10,null,"Pro A","Am C"]
["MP70",null,"B Pro / C Am",11,null,"Pro B","Am C"]
["MP75",null,"B Pro / A Am",12,null,"Pro B","Am A"]
["MP80",null,"C Pro / A Am ",13,null,"Pro C","Am A"]
["FPO",null,"C Pro / B Am ",14,null,"Pro C","Am B"]
["FP40"]
["FP50"]
["FP55"]
["FP60"]
["FP65",null,"Pro A",null,4]
["FP70",null,"Pro B",null,3]
["MA1",null,"Pro C",null,2]
["MA2",null,"Am A",null,4]
["MA3",null,"Am B",null,3]
["MA4",null,"Am C",null,2]
["MA40"]
["MA50",null,null,{"$f":"IF(Cover!$Q7=\"\",\"\",VLOOKUP(Cover!$Q7,tierDB,2,FALSE))","v":11},null,{"$f":"IF(Cover!$Q7=\"\",\"\",VLOOKUP(Cover!$Q7,tierDB,4,FALSE))","v":"Pro B"},{"$f":"IF(Cover!$Q7=\"\",\"\",VLOOKUP(Cover!$Q7,tierDB,5,FALSE))","v":"Am C"}]
["MA55"]
["MA60"]
["MA65"]
["MA70"]
["FA1"]
["FA2"]
["FA3"]
["FA4"]
["FA40"]
["FA50"]
["FA55"]
["FA60"]
["FA65"]
["FA70"]
["MJ18"]
["MJ15"]
["MJ12"]
["MJ10"]
["MJ08"]
["MJ06"]
["FJ18"]
["FJ15"]
["FJ12"]
["FJ10"]
["FJ08"]
["FJ06"]